Workbook

Sheet Trend Chart
B1: Trend of Brazil Real Versus United States Dollar

Sheet Trend Data
A5: End Date | B5: BRL/USD
A6: 2012-02-01 | B6: 0.572
A7: 2012-02-02 | B7: 0.5738
A8: 2012-02-03 | B8: 0.5773
A9: 2012-02-04 | B9: 0.5805
A10: 2012-02-05 | B10: 0.5819
A11: 2012-02-06 | B11: 0.582
A12: 2012-02-07 | B12: 0.5808
A13: 2012-02-08 | B13: 0.5788
A14: 2012-02-09 | B14: 0.5796
A15: 2012-02-10 | B15: 0.5803
A16: 2012-02-11 | B16: 0.5801
A17: 2012-02-12 | B17: 0.58
A18: 2012-02-13 | B18: 0.5796
A19: 2012-02-14 | B19: 0.5805
A20: 2012-02-15 | B20: 0.5814
A21: 2012-02-16 | B21: 0.5802
A22: 2012-02-17 | B22: 0.5782
A23: 2012-02-18 | B23: 0.5823
A24: 2012-02-19 | B24: 0.5823
A25: 2012-02-20 | B25: 0.5819
A26: 2012-02-21 | B26: 0.5819
A27: 2012-02-22 | B27: 0.5815
A28: 2012-02-23 | B28: 0.5829
A29: 2012-02-24 | B29: 0.5852
A30: 2012-02-25 | B30: 0.5837
A31: 2012-02-26 | B31: 0.5842
A32: 2012-02-27 | B32: 0.5839
A33: 2012-02-28 | B33: 0.5841
A34: 2012-02-29 | B34: 0.5859
A35: 2012-03-01 | B35: 0.586
A36: 2012-03-02 | B36: 0.5818
A37: 2012-03-03 | B37: 0.5808
A38: 2012-03-04 | B38: 0.5771
A39: 2012-03-05 | B39: 0.5764
A40: 2012-03-06 | B40: 0.576
A41: 2012-03-07 | B41: 0.5718
A42: 2012-03-08 | B42: 0.5665
A43: 2012-03-09 | B43: 0.5651
A44: 2012-03-10 | B44: 0.5645
A45: 2012-03-11 | B45: 0.5579
A46: 2012-03-12 | B46: 0.5579
A47: 2012-03-13 | B47: 0.5552
A48: 2012-03-14 | B48: 0.5546
A49: 2012-03-15 | B49: 0.5542
A50: 2012-03-16 | B50: 0.5538
A51: 2012-03-17 | B51: 0.5547
A52: 2012-03-18 | B52: 0.5544
A53: 2012-03-19 | B53: 0.5552
A54: 2012-03-20 | B54: 0.5539
A55: 2012-03-21 | B55: 0.5483
A56: 2012-03-22 | B56: 0.5493
A57: 2012-03-23 | B57: 0.5482
A58: 2012-03-24 | B58: 0.5493
A59: 2012-03-25 | B59: 0.5489
A60: 2012-03-26 | B60: 0.5472
A61: 2012-03-27 | B61: 0.5507
A62: 2012-03-28 | B62: 0.5496
A63: 2012-03-29 | B63: 0.5481
A64: 2012-03-30 | B64: 0.5465
A65: 2012-03-31 | B65: 0.5478
A66: 2012-04-01 | B66: 0.5466
A67: 2012-04-02 | B67: 0.5467
A68: 2012-04-03 | B68: 0.5466
A69: 2012-04-04 | B69: 0.5456
A70: 2012-04-05 | B70: 0.5456
A71: 2012-04-06 | B71: 0.5464
A72: 2012-04-07 | B72: 0.5478
A73: 2012-04-08 | B73: 0.5473
A74: 2012-04-09 | B74: 0.5481
A75: 2012-04-10 | B75: 0.5475
A76: 2012-04-11 | B76: 0.5476

Sheet Foreign Receivables
A1: Base Currency: | B1: USD
A2: Invoice Number | B2: Invoice Date | C2: Due Date | D2: Customer Name | E2: Customer Address | F2: City | G2: Country | H2: Amount | I2: Currency | J2: Discount | K2: Days Outstanding | L2: Invoice Date Exchange Rate | M2: Invoice Date Converted Amount | N2: Current Exchange Rate | O2: Current Converted Amount | P2: Foreign Exchange Gain (Loss)
A3: 1 | B3: 2011-12-13 | C3: 2012-01-12 | D3: Test Customer 1 | E3: Test Street 1 | F3: Sao Paulo | G3: Brazil | H3: 10000 | I3: BRL Brazil Real | J3: None | K3: =TODAY()-B3 -> 120 | L3: =VLOOKUP("2011-12-13",BRL!$A$6:$B$186,2,0) -> 0.5494 | M3: =H3/L3 -> 18201.67455 | N3: =BRL!$B$6 -> 0.5476 | O3: =H3/N3 -> 18261.50475 | P3: =O3-M3 -> 59.83019393
A4: 2 | B4: 2011-12-14 | C4: 2012-01-13 | D4: Test Customer 2 | E4: Test Street 2 | F4: Sao Paulo | G4: Brazil | H4: 10000 | I4: BRL Brazil Real | J4: None | K4: 119 | L4: =VLOOKUP("2011-12-14",BRL!$A$6:$B$186,2,0) -> 0.5407 | M4: 18494.54411 | N4: =BRL!$B$6 -> 0.5476 | O4: 18261.50475 | P4: -233.0393615
A5: 3 | B5: 2011-12-15 | C5: 2012-01-14 | D5: Test Customer 3 | E5: Test Street 3 | F5: Sao Paulo | G5: Brazil | H5: 10000 | I5: BRL Brazil Real | J5: None | K5: 118 | L5: =VLOOKUP("2011-12-15",BRL!$A$6:$B$186,2,0) -> 0.5351 | M5: 18688.09568 | N5: =BRL!$B$6 -> 0.5476 | O5: 18261.50475 | P5: -426.5909351
A6: 4 | B6: 2011-12-16 | C6: 2012-01-15 | D6: Test Customer 4 | E6: Test Street 4 | F6: Sao Paulo | G6: Brazil | H6: 10000 | I6: BRL Brazil Real | J6: None | K6: 117 | L6: =VLOOKUP("2011-12-16",BRL!$A$6:$B$186,2,0) -> 0.5343 | M6: 18716.07711 | N6: =BRL!$B$6 -> 0.5476 | O6: 18261.50475 | P6: -454.5723622
A7: 5 | B7: 2011-12-17 | C7: 2012-01-16 | D7: Test Customer 5 | E7: Test Street 5 | F7: Sao Paulo | G7: Brazil | H7: 10000 | I7: BRL Brazil Real | J7: None | K7: 116 | L7: =VLOOKUP("2011-12-17",BRL!$A$6:$B$186,2,0) -> 0.5384 | M7: 18573.55126 | N7: =BRL!$B$6 -> 0.5476 | O7: 18261.50475 | P7: -312.046515
A8: 6 | B8: 2011-12-18 | C8: 2012-01-17 | D8: Test Customer 6 | E8: Test Street 6 | F8: Sao Paulo | G8: Brazil | H8: 10000 | I8: BRL Brazil Real | J8: None | K8: 115 | L8: =VLOOKUP("2011-12-18",BRL!$A$6:$B$186,2,0) -> 0.5385 | M8: 18570.10214 | N8: =BRL!$B$6 -> 0.5476 | O8: 18261.50475 | P8: -308.5973876
A9: 7 | B9: 2011-12-19 | C9: 2012-01-18 | D9: Test Customer 7 | E9: Test Street 7 | F9: Sao Paulo | G9: Brazil | H9: 10000 | I9: BRL Brazil Real | J9: None | K9: 114 | L9: =VLOOKUP("2011-12-19",BRL!$A$6:$B$186,2,0) -> 0.5382 | M9: 18580.45336 | N9: =BRL!$B$6 -> 0.5476 | O9: 18261.50475 | P9: -318.9486151
A10: 8 | B10: 2011-12-20 | C10: 2012-01-19 | D10: Test Customer 8 | E10: Test Street 8 | F10: Sao Paulo | G10: Brazil | H10: 10000 | I10: BRL Brazil Real | J10: None | K10: 113 | L10: =VLOOKUP("2011-12-20",BRL!$A$6:$B$186,2,0) -> 0.5371 | M10: 18618.5068 | N10: =BRL!$B$6 -> 0.5476 | O10: 18261.50475 | P10: -357.0020478
A11: 9 | B11: 2011-12-21 | C11: 2012-01-20 | D11: Test Customer 9 | E11: Test Street 9 | F11: Sao Paulo | G11: Brazil | H11: 10000 | I11: BRL Brazil Real | J11: None | K11: 112 | L11: =VLOOKUP("2011-12-21",BRL!$A$6:$B$186,2,0) -> 0.5378 | M11: 18594.27296 | N11: =BRL!$B$6 -> 0.5476 | O11: 18261.50475 | P11: -332.7682159
A12: 10 | B12: 2011-12-22 | C12: 2012-01-21 | D12: Test Customer 10 | E12: Test Street 10 | F12: Sao Paulo | G12: Brazil | H12: 10000 | I12: BRL Brazil Real | J12: None | K12: 111 | L12: =VLOOKUP("2011-12-22",BRL!$A$6:$B$186,2,0) -> 0.5401 | M12: 18515.0898 | N12: =BRL!$B$6 -> 0.5476 | O12: 18261.50475 | P12: -253.5850502
A13: 11 | B13: 2011-12-23 | C13: 2012-01-22 | D13: Test Customer 11 | E13: Test Street 11 | F13: Sao Paulo | G13: Brazil | H13: 10000 | I13: BRL Brazil Real | J13: None | K13: 110 | L13: =VLOOKUP("2011-12-23",BRL!$A$6:$B$186,2,0) -> 0.5375 | M13: 18604.65116 | N13: =BRL!$B$6 -> 0.5476 | O13: 18261.50475 | P13: -343.1464148
A14: 12 | B14: 2011-12-24 | C14: 2012-01-23 | D14: Test Customer 12 | E14: Test Street 12 | F14: Sao Paulo | G14: Brazil | H14: 10000 | I14: BRL Brazil Real | J14: None | K14: 109 | L14: =VLOOKUP("2011-12-24",BRL!$A$6:$B$186,2,0) -> 0.538 | M14: 18587.36059 | N14: =BRL!$B$6 -> 0.5476 | O14: 18261.50475 | P14: -325.8558468
A15: 13 | B15: 2011-12-25 | C15: 2012-01-24 | D15: Test Customer 13 | E15: Test Street 13 | F15: Sao Paulo | G15: Brazil | H15: 10000 | I15: BRL Brazil Real | J15: None | K15: 108 | L15: =VLOOKUP("2011-12-25",BRL!$A$6:$B$186,2,0) -> 0.537 | M15: 18621.97393 | N15: =BRL!$B$6 -> 0.5476 | O15: 18261.50475 | P15: -360.4691812
A16: 14 | B16: 2011-12-26 | C16: 2012-01-25 | D16: Test Customer 14 | E16: Test Street 14 | F16: Sao Paulo | G16: Brazil | H16: 10000 | I16: BRL Brazil Real | J16: None | K16: 107 | L16: =VLOOKUP("2011-12-26",BRL!$A$6:$B$186,2,0) -> 0.5366 | M16: 18635.85539 | N16: =BRL!$B$6 -> 0.5476 | O16: 18261.50475 | P16: -374.3506378
A17: 15 | B17: 2011-12-27 | C17: 2012-01-26 | D17: Test Customer 15 | E17: Test Street 15 | F17: Sao Paulo | G17: Brazil | H17: 10000 | I17: BRL Brazil Real | J17: None | K17: 106 | L17: =VLOOKUP("2011-12-27",BRL!$A$6:$B$186,2,0) -> 0.5366 | M17: 18635.85539 | N17: =BRL!$B$6 -> 0.5476 | O17: 18261.50475 | P17: -374.3506378
A18: 16 | B18: 2011-12-28 | C18: 2012-01-27 | D18: Test Customer 16 | E18: Test Street 16 | F18: Sao Paulo | G18: Brazil | H18: 10000 | I18: BRL Brazil Real | J18: None | K18: 105 | L18: =VLOOKUP("2011-12-28",BRL!$A$6:$B$186,2,0) -> 0.5371 | M18: 18618.5068 | N18: =BRL!$B$6 -> 0.5476 | O18: 18261.50475 | P18: -357.0020478
A19: 17 | B19: 2011-12-29 | C19: 2012-01-28 | D19: Test Customer 17 | E19: Test Street 17 | F19: Sao Paulo | G19: Brazil | H19: 10000 | I19: BRL Brazil Real | J19: None | K19: 104 | L19: =VLOOKUP("2011-12-29",BRL!$A$6:$B$186,2,0) -> 0.5351 | M19: 18688.09568 | N19: =BRL!$B$6 -> 0.5476 | O19: 18261.50475 | P19: -426.5909351
A20: 18 | B20: 2011-12-30 | C20: 2012-01-29 | D20: Test Customer 18 | E20: Test Street 18 | F20: Sao Paulo | G20: Brazil | H20: 10000 | I20: BRL Brazil Real | J20: None | K20: 103 | L20: =VLOOKUP("2011-12-30",BRL!$A$6:$B$186,2,0) -> 0.5327 | M20: 18772.2921 | N20: =BRL!$B$6 -> 0.5476 | O20: 18261.50475 | P20: -510.7873489
A21: 19 | B21: 2011-12-31 | C21: 2012-01-30 | D21: Test Customer 19 | E21: Test Street 19 | F21: Sao Paulo | G21: Brazil | H21: 10000 | I21: BRL Brazil Real | J21: None | K21: 102 | L21: =VLOOKUP("2011-12-31",BRL!$A$6:$B$186,2,0) -> 0.5357 | M21: 18667.16446 | N21: =BRL!$B$6 -> 0.5476 | O21: 18261.50475 | P21: -405.6597097
A22: 20 | B22: 2012-01-01 | C22: 2012-01-31 | D22: Test Customer 20 | E22: Test Street 20 | F22: Sao Paulo | G22: Brazil | H22: 10000 | I22: BRL Brazil Real | J22: None | K22: 101 | L22: =VLOOKUP("2012-01-01",BRL!$A$6:$B$186,2,0) -> 0.5362 | M22: 18649.75755 | N22: =BRL!$B$6 -> 0.5476 | O22: 18261.50475 | P22: -388.2528052
A23: 21 | B23: 2012-01-02 | C23: 2012-02-01 | D23: Test Customer 21 | E23: Test Street 21 | F23: Sao Paulo | G23: Brazil | H23: 10000 | I23: BRL Brazil Real | J23: None | K23: 100 | L23: =VLOOKUP("2012-01-02",BRL!$A$6:$B$186,2,0) -> 0.5352 | M23: 18684.60389 | N23: =BRL!$B$6 -> 0.5476 | O23: 18261.50475 | P23: -423.0991384
A24: 22 | B24: 2012-01-03 | C24: 2012-02-02 | D24: Test Customer 22 | E24: Test Street 22 | F24: Sao Paulo | G24: Brazil | H24: 10000 | I24: BRL Brazil Real | J24: None | K24: 99 | L24: =VLOOKUP("2012-01-03",BRL!$A$6:$B$186,2,0) -> 0.5347 | M24: 18702.07593 | N24: =BRL!$B$6 -> 0.5476 | O24: 18261.50475 | P24: -440.5711824
A25: 23 | B25: 2012-01-04 | C25: 2012-02-03 | D25: Test Customer 23 | E25: Test Street 23 | F25: Sao Paulo | G25: Brazil | H25: 10000 | I25: BRL Brazil Real | J25: None | K25: 98 | L25: =VLOOKUP("2012-01-04",BRL!$A$6:$B$186,2,0) -> 0.5376 | M25: 18601.19048 | N25: =BRL!$B$6 -> 0.5476 | O25: 18261.50475 | P25: -339.6857282
A26: 24 | B26: 2012-01-05 | C26: 2012-02-04 | D26: Test Customer 24 | E26: Test Street 24 | F26: Sao Paulo | G26: Brazil | H26: 10000 | I26: BRL Brazil Real | J26: None | K26: 97 | L26: =VLOOKUP("2012-01-05",BRL!$A$6:$B$186,2,0) -> 0.5459 | M26: 18318.37333 | N26: =BRL!$B$6 -> 0.5476 | O26: 18261.50475 | P26: -56.86858046
A27: 25 | B27: 2012-01-06 | C27: 2012-02-05 | D27: Test Customer 25 | E27: Test Street 25 | F27: Sao Paulo | G27: Brazil | H27: 10000 | I27: BRL Brazil Real | J27: None | K27: 96 | L27: =VLOOKUP("2012-01-06",BRL!$A$6:$B$186,2,0) -> 0.5451 | M27: 18345.25775 | N27: =BRL!$B$6 -> 0.5476 | O27: 18261.50475 | P27: -83.75300288
A28: 26 | B28: 2012-01-07 | C28: 2012-02-06 | D28: Test Customer 26 | E28: Test Street 26 | F28: Sao Paulo | G28: Brazil | H28: 10000 | I28: BRL Brazil Real | J28: None | K28: 95 | L28: =VLOOKUP("2012-01-07",BRL!$A$6:$B$186,2,0) -> 0.5412 | M28: 18477.4575 | N28: =BRL!$B$6 -> 0.5476 | O28: 18261.50475 | P28: -215.9527539
A29: 27 | B29: 2012-01-08 | C29: 2012-02-07 | D29: Test Customer 27 | E29: Test Street 27 | F29: Sao Paulo | G29: Brazil | H29: 10000 | I29: BRL Brazil Real | J29: None | K29: 94 | L29: =VLOOKUP("2012-01-08",BRL!$A$6:$B$186,2,0) -> 0.5397 | M29: 18528.8123 | N29: =BRL!$B$6 -> 0.5476 | O29: 18261.50475 | P29: -267.3075551
A30: 28 | B30: 2012-01-09 | C30: 2012-02-08 | D30: Test Customer 28 | E30: Test Street 28 | F30: Sao Paulo | G30: Brazil | H30: 10000 | I30: BRL Brazil Real | J30: None | K30: 93 | L30: =VLOOKUP("2012-01-09",BRL!$A$6:$B$186,2,0) -> 0.5394 | M30: 18539.11754 | N30: =BRL!$B$6 -> 0.5476 | O30: 18261.50475 | P30: -277.61279
A31: 29 | B31: 2012-01-10 | C31: 2012-02-09 | D31: Test Customer 29 | E31: Test Street 29 | F31: Sao Paulo | G31: Brazil | H31: 10000 | I31: BRL Brazil Real | J31: None | K31: 92 | L31: =VLOOKUP("2012-01-10",BRL!$A$6:$B$186,2,0) -> 0.5402 | M31: 18511.66235 | N31: =BRL!$B$6 -> 0.5476 | O31: 18261.50475 | P31: -250.1575993
A32: 30 | B32: 2012-01-11 | C32: 2012-02-10 | D32: Test Customer 30 | E32: Test Street 30 | F32: Sao Paulo | G32: Brazil | H32: 10000 | I32: BRL Brazil Real | J32: None | K32: 91 | L32: =VLOOKUP("2012-01-11",BRL!$A$6:$B$186,2,0) -> 0.5481 | M32: 18244.84583 | N32: =BRL!$B$6 -> 0.5476 | O32: 18261.50475 | P32: 16.65891694
A33: 31 | B33: 2012-01-12 | C33: 2012-02-11 | D33: Test Customer 31 | E33: Test Street 31 | F33: Sao Paulo | G33: Brazil | H33: 10000 | I33: BRL Brazil Real | J33: None | K33: 90 | L33: =VLOOKUP("2012-01-12",BRL!$A$6:$B$186,2,0) -> 0.5544 | M33: 18037.51804 | N33: =BRL!$B$6 -> 0.5476 | O33: 18261.50475 | P33: 223.9867105
A34: 32 | B34: 2012-01-13 | C34: 2012-02-12 | D34: Test Customer 32 | E34: Test Street 32 | F34: Sao Paulo | G34: Brazil | H34: 10000 | I34: BRL Brazil Real | J34: None | K34: 89 | L34: =VLOOKUP("2012-01-13",BRL!$A$6:$B$186,2,0) -> 0.5564 | M34: 17972.68152 | N34: =BRL!$B$6 -> 0.5476 | O34: 18261.50475 | P34: 288.8232239
A35: 33 | B35: 2012-01-14 | C35: 2012-02-13 | D35: Test Customer 33 | E35: Test Street 33 | F35: Sao Paulo | G35: Brazil | H35: 10000 | I35: BRL Brazil Real | J35: None | K35: =TODAY()-B35 -> 88 | L35: =VLOOKUP("2012-01-14",BRL!$A$6:$B$186,2,0) -> 0.5596 | M35: =H35/L35 -> 17869.90708 | N35: =BRL!$B$6 -> 0.5476 | O35: =H35/N35 -> 18261.50475 | P35: =O35-M35 -> 391.5976715
A36: 34 | B36: 2012-01-15 | C36: 2012-02-14 | D36: Test Customer 34 | E36: Test Street 34 | F36: Sao Paulo | G36: Brazil | H36: 10000 | I36: BRL Brazil Real | J36: None | K36: 87 | L36: =VLOOKUP("2012-01-15",BRL!$A$6:$B$186,2,0) -> 0.5574 | M36: 17940.43775 | N36: =BRL!$B$6 -> 0.5476 | O36: 18261.50475 | P36: 321.0670013
A37: 35 | B37: 2012-01-16 | C37: 2012-02-15 | D37: Test Customer 35 | E37: Test Street 35 | F37: Sao Paulo | G37: Brazil | H37: 10000 | I37: BRL Brazil Real | J37: None | K37: 86 | L37: =VLOOKUP("2012-01-16",BRL!$A$6:$B$186,2,0) -> 0.5565 | M37: 17969.45193 | N37: =BRL!$B$6 -> 0.5476 | O37: 18261.50475 | P37: 292.0528163
A38: 36 | B38: 2012-01-17 | C38: 2012-02-16 | D38: Test Customer 36 | E38: Test Street 36 | F38: Sao Paulo | G38: Brazil | H38: 10000 | I38: BRL Brazil Real | J38: None | K38: 85 | L38: =VLOOKUP("2012-01-17",BRL!$A$6:$B$186,2,0) -> 0.5585 | M38: 17905.10295 | N38: =BRL!$B$6 -> 0.5476 | O38: 18261.50475 | P38: 356.4017936
A39: 37 | B39: 2012-01-18 | C39: 2012-02-17 | D39: Test Customer 37 | E39: Test Street 37 | F39: Sao Paulo | G39: Brazil | H39: 10000 | I39: BRL Brazil Real | J39: None | K39: 84 | L39: =VLOOKUP("2012-01-18",BRL!$A$6:$B$186,2,0) -> 0.5607 | M39: 17834.8493 | N39: =BRL!$B$6 -> 0.5476 | O39: 18261.50475 | P39: 426.6554525
A40: 38 | B40: 2012-01-19 | C40: 2012-02-18 | D40: Test Customer 38 | E40: Test Street 38 | F40: Sao Paulo | G40: Brazil | H40: 10000 | I40: BRL Brazil Real | J40: None | K40: 83 | L40: =VLOOKUP("2012-01-19",BRL!$A$6:$B$186,2,0) -> 0.5617 | M40: 17803.09774 | N40: =BRL!$B$6 -> 0.5476 | O40: 18261.50475 | P40: 458.407009
A41: 39 | B41: 2012-01-20 | C41: 2012-02-19 | D41: Test Customer 39 | E41: Test Street 39 | F41: Sao Paulo | G41: Brazil | H41: 10000 | I41: BRL Brazil Real | J41: None | K41: 82 | L41: =VLOOKUP("2012-01-20",BRL!$A$6:$B$186,2,0) -> 0.5653 | M41: 17689.72227 | N41: =BRL!$B$6 -> 0.5476 | O41: 18261.50475 | P41: 571.7824766
A42: 40 | B42: 2012-01-21 | C42: 2012-02-20 | D42: Test Customer 40 | E42: Test Street 40 | F42: Sao Paulo | G42: Brazil | H42: 10000 | I42: BRL Brazil Real | J42: None | K42: 81 | L42: =VLOOKUP("2012-01-21",BRL!$A$6:$B$186,2,0) -> 0.5663 | M42: 17658.4849 | N42: =BRL!$B$6 -> 0.5476 | O42: 18261.50475 | P42: 603.019846
A43: 41 | B43: 2012-01-22 | C43: 2012-02-21 | D43: Test Customer 41 | E43: Test Street 41 | F43: Sao Paulo | G43: Brazil | H43: 10000 | I43: BRL Brazil Real | J43: None | K43: 80 | L43: =VLOOKUP("2012-01-22",BRL!$A$6:$B$186,2,0) -> 0.5663 | M43: 17658.4849 | N43: =BRL!$B$6 -> 0.5476 | O43: 18261.50475 | P43: 603.019846
A44: 42 | B44: 2012-01-23 | C44: 2012-02-22 | D44: Test Customer 42 | E44: Test Street 42 | F44: Sao Paulo | G44: Brazil | H44: 10000 | I44: BRL Brazil Real | J44: None | K44: 79 | L44: =VLOOKUP("2012-01-23",BRL!$A$6:$B$186,2,0) -> 0.565 | M44: 17699.11504 | N44: =BRL!$B$6 -> 0.5476 | O44: 18261.50475 | P44: 562.3897037
A45: 43 | B45: 2012-01-24 | C45: 2012-02-23 | D45: Test Customer 43 | E45: Test Street 43 | F45: Sao Paulo | G45: Brazil | H45: 10000 | I45: BRL Brazil Real | J45: None | K45: 78 | L45: =VLOOKUP("2012-01-24",BRL!$A$6:$B$186,2,0) -> 0.5676 | M45: 17618.04087 | N45: =BRL!$B$6 -> 0.5476 | O45: 18261.50475 | P45: 643.4638741
A46: 44 | B46: 2012-01-25 | C46: 2012-02-24 | D46: Test Customer 44 | E46: Test Street 44 | F46: Sao Paulo | G46: Brazil | H46: 10000 | I46: BRL Brazil Real | J46: None | K46: 77 | L46: =VLOOKUP("2012-01-25",BRL!$A$6:$B$186,2,0) -> 0.5699 | M46: 17546.93806 | N46: =BRL!$B$6 -> 0.5476 | O46: 18261.50475 | P46: 714.5666887
A47: 45 | B47: 2012-01-26 | C47: 2012-02-25 | D47: Test Customer 45 | E47: Test Street 45 | F47: Sao Paulo | G47: Brazil | H47: 10000 | I47: BRL Brazil Real | J47: None | K47: 76 | L47: =VLOOKUP("2012-01-26",BRL!$A$6:$B$186,2,0) -> 0.5682 | M47: 17599.43682 | N47: =BRL!$B$6 -> 0.5476 | O47: 18261.50475 | P47: 662.06793
A48: 46 | B48: 2012-01-27 | C48: 2012-02-26 | D48: Test Customer 46 | E48: Test Street 46 | F48: Sao Paulo | G48: Brazil | H48: 10000 | I48: BRL Brazil Real | J48: None | K48: 75 | L48: =VLOOKUP("2012-01-27",BRL!$A$6:$B$186,2,0) -> 0.5708 | M48: 17519.2712 | N48: =BRL!$B$6 -> 0.5476 | O48: 18261.50475 | P48: 742.2335497
A49: 47 | B49: 2012-01-28 | C49: 2012-02-27 | D49: Test Customer 47 | E49: Test Street 47 | F49: Sao Paulo | G49: Brazil | H49: 10000 | I49: BRL Brazil Real | J49: None | K49: 74 | L49: =VLOOKUP("2012-01-28",BRL!$A$6:$B$186,2,0) -> 0.5733 | M49: 17442.87459 | N49: =BRL!$B$6 -> 0.5476 | O49: 18261.50475 | P49: 818.6301623
A50: 48 | B50: 2012-01-29 | C50: 2012-02-28 | D50: Test Customer 48 | E50: Test Street 48 | F50: Sao Paulo | G50: Brazil | H50: 10000 | I50: BRL Brazil Real | J50: None | K50: 73 | L50: =VLOOKUP("2012-01-29",BRL!$A$6:$B$186,2,0) -> 0.5732 | M50: 17445.91766 | N50: =BRL!$B$6 -> 0.5476 | O50: 18261.50475 | P50: 815.5870927
A51: 49 | B51: 2012-01-30 | C51: 2012-02-29 | D51: Test Customer 49 | E51: Test Street 49 | F51: Sao Paulo | G51: Brazil | H51: 10000 | I51: BRL Brazil Real | J51: None | K51: 72 | L51: =VLOOKUP("2012-01-30",BRL!$A$6:$B$186,2,0) -> 0.5721 | M51: 17479.46163 | N51: =BRL!$B$6 -> 0.5476 | O51: 18261.50475 | P51: 782.0431154
A52: 50 | B52: 2012-01-31 | C52: 2012-03-01 | D52: Test Customer 50 | E52: Test Street 50 | F52: Sao Paulo | G52: Brazil | H52: 10000 | I52: BRL Brazil Real | J52: None | K52: 71 | L52: =VLOOKUP("2012-01-31",BRL!$A$6:$B$186,2,0) -> 0.5721 | M52: 17479.46163 | N52: =BRL!$B$6 -> 0.5476 | O52: 18261.50475 | P52: 782.0431154
A53: 51 | B53: 2012-02-01 | C53: 2012-03-02 | D53: Test Customer 51 | E53: Test Street 51 | F53: Sao Paulo | G53: Brazil | H53: 10000 | I53: BRL Brazil Real | J53: None | K53: 70 | L53: =VLOOKUP("2012-02-01",BRL!$A$6:$B$186,2,0) -> 0.572 | M53: 17482.51748 | N53: =BRL!$B$6 -> 0.5476 | O53: 18261.50475 | P53: 778.9872655
A54: 52 | B54: 2012-02-02 | C54: 2012-03-03 | D54: Test Customer 52 | E54: Test Street 52 | F54: Sao Paulo | G54: Brazil | H54: 10000 | I54: BRL Brazil Real | J54: None | K54: 69 | L54: =VLOOKUP("2012-02-02",BRL!$A$6:$B$186,2,0) -> 0.5738 | M54: 17427.67515 | N54: =BRL!$B$6 -> 0.5476 | O54: 18261.50475 | P54: 833.8295999
A55: 53 | B55: 2012-02-03 | C55: 2012-03-04 | D55: Test Customer 53 | E55: Test Street 53 | F55: Sao Paulo | G55: Brazil | H55: 10000 | I55: BRL Brazil Real | J55: None | K55: 68 | L55: =VLOOKUP("2012-02-03",BRL!$A$6:$B$186,2,0) -> 0.5773 | M55: 17322.01628 | N55: =BRL!$B$6 -> 0.5476 | O55: 18261.50475 | P55: 939.4884653
A56: 54 | B56: 2012-02-04 | C56: 2012-03-05 | D56: Test Customer 54 | E56: Test Street 54 | F56: Sao Paulo | G56: Brazil | H56: 10000 | I56: BRL Brazil Real | J56: None | K56: 67 | L56: =VLOOKUP("2012-02-04",BRL!$A$6:$B$186,2,0) -> 0.5805 | M56: 17226.52885 | N56: =BRL!$B$6 -> 0.5476 | O56: 18261.50475 | P56: 1034.975894
A57: 55 | B57: 2012-02-05 | C57: 2012-03-06 | D57: Test Customer 55 | E57: Test Street 55 | F57: Sao Paulo | G57: Brazil | H57: 10000 | I57: BRL Brazil Real | J57: None | K57: 66 | L57: =VLOOKUP("2012-02-05",BRL!$A$6:$B$186,2,0) -> 0.5819 | M57: 17185.08335 | N57: =BRL!$B$6 -> 0.5476 | O57: 18261.50475 | P57: 1076.4214
A58: 56 | B58: 2012-02-06 | C58: 2012-03-07 | D58: Test Customer 56 | E58: Test Street 56 | F58: Sao Paulo | G58: Brazil | H58: 10000 | I58: BRL Brazil Real | J58: None | K58: 65 | L58: =VLOOKUP("2012-02-06",BRL!$A$6:$B$186,2,0) -> 0.582 | M58: 17182.13058 | N58: =BRL!$B$6 -> 0.5476 | O58: 18261.50475 | P58: 1079.374164
A59: 57 | B59: 2012-02-07 | C59: 2012-03-08 | D59: Test Customer 57 | E59: Test Street 57 | F59: Sao Paulo | G59: Brazil | H59: 10000 | I59: BRL Brazil Real | J59: None | K59: 64 | L59: =VLOOKUP("2012-02-07",BRL!$A$6:$B$186,2,0) -> 0.5808 | M59: 17217.63085 | N59: =BRL!$B$6 -> 0.5476 | O59: 18261.50475 | P59: 1043.873894
A60: 58 | B60: 2012-02-08 | C60: 2012-03-09 | D60: Test Customer 58 | E60: Test Street 58 | F60: Sao Paulo | G60: Brazil | H60: 10000 | I60: BRL Brazil Real | J60: None | K60: 63 | L60: =VLOOKUP("2012-02-08",BRL!$A$6:$B$186,2,0) -> 0.5788 | M60: 17277.12509 | N60: =BRL!$B$6 -> 0.5476 | O60: 18261.50475 | P60: 984.3796616
A61: 59 | B61: 2012-02-09 | C61: 2012-03-10 | D61: Test Customer 59 | E61: Test Street 59 | F61: Sao Paulo | G61: Brazil | H61: 10000 | I61: BRL Brazil Real | J61: None | K61: 62 | L61: =VLOOKUP("2012-02-09",BRL!$A$6:$B$186,2,0) -> 0.5796 | M61: 17253.27812 | N61: =BRL!$B$6 -> 0.5476 | O61: 18261.50475 | P61: 1008.226625
A62: 60 | B62: 2012-02-10 | C62: 2012-03-11 | D62: Test Customer 60 | E62: Test Street 60 | F62: Sao Paulo | G62: Brazil | H62: 10000 | I62: BRL Brazil Real | J62: None | K62: 61 | L62: =VLOOKUP("2012-02-10",BRL!$A$6:$B$186,2,0) -> 0.5803 | M62: 17232.46597 | N62: =BRL!$B$6 -> 0.5476 | O62: 18261.50475 | P62: 1029.038782
A63: 61 | B63: 2012-02-11 | C63: 2012-03-12 | D63: Test Customer 61 | E63: Test Street 61 | F63: Sao Paulo | G63: Brazil | H63: 10000 | I63: BRL Brazil Real | J63: None | K63: 60 | L63: =VLOOKUP("2012-02-11",BRL!$A$6:$B$186,2,0) -> 0.5801 | M63: 17238.40717 | N63: =BRL!$B$6 -> 0.5476 | O63: 18261.50475 | P63: 1023.097577
A64: 62 | B64: 2012-02-12 | C64: 2012-03-13 | D64: Test Customer 62 | E64: Test Street 62 | F64: Sao Paulo | G64: Brazil | H64: 10000 | I64: BRL Brazil Real | J64: None | K64: 59 | L64: =VLOOKUP("2012-02-12",BRL!$A$6:$B$186,2,0) -> 0.58 | M64: 17241.37931 | N64: =BRL!$B$6 -> 0.5476 | O64: 18261.50475 | P64: 1020.125438
A65: 63 | B65: 2012-02-13 | C65: 2012-03-14 | D65: Test Customer 63 | E65: Test Street 63 | F65: Sao Paulo | G65: Brazil | H65: 10000 | I65: BRL Brazil Real | J65: None | K65: 58 | L65: =VLOOKUP("2012-02-13",BRL!$A$6:$B$186,2,0) -> 0.5796 | M65: 17253.27812 | N65: =BRL!$B$6 -> 0.5476 | O65: 18261.50475 | P65: 1008.226625
A66: 64 | B66: 2012-02-14 | C66: 2012-03-15 | D66: Test Customer 64 | E66: Test Street 64 | F66: Sao Paulo | G66: Brazil | H66: 10000 | I66: BRL Brazil Real | J66: None | K66: 57 | L66: =VLOOKUP("2012-02-14",BRL!$A$6:$B$186,2,0) -> 0.5805 | M66: 17226.52885 | N66: =BRL!$B$6 -> 0.5476 | O66: 18261.50475 | P66: 1034.975894
A67: 65 | B67: 2012-02-15 | C67: 2012-03-16 | D67: Test Customer 65 | E67: Test Street 65 | F67: Sao Paulo | G67: Brazil | H67: 10000 | I67: BRL Brazil Real | J67: None | K67: =TODAY()-B67 -> 56 | L67: =VLOOKUP("2012-02-15",BRL!$A$6:$B$186,2,0) -> 0.5814 | M67: =H67/L67 -> 17199.8624 | N67: =BRL!$B$6 -> 0.5476 | O67: =H67/N67 -> 18261.50475 | P67: =O67-M67 -> 1061.642347
A68: 66 | B68: 2012-02-16 | C68: 2012-03-17 | D68: Test Customer 66 | E68: Test Street 66 | F68: Sao Paulo | G68: Brazil | H68: 10000 | I68: BRL Brazil Real | J68: None | K68: 55 | L68: =VLOOKUP("2012-02-16",BRL!$A$6:$B$186,2,0) -> 0.5802 | M68: 17235.43606 | N68: =BRL!$B$6 -> 0.5476 | O68: 18261.50475 | P68: 1026.068691
A69: 67 | B69: 2012-02-17 | C69: 2012-03-18 | D69: Test Customer 67 | E69: Test Street 67 | F69: Sao Paulo | G69: Brazil | H69: 10000 | I69: BRL Brazil Real | J69: None | K69: 54 | L69: =VLOOKUP("2012-02-17",BRL!$A$6:$B$186,2,0) -> 0.5782 | M69: 17295.05361 | N69: =BRL!$B$6 -> 0.5476 | O69: 18261.50475 | P69: 966.4511333
A70: 68 | B70: 2012-02-18 | C70: 2012-03-19 | D70: Test Customer 68 | E70: Test Street 68 | F70: Sao Paulo | G70: Brazil | H70: 10000 | I70: BRL Brazil Real | J70: None | K70: 53 | L70: =VLOOKUP("2012-02-18",BRL!$A$6:$B$186,2,0) -> 0.5823 | M70: 17173.27838 | N70: =BRL!$B$6 -> 0.5476 | O70: 18261.50475 | P70: 1088.226369
A71: 69 | B71: 2012-02-19 | C71: 2012-03-20 | D71: Test Customer 69 | E71: Test Street 69 | F71: Sao Paulo | G71: Brazil | H71: 10000 | I71: BRL Brazil Real | J71: None | K71: 52 | L71: =VLOOKUP("2012-02-19",BRL!$A$6:$B$186,2,0) -> 0.5823 | M71: 17173.27838 | N71: =BRL!$B$6 -> 0.5476 | O71: 18261.50475 | P71: 1088.226369
A72: 70 | B72: 2012-02-20 | C72: 2012-03-21 | D72: Test Customer 70 | E72: Test Street 70 | F72: Sao Paulo | G72: Brazil | H72: 10000 | I72: BRL Brazil Real | J72: None | K72: 51 | L72: =VLOOKUP("2012-02-20",BRL!$A$6:$B$186,2,0) -> 0.5819 | M72: 17185.08335 | N72: =BRL!$B$6 -> 0.5476 | O72: 18261.50475 | P72: 1076.4214
A73: 71 | B73: 2012-02-21 | C73: 2012-03-22 | D73: Test Customer 71 | E73: Test Street 71 | F73: Sao Paulo | G73: Brazil | H73: 10000 | I73: BRL Brazil Real | J73: None | K73: 50 | L73: =VLOOKUP("2012-02-21",BRL!$A$6:$B$186,2,0) -> 0.5819 | M73: 17185.08335 | N73: =BRL!$B$6 -> 0.5476 | O73: 18261.50475 | P73: 1076.4214
A74: 72 | B74: 2012-02-22 | C74: 2012-03-23 | D74: Test Customer 72 | E74: Test Street 72 | F74: Sao Paulo | G74: Brazil | H74: 10000 | I74: BRL Brazil Real | J74: None | K74: 49 | L74: =VLOOKUP("2012-02-22",BRL!$A$6:$B$186,2,0) -> 0.5815 | M74: 17196.90456 | N74: =BRL!$B$6 -> 0.5476 | O74: 18261.50475 | P74: 1064.600191
A75: 73 | B75: 2012-02-23 | C75: 2012-03-24 | D75: Test Customer 73 | E75: Test Street 73 | F75: Sao Paulo | G75: Brazil | H75: 10000 | I75: BRL Brazil Real | J75: None | K75: 48 | L75: =VLOOKUP("2012-02-23",BRL!$A$6:$B$186,2,0) -> 0.5829 | M75: 17155.6013 | N75: =BRL!$B$6 -> 0.5476 | O75: 18261.50475 | P75: 1105.903444
A76: 74 | B76: 2012-02-24 | C76: 2012-03-25 | D76: Test Customer 74 | E76: Test Street 74 | F76: Sao Paulo | G76: Brazil | H76: 10000 | I76: BRL Brazil Real | J76: None | K76: 47 | L76: =VLOOKUP("2012-02-24",BRL!$A$6:$B$186,2,0) -> 0.5852 | M76: 17088.17498 | N76: =BRL!$B$6 -> 0.5476 | O76: 18261.50475 | P76: 1173.329765
A77: 75 | B77: 2012-02-25 | C77: 2012-03-26 | D77: Test Customer 75 | E77: Test Street 75 | F77: Sao Paulo | G77: Brazil | H77: 10000 | I77: BRL Brazil Real | J77: None | K77: 46 | L77: =VLOOKUP("2012-02-25",BRL!$A$6:$B$186,2,0) -> 0.5837 | M77: 17132.0884 | N77: =BRL!$B$6 -> 0.5476 | O77: 18261.50475 | P77: 1129.416346
A78: 76 | B78: 2012-02-26 | C78: 2012-03-27 | D78: Test Customer 76 | E78: Test Street 76 | F78: Sao Paulo | G78: Brazil | H78: 10000 | I78: BRL Brazil Real | J78: None | K78: 45 | L78: =VLOOKUP("2012-02-26",BRL!$A$6:$B$186,2,0) -> 0.5842 | M78: 17117.42554 | N78: =BRL!$B$6 -> 0.5476 | O78: 18261.50475 | P78: 1144.079209
A79: 77 | B79: 2012-02-27 | C79: 2012-03-28 | D79: Test Customer 77 | E79: Test Street 77 | F79: Sao Paulo | G79: Brazil | H79: 10000 | I79: BRL Brazil Real | J79: None | K79: 44 | L79: =VLOOKUP("2012-02-27",BRL!$A$6:$B$186,2,0) -> 0.5839 | M79: 17126.22024 | N79: =BRL!$B$6 -> 0.5476 | O79: 18261.50475 | P79: 1135.284505
A80: 78 | B80: 2012-02-28 | C80: 2012-03-29 | D80: Test Customer 78 | E80: Test Street 78 | F80: Sao Paulo | G80: Brazil | H80: 10000 | I80: BRL Brazil Real | J80: None | K80: 43 | L80: =VLOOKUP("2012-02-28",BRL!$A$6:$B$186,2,0) -> 0.5841 | M80: 17120.3561 | N80: =BRL!$B$6 -> 0.5476 | O80: 18261.50475 | P80: 1141.148645
A81: 79 | B81: 2012-02-29 | C81: 2012-03-30 | D81: Test Customer 79 | E81: Test Street 79 | F81: Sao Paulo | G81: Brazil | H81: 10000 | I81: BRL Brazil Real | J81: None | K81: 42 | L81: =VLOOKUP("2012-02-29",BRL!$A$6:$B$186,2,0) -> 0.5859 | M81: 17067.759 | N81: =BRL!$B$6 -> 0.5476 | O81: 18261.50475 | P81: 1193.745745
A82: 80 | B82: 2012-03-01 | C82: 2012-03-31 | D82: Test Customer 80 | E82: Test Street 80 | F82: Sao Paulo | G82: Brazil | H82: 10000 | I82: BRL Brazil Real | J82: None | K82: 41 | L82: =VLOOKUP("2012-03-01",BRL!$A$6:$B$186,2,0) -> 0.586 | M82: 17064.84642 | N82: =BRL!$B$6 -> 0.5476 | O82: 18261.50475 | P82: 1196.658332
A83: 81 | B83: 2012-03-02 | C83: 2012-04-01 | D83: Test Customer 81 | E83: Test Street 81 | F83: Sao Paulo | G83: Brazil | H83: 10000 | I83: BRL Brazil Real | J83: None | K83: 40 | L83: =VLOOKUP("2012-03-02",BRL!$A$6:$B$186,2,0) -> 0.5818 | M83: 17188.03713 | N83: =BRL!$B$6 -> 0.5476 | O83: 18261.50475 | P83: 1073.467622
A84: 82 | B84: 2012-03-03 | C84: 2012-04-02 | D84: Test Customer 82 | E84: Test Street 82 | F84: Sao Paulo | G84: Brazil | H84: 10000 | I84: BRL Brazil Real | J84: None | K84: 39 | L84: =VLOOKUP("2012-03-03",BRL!$A$6:$B$186,2,0) -> 0.5808 | M84: 17217.63085 | N84: =BRL!$B$6 -> 0.5476 | O84: 18261.50475 | P84: 1043.873894
A85: 83 | B85: 2012-03-04 | C85: 2012-04-03 | D85: Test Customer 83 | E85: Test Street 83 | F85: Sao Paulo | G85: Brazil | H85: 10000 | I85: BRL Brazil Real | J85: None | K85: 38 | L85: =VLOOKUP("2012-03-04",BRL!$A$6:$B$186,2,0) -> 0.5771 | M85: 17328.01941 | N85: =BRL!$B$6 -> 0.5476 | O85: 18261.50475 | P85: 933.4853406
A86: 84 | B86: 2012-03-05 | C86: 2012-04-04 | D86: Test Customer 84 | E86: Test Street 84 | F86: Sao Paulo | G86: Brazil | H86: 10000 | I86: BRL Brazil Real | J86: None | K86: 37 | L86: =VLOOKUP("2012-03-05",BRL!$A$6:$B$186,2,0) -> 0.5764 | M86: 17349.06315 | N86: =BRL!$B$6 -> 0.5476 | O86: 18261.50475 | P86: 912.4415974
A87: 85 | B87: 2012-03-06 | C87: 2012-04-05 | D87: Test Customer 85 | E87: Test Street 85 | F87: Sao Paulo | G87: Brazil | H87: 10000 | I87: BRL Brazil Real | J87: None | K87: 36 | L87: =VLOOKUP("2012-03-06",BRL!$A$6:$B$186,2,0) -> 0.576 | M87: 17361.11111 | N87: =BRL!$B$6 -> 0.5476 | O87: 18261.50475 | P87: 900.3936369
A88: 86 | B88: 2012-03-07 | C88: 2012-04-06 | D88: Test Customer 86 | E88: Test Street 86 | F88: Sao Paulo | G88: Brazil | H88: 10000 | I88: BRL Brazil Real | J88: None | K88: 35 | L88: =VLOOKUP("2012-03-07",BRL!$A$6:$B$186,2,0) -> 0.5718 | M88: 17488.63239 | N88: =BRL!$B$6 -> 0.5476 | O88: 18261.50475 | P88: 772.872359
A89: 87 | B89: 2012-03-08 | C89: 2012-04-07 | D89: Test Customer 87 | E89: Test Street 87 | F89: Sao Paulo | G89: Brazil | H89: 10000 | I89: BRL Brazil Real | J89: None | K89: 34 | L89: =VLOOKUP("2012-03-08",BRL!$A$6:$B$186,2,0) -> 0.5665 | M89: 17652.25066 | N89: =BRL!$B$6 -> 0.5476 | O89: 18261.50475 | P89: 609.254086
A90: 88 | B90: 2012-03-09 | C90: 2012-04-08 | D90: Test Customer 88 | E90: Test Street 88 | F90: Sao Paulo | G90: Brazil | H90: 10000 | I90: BRL Brazil Real | J90: None | K90: 33 | L90: =VLOOKUP("2012-03-09",BRL!$A$6:$B$186,2,0) -> 0.5651 | M90: 17695.98301 | N90: =BRL!$B$6 -> 0.5476 | O90: 18261.50475 | P90: 565.5217361
A91: 89 | B91: 2012-03-10 | C91: 2012-04-09 | D91: Test Customer 89 | E91: Test Street 89 | F91: Sao Paulo | G91: Brazil | H91: 10000 | I91: BRL Brazil Real | J91: None | K91: 32 | L91: =VLOOKUP("2012-03-10",BRL!$A$6:$B$186,2,0) -> 0.5645 | M91: 17714.79185 | N91: =BRL!$B$6 -> 0.5476 | O91: 18261.50475 | P91: 546.7128968
A92: 90 | B92: 2012-03-11 | C92: 2012-04-10 | D92: Test Customer 90 | E92: Test Street 90 | F92: Sao Paulo | G92: Brazil | H92: 10000 | I92: BRL Brazil Real | J92: None | K92: 31 | L92: =VLOOKUP("2012-03-11",BRL!$A$6:$B$186,2,0) -> 0.5579 | M92: 17924.3592 | N92: =BRL!$B$6 -> 0.5476 | O92: 18261.50475 | P92: 337.1455438
A93: 91 | B93: 2012-03-12 | C93: 2012-04-11 | D93: Test Customer 91 | E93: Test Street 91 | F93: Sao Paulo | G93: Brazil | H93: 10000 | I93: BRL Brazil Real | J93: None | K93: 30 | L93: =VLOOKUP("2012-03-12",BRL!$A$6:$B$186,2,0) -> 0.5579 | M93: 17924.3592 | N93: =BRL!$B$6 -> 0.5476 | O93: 18261.50475 | P93: 337.1455438
A94: 92 | B94: 2012-03-13 | C94: 2012-04-12 | D94: Test Customer 92 | E94: Test Street 92 | F94: Sao Paulo | G94: Brazil | H94: 10000 | I94: BRL Brazil Real | J94: None | K94: 29 | L94: =VLOOKUP("2012-03-13",BRL!$A$6:$B$186,2,0) -> 0.5552 | M94: 18011.52738 | N94: =BRL!$B$6 -> 0.5476 | O94: 18261.50475 | P94: 249.9773705
A95: 93 | B95: 2012-03-14 | C95: 2012-04-13 | D95: Test Customer 93 | E95: Test Street 93 | F95: Sao Paulo | G95: Brazil | H95: 10000 | I95: BRL Brazil Real | J95: None | K95: 28 | L95: =VLOOKUP("2012-03-14",BRL!$A$6:$B$186,2,0) -> 0.5546 | M95: 18031.01334 | N95: =BRL!$B$6 -> 0.5476 | O95: 18261.50475 | P95: 230.491405
A96: 94 | B96: 2012-03-15 | C96: 2012-04-14 | D96: Test Customer 94 | E96: Test Street 94 | F96: Sao Paulo | G96: Brazil | H96: 10000 | I96: BRL Brazil Real | J96: None | K96: 27 | L96: =VLOOKUP("2012-03-15",BRL!$A$6:$B$186,2,0) -> 0.5542 | M96: 18044.02743 | N96: =BRL!$B$6 -> 0.5476 | O96: 18261.50475 | P96: 217.4773211
A97: 95 | B97: 2012-03-16 | C97: 2012-04-15 | D97: Test Customer 95 | E97: Test Street 95 | F97: Sao Paulo | G97: Brazil | H97: 10000 | I97: BRL Brazil Real | J97: None | K97: 26 | L97: =VLOOKUP("2012-03-16",BRL!$A$6:$B$186,2,0) -> 0.5538 | M97: 18057.06031 | N97: =BRL!$B$6 -> 0.5476 | O97: 18261.50475 | P97: 204.4444374
A98: 96 | B98: 2012-03-17 | C98: 2012-04-16 | D98: Test Customer 96 | E98: Test Street 96 | F98: Sao Paulo | G98: Brazil | H98: 10000 | I98: BRL Brazil Real | J98: None | K98: 25 | L98: =VLOOKUP("2012-03-17",BRL!$A$6:$B$186,2,0) -> 0.5547 | M98: 18027.76275 | N98: =BRL!$B$6 -> 0.5476 | O98: 18261.50475 | P98: 233.7419933
A99: 97 | B99: 2012-03-18 | C99: 2012-04-17 | D99: Test Customer 97 | E99: Test Street 97 | F99: Sao Paulo | G99: Brazil | H99: 10000 | I99: BRL Brazil Real | J99: None | K99: =TODAY()-B99 -> 24 | L99: =VLOOKUP("2012-03-18",BRL!$A$6:$B$186,2,0) -> 0.5544 | M99: =H99/L99 -> 18037.51804 | N99: =BRL!$B$6 -> 0.5476 | O99: =H99/N99 -> 18261.50475 | P99: =O99-M99 -> 223.9867105
A100: 98 | B100: 2012-03-19 | C100: 2012-04-18 | D100: Test Customer 98 | E100: Test Street 98 | F100: Sao Paulo | G100: Brazil | H100: 10000 | I100: BRL Brazil Real | J100: None | K100: 23 | L100: =VLOOKUP("2012-03-19",BRL!$A$6:$B$186,2,0) -> 0.5552 | M100: 18011.52738 | N100: =BRL!$B$6 -> 0.5476 | O100: 18261.50475 | P100: 249.9773705
A101: 99 | B101: 2012-03-20 | C101: 2012-04-19 | D101: Test Customer 99 | E101: Test Street 99 | F101: Sao Paulo | G101: Brazil | H101: 10000 | I101: BRL Brazil Real | J101: None | K101: 22 | L101: =VLOOKUP("2012-03-20",BRL!$A$6:$B$186,2,0) -> 0.5539 | M101: 18053.80032 | N101: =BRL!$B$6 -> 0.5476 | O101: 18261.50475 | P101: 207.704423
A102: 100 | B102: 2012-03-21 | C102: 2012-04-20 | D102: Test Customer 100 | E102: Test Street 100 | F102: Sao Paulo | G102: Brazil | H102: 10000 | I102: BRL Brazil Real | J102: None | K102: 21 | L102: =VLOOKUP("2012-03-21",BRL!$A$6:$B$186,2,0) -> 0.5483 | M102: 18238.19077 | N102: =BRL!$B$6 -> 0.5476 | O102: 18261.50475 | P102: 23.31397652
A103: 101 | B103: 2012-03-22 | C103: 2012-04-21 | D103: Test Customer 101 | E103: Test Street 101 | F103: Sao Paulo | G103: Brazil | H103: 10000 | I103: BRL Brazil Real | J103: None | K103: 20 | L103: =VLOOKUP("2012-03-22",BRL!$A$6:$B$186,2,0) -> 0.5493 | M103: 18204.98817 | N103: =BRL!$B$6 -> 0.5476 | O103: 18261.50475 | P103: 56.51658123
A104: 102 | B104: 2012-03-23 | C104: 2012-04-22 | D104: Test Customer 102 | E104: Test Street 102 | F104: Sao Paulo | G104: Brazil | H104: 10000 | I104: BRL Brazil Real | J104: None | K104: 19 | L104: =VLOOKUP("2012-03-23",BRL!$A$6:$B$186,2,0) -> 0.5482 | M104: 18241.51769 | N104: =BRL!$B$6 -> 0.5476 | O104: 18261.50475 | P104: 19.98705372
A105: 103 | B105: 2012-03-24 | C105: 2012-04-23 | D105: Test Customer 103 | E105: Test Street 103 | F105: Sao Paulo | G105: Brazil | H105: 10000 | I105: BRL Brazil Real | J105: None | K105: 18 | L105: =VLOOKUP("2012-03-24",BRL!$A$6:$B$186,2,0) -> 0.5493 | M105: 18204.98817 | N105: =BRL!$B$6 -> 0.5476 | O105: 18261.50475 | P105: 56.51658123
A106: 104 | B106: 2012-03-25 | C106: 2012-04-24 | D106: Test Customer 104 | E106: Test Street 104 | F106: Sao Paulo | G106: Brazil | H106: 10000 | I106: BRL Brazil Real | J106: None | K106: 17 | L106: =VLOOKUP("2012-03-25",BRL!$A$6:$B$186,2,0) -> 0.5489 | M106: 18218.25469 | N106: =BRL!$B$6 -> 0.5476 | O106: 18261.50475 | P106: 43.25005679
A107: 105 | B107: 2012-03-26 | C107: 2012-04-25 | D107: Test Customer 105 | E107: Test Street 105 | F107: Sao Paulo | G107: Brazil | H107: 10000 | I107: BRL Brazil Real | J107: None | K107: 16 | L107: =VLOOKUP("2012-03-26",BRL!$A$6:$B$186,2,0) -> 0.5472 | M107: 18274.8538 | N107: =BRL!$B$6 -> 0.5476 | O107: 18261.50475 | P107: -13.34905318
A108: 106 | B108: 2012-03-27 | C108: 2012-04-26 | D108: Test Customer 106 | E108: Test Street 106 | F108: Sao Paulo | G108: Brazil | H108: 10000 | I108: BRL Brazil Real | J108: None | K108: 15 | L108: =VLOOKUP("2012-03-27",BRL!$A$6:$B$186,2,0) -> 0.5507 | M108: 18158.7071 | N108: =BRL!$B$6 -> 0.5476 | O108: 18261.50475 | P108: 102.7976479
A109: 107 | B109: 2012-03-28 | C109: 2012-04-27 | D109: Test Customer 107 | E109: Test Street 107 | F109: Sao Paulo | G109: Brazil | H109: 10000 | I109: BRL Brazil Real | J109: None | K109: 14 | L109: =VLOOKUP("2012-03-28",BRL!$A$6:$B$186,2,0) -> 0.5496 | M109: 18195.05095 | N109: =BRL!$B$6 -> 0.5476 | O109: 18261.50475 | P109: 66.45380185
A110: 108 | B110: 2012-03-29 | C110: 2012-04-28 | D110: Test Customer 108 | E110: Test Street 108 | F110: Sao Paulo | G110: Brazil | H110: 10000 | I110: BRL Brazil Real | J110: None | K110: 13 | L110: =VLOOKUP("2012-03-29",BRL!$A$6:$B$186,2,0) -> 0.5481 | M110: 18244.84583 | N110: =BRL!$B$6 -> 0.5476 | O110: 18261.50475 | P110: 16.65891694
A111: 109 | B111: 2012-03-30 | C111: 2012-04-29 | D111: Test Customer 109 | E111: Test Street 109 | F111: Sao Paulo | G111: Brazil | H111: 10000 | I111: BRL Brazil Real | J111: None | K111: 12 | L111: =VLOOKUP("2012-03-30",BRL!$A$6:$B$186,2,0) -> 0.5465 | M111: 18298.26167 | N111: =BRL!$B$6 -> 0.5476 | O111: 18261.50475 | P111: -36.75691715
A112: 110 | B112: 2012-03-31 | C112: 2012-04-30 | D112: Test Customer 110 | E112: Test Street 110 | F112: Sao Paulo | G112: Brazil | H112: 10000 | I112: BRL Brazil Real | J112: None | K112: 11 | L112: =VLOOKUP("2012-03-31",BRL!$A$6:$B$186,2,0) -> 0.5478 | M112: 18254.83753 | N112: =BRL!$B$6 -> 0.5476 | O112: 18261.50475 | P112: 6.667216045
A113: 111 | B113: 2012-04-01 | C113: 2012-05-01 | D113: Test Customer 111 | E113: Test Street 111 | F113: Sao Paulo | G113: Brazil | H113: 10000 | I113: BRL Brazil Real | J113: None | K113: 10 | L113: =VLOOKUP("2012-04-01",BRL!$A$6:$B$186,2,0) -> 0.5466 | M113: 18294.91401 | N113: =BRL!$B$6 -> 0.5476 | O113: 18261.50475 | P113: -33.40926591
A114: 112 | B114: 2012-04-02 | C114: 2012-05-02 | D114: Test Customer 112 | E114: Test Street 112 | F114: Sao Paulo | G114: Brazil | H114: 10000 | I114: BRL Brazil Real | J114: None | K114: 9 | L114: =VLOOKUP("2012-04-02",BRL!$A$6:$B$186,2,0) -> 0.5467 | M114: 18291.56759 | N114: =BRL!$B$6 -> 0.5476 | O114: 18261.50475 | P114: -30.06283935
A115: 113 | B115: 2012-04-03 | C115: 2012-05-03 | D115: Test Customer 113 | E115: Test Street 113 | F115: Sao Paulo | G115: Brazil | H115: 10000 | I115: BRL Brazil Real | J115: None | K115: 8 | L115: =VLOOKUP("2012-04-03",BRL!$A$6:$B$186,2,0) -> 0.5466 | M115: 18294.91401 | N115: =BRL!$B$6 -> 0.5476 | O115: 18261.50475 | P115: -33.40926591
A116: 114 | B116: 2012-04-04 | C116: 2012-05-04 | D116: Test Customer 114 | E116: Test Street 114 | F116: Sao Paulo | G116: Brazil | H116: 10000 | I116: BRL Brazil Real | J116: None | K116: 7 | L116: =VLOOKUP("2012-04-04",BRL!$A$6:$B$186,2,0) -> 0.5456 | M116: 18328.44575 | N116: =BRL!$B$6 -> 0.5476 | O116: 18261.50475 | P116: -66.94099981
A117: 115 | B117: 2012-04-05 | C117: 2012-05-05 | D117: Test Customer 115 | E117: Test Street 115 | F117: Sao Paulo | G117: Brazil | H117: 10000 | I117: BRL Brazil Real | J117: None | K117: 6 | L117: =VLOOKUP("2012-04-05",BRL!$A$6:$B$186,2,0) -> 0.5456 | M117: 18328.44575 | N117: =BRL!$B$6 -> 0.5476 | O117: 18261.50475 | P117: -66.94099981
A118: 116 | B118: 2012-04-06 | C118: 2012-05-06 | D118: Test Customer 116 | E118: Test Street 116 | F118: Sao Paulo | G118: Brazil | H118: 10000 | I118: BRL Brazil Real | J118: None | K118: 5 | L118: =VLOOKUP("2012-04-06",BRL!$A$6:$B$186,2,0) -> 0.5464 | M118: 18301.61054 | N118: =BRL!$B$6 -> 0.5476 | O118: 18261.50475 | P118: -40.10579374
A119: 117 | B119: 2012-04-07 | C119: 2012-05-07 | D119: Test Customer 117 | E119: Test Street 117 | F119: Sao Paulo | G119: Brazil | H119: 10000 | I119: BRL Brazil Real | J119: None | K119: 4 | L119: =VLOOKUP("2012-04-07",BRL!$A$6:$B$186,2,0) -> 0.5478 | M119: 18254.83753 | N119: =BRL!$B$6 -> 0.5476 | O119: 18261.50475 | P119: 6.667216045
A120: 118 | B120: 2012-04-08 | C120: 2012-05-08 | D120: Test Customer 118 | E120: Test Street 118 | F120: Sao Paulo | G120: Brazil | H120: 10000 | I120: BRL Brazil Real | J120: None | K120: 3 | L120: =VLOOKUP("2012-04-08",BRL!$A$6:$B$186,2,0) -> 0.5473 | M120: 18271.51471 | N120: =BRL!$B$6 -> 0.5476 | O120: 18261.50475 | P120: -10.00996058
A121: 119 | B121: 2012-04-09 | C121: 2012-05-09 | D121: Test Customer 119 | E121: Test Street 119 | F121: Sao Paulo | G121: Brazil | H121: 10000 | I121: BRL Brazil Real | J121: None | K121: 2 | L121: =VLOOKUP("2012-04-09",BRL!$A$6:$B$186,2,0) -> 0.5481 | M121: 18244.84583 | N121: =BRL!$B$6 -> 0.5476 | O121: 18261.50475 | P121: 16.65891694
A122: 120 | B122: 2012-04-10 | C122: 2012-05-10 | D122: Test Customer 120 | E122: Test Street 120 | F122: Sao Paulo | G122: Brazil | H122: 10000 | I122: BRL Brazil Real | J122: None | K122: 1 | L122: =VLOOKUP("2012-04-10",BRL!$A$6:$B$186,2,0) -> 0.5475 | M122: 18264.84018 | N122: =BRL!$B$6 -> 0.5476 | O122: 18261.50475 | P122: -3.335434657
A123: 121 | B123: 2012-04-10 | C123: 2012-05-10 | D123: Test Customer 121 | E123: Test Street 121 | F123: Sao Paulo | G123: Brazil | H123: 5000 | I123: BRL Brazil Real | J123: None | K123: 1 | L123: =VLOOKUP("2012-04-10",BRL!$A$6:$B$186,2,0) -> 0.5475 | M123: 9132.420091 | N123: =BRL!$B$6 -> 0.5476 | O123: 9130.752374 | P123: -1.667717329

Sheet Currencies
A1: AUD Australia Dollar
A2: BRL Brazil Real
A3: CAD Canada Dollar
A4: CHF Switzerland Franc
A5: CNY China Yuan Renminbi
A6: DKK Denmark Krone
A7: EUR Euro Member Countries
A8: GBP United Kingdom Pound
A9: HKD Hong Kong Dollar
A10: INR India Rupee
A11: JPY Japan Yen
A12: KRW South Korea Won
A13: LKR Sri Lanka Rupee
A14: MXN Mexico Peso
A15: MYR Malaysia Ringgit
A16: NOK Norway Krone
A17: NZD New Zealand Dollar
A18: SEK Sweden Krona
A19: SGD Singapore Dollar
A20: THB Thailand Baht
A21: TWD Taiwan New Dollar
A22: USD United States Dollar
A23: VEF Venezuela Bolivar Fuerte
A24: ZAR South Africa Rand

Sheet AUD
A5: End Date | B5: AUD/USD
A6: 2012-04-11 | B6: 1.0292
A7: 2012-04-10 | B7: 1.0295
A8: 2012-04-09 | B8: 1.0298
A9: 2012-04-08 | B9: 1.0299
A10: 2012-04-07 | B10: 1.0308
A11: 2012-04-06 | B11: 1.0288
A12: 2012-04-05 | B12: 1.0276
A13: 2012-04-04 | B13: 1.0387
A14: 2012-04-03 | B14: 1.0411
A15: 2012-04-02 | B15: 1.0353
A16: 2012-04-01 | B16: 1.0343
A17: 2012-03-31 | B17: 1.0385
A18: 2012-03-30 | B18: 1.036
A19: 2012-03-29 | B19: 1.0412
A20: 2012-03-28 | B20: 1.051
A21: 2012-03-27 | B21: 1.0483
A22: 2012-03-26 | B22: 1.0462
A23: 2012-03-25 | B23: 1.0463
A24: 2012-03-24 | B24: 1.0413
A25: 2012-03-23 | B25: 1.0399
A26: 2012-03-22 | B26: 1.0476
A27: 2012-03-21 | B27: 1.0534
A28: 2012-03-20 | B28: 1.0597
A29: 2012-03-19 | B29: 1.0584
A30: 2012-03-18 | B30: 1.0584
A31: 2012-03-17 | B31: 1.0548
A32: 2012-03-16 | B32: 1.0487
A33: 2012-03-15 | B33: 1.0495
A34: 2012-03-14 | B34: 1.053
A35: 2012-03-13 | B35: 1.0522
A36: 2012-03-12 | B36: 1.057
A37: 2012-03-11 | B37: 1.0571
A38: 2012-03-10 | B38: 1.0621
A39: 2012-03-09 | B39: 1.0611
A40: 2012-03-08 | B40: 1.0557
A41: 2012-03-07 | B41: 1.0606
A42: 2012-03-06 | B42: 1.0697
A43: 2012-03-05 | B43: 1.0728
A44: 2012-03-04 | B44: 1.0728
A45: 2012-03-03 | B45: 1.0775
A46: 2012-03-02 | B46: 1.0763
A47: 2012-03-01 | B47: 1.08
A48: 2012-02-29 | B48: 1.0762
A49: 2012-02-28 | B49: 1.0699
A50: 2012-02-27 | B50: 1.0689
A51: 2012-02-26 | B51: 1.0691
A52: 2012-02-25 | B52: 1.0723
A53: 2012-02-24 | B53: 1.0665
A54: 2012-02-23 | B54: 1.0646
A55: 2012-02-22 | B55: 1.0703
A56: 2012-02-21 | B56: 1.0769
A57: 2012-02-20 | B57: 1.0715
A58: 2012-02-19 | B58: 1.0703
A59: 2012-02-18 | B59: 1.0752
A60: 2012-02-17 | B60: 1.0698
A61: 2012-02-16 | B61: 1.0725
A62: 2012-02-15 | B62: 1.0693
A63: 2012-02-14 | B63: 1.0734
A64: 2012-02-13 | B64: 1.0668
A65: 2012-02-12 | B65: 1.0668
A66: 2012-02-11 | B66: 1.0705
A67: 2012-02-10 | B67: 1.0794
A68: 2012-02-09 | B68: 1.0808
A69: 2012-02-08 | B69: 1.0772
A70: 2012-02-07 | B70: 1.0724
A71: 2012-02-06 | B71: 1.076
A72: 2012-02-05 | B72: 1.0766
A73: 2012-02-04 | B73: 1.0719
A74: 2012-02-03 | B74: 1.0716
A75: 2012-02-02 | B75: 1.0656
A76: 2012-02-01 | B76: 1.0628
A77: 2012-01-31 | B77: 1.0581
A78: 2012-01-30 | B78: 1.065
A79: 2012-01-29 | B79: 1.0652
A80: 2012-01-28 | B80: 1.0631
A81: 2012-01-27 | B81: 1.0631
A82: 2012-01-26 | B82: 1.0505
A83: 2012-01-25 | B83: 1.0488
A84: 2012-01-24 | B84: 1.0508
A85: 2012-01-23 | B85: 1.0477
A86: 2012-01-22 | B86: 1.048
A87: 2012-01-21 | B87: 1.0429
A88: 2012-01-20 | B88: 1.0404
A89: 2012-01-19 | B89: 1.0391
A90: 2012-01-18 | B90: 1.038
A91: 2012-01-17 | B91: 1.0298
A92: 2012-01-16 | B92: 1.0317
A93: 2012-01-15 | B93: 1.0321
A94: 2012-01-14 | B94: 1.032
A95: 2012-01-13 | B95: 1.0317
A96: 2012-01-12 | B96: 1.0295
A97: 2012-01-11 | B97: 1.0301
A98: 2012-01-10 | B98: 1.0201
A99: 2012-01-09 | B99: 1.022
A100: 2012-01-08 | B100: 1.0224
A101: 2012-01-07 | B101: 1.0243
A102: 2012-01-06 | B102: 1.0298
A103: 2012-01-05 | B103: 1.0348
A104: 2012-01-04 | B104: 1.0315
A105: 2012-01-03 | B105: 1.0219
A106: 2012-01-02 | B106: 1.0204
A107: 2012-01-01 | B107: 1.0203
A108: 2011-12-31 | B108: 1.0174
A109: 2011-12-30 | B109: 1.009
A110: 2011-12-29 | B110: 1.0148
A111: 2011-12-28 | B111: 1.0156
A112: 2011-12-27 | B112: 1.0157
A113: 2011-12-26 | B113: 1.0145
A114: 2011-12-25 | B114: 1.0147
A115: 2011-12-24 | B115: 1.0154
A116: 2011-12-23 | B116: 1.0109
A117: 2011-12-22 | B117: 1.0114
A118: 2011-12-21 | B118: 0.9982
A119: 2011-12-20 | B119: 0.9937
A120: 2011-12-19 | B120: 0.9977
A121: 2011-12-18 | B121: 0.9977
A122: 2011-12-17 | B122: 0.997
A123: 2011-12-16 | B123: 0.9916
A124: 2011-12-15 | B124: 0.998
A125: 2011-12-14 | B125: 1.0084
A126: 2011-12-13 | B126: 1.0134
A127: 2011-12-12 | B127: 1.0212
A128: 2011-12-11 | B128: 1.0213
A129: 2011-12-10 | B129: 1.0151
A130: 2011-12-09 | B130: 1.0254
A131: 2011-12-08 | B131: 1.0265
A132: 2011-12-07 | B132: 1.0225
A133: 2011-12-06 | B133: 1.0252
A134: 2011-12-05 | B134: 1.0213
A135: 2011-12-04 | B135: 1.0211
A136: 2011-12-03 | B136: 1.0238
A137: 2011-12-02 | B137: 1.0226
A138: 2011-12-01 | B138: 1.0096
A139: 2011-11-30 | B139: 0.9968
A140: 2011-11-29 | B140: 0.988
A141: 2011-11-28 | B141: 0.9715
A142: 2011-11-27 | B142: 0.9706
A143: 2011-11-26 | B143: 0.9705
A144: 2011-11-25 | B144: 0.9728
A145: 2011-11-24 | B145: 0.9755
A146: 2011-11-23 | B146: 0.9854
A147: 2011-11-22 | B147: 0.9918
A148: 2011-11-21 | B148: 1.0002
A149: 2011-11-20 | B149: 1.0003
A150: 2011-11-19 | B150: 1.0018
A151: 2011-11-18 | B151: 1.0058
A152: 2011-11-17 | B152: 1.0125
A153: 2011-11-16 | B153: 1.0176
A154: 2011-11-15 | B154: 1.0259
A155: 2011-11-14 | B155: 1.0274
A156: 2011-11-13 | B156: 1.027
A157: 2011-11-12 | B157: 1.018
A158: 2011-11-11 | B158: 1.0137
A159: 2011-11-10 | B159: 1.0285
A160: 2011-11-09 | B160: 1.0341
A161: 2011-11-08 | B161: 1.0353
A162: 2011-11-07 | B162: 1.0366
A163: 2011-11-06 | B163: 1.0367
A164: 2011-11-05 | B164: 1.0385
A165: 2011-11-04 | B165: 1.0313
A166: 2011-11-03 | B166: 1.0351
A167: 2011-11-02 | B167: 1.0408
A168: 2011-11-01 | B168: 1.059
A169: 2011-10-31 | B169: 1.0696
A170: 2011-10-30 | B170: 1.0696
A171: 2011-10-29 | B171: 1.0692
A172: 2011-10-28 | B172: 1.0573
A173: 2011-10-27 | B173: 1.0379
A174: 2011-10-26 | B174: 1.046
A175: 2011-10-25 | B175: 1.0399
A176: 2011-10-24 | B176: 1.0364
A177: 2011-10-23 | B177: 1.037
A178: 2011-10-22 | B178: 1.0269
A179: 2011-10-21 | B179: 1.022
A180: 2011-10-20 | B180: 1.0281
A181: 2011-10-19 | B181: 1.0189
A182: 2011-10-18 | B182: 1.0282
A183: 2011-10-17 | B183: 1.0335
A184: 2011-10-16 | B184: 1.0336
A185: 2011-10-15 | B185: 1.0239
A186: 2011-10-14 | B186: 1.0168

Sheet BRL
A5: End Date | B5: BRL/USD
A6: 2012-04-11 | B6: 0.5476
A7: 2012-04-10 | B7: 0.5475
A8: 2012-04-09 | B8: 0.5481
A9: 2012-04-08 | B9: 0.5473
A10: 2012-04-07 | B10: 0.5478
A11: 2012-04-06 | B11: 0.5464
A12: 2012-04-05 | B12: 0.5456
A13: 2012-04-04 | B13: 0.5456
A14: 2012-04-03 | B14: 0.5466
A15: 2012-04-02 | B15: 0.5467
A16: 2012-04-01 | B16: 0.5466
A17: 2012-03-31 | B17: 0.5478
A18: 2012-03-30 | B18: 0.5465
A19: 2012-03-29 | B19: 0.5481
A20: 2012-03-28 | B20: 0.5496
A21: 2012-03-27 | B21: 0.5507
A22: 2012-03-26 | B22: 0.5472
A23: 2012-03-25 | B23: 0.5489
A24: 2012-03-24 | B24: 0.5493
A25: 2012-03-23 | B25: 0.5482
A26: 2012-03-22 | B26: 0.5493
A27: 2012-03-21 | B27: 0.5483
A28: 2012-03-20 | B28: 0.5539
A29: 2012-03-19 | B29: 0.5552
A30: 2012-03-18 | B30: 0.5544
A31: 2012-03-17 | B31: 0.5547
A32: 2012-03-16 | B32: 0.5538
A33: 2012-03-15 | B33: 0.5542
A34: 2012-03-14 | B34: 0.5546
A35: 2012-03-13 | B35: 0.5552
A36: 2012-03-12 | B36: 0.5579
A37: 2012-03-11 | B37: 0.5579
A38: 2012-03-10 | B38: 0.5645
A39: 2012-03-09 | B39: 0.5651
A40: 2012-03-08 | B40: 0.5665
A41: 2012-03-07 | B41: 0.5718
A42: 2012-03-06 | B42: 0.576
A43: 2012-03-05 | B43: 0.5764
A44: 2012-03-04 | B44: 0.5771
A45: 2012-03-03 | B45: 0.5808
A46: 2012-03-02 | B46: 0.5818
A47: 2012-03-01 | B47: 0.586
A48: 2012-02-29 | B48: 0.5859
A49: 2012-02-28 | B49: 0.5841
A50: 2012-02-27 | B50: 0.5839
A51: 2012-02-26 | B51: 0.5842
A52: 2012-02-25 | B52: 0.5837
A53: 2012-02-24 | B53: 0.5852
A54: 2012-02-23 | B54: 0.5829
A55: 2012-02-22 | B55: 0.5815
A56: 2012-02-21 | B56: 0.5819
A57: 2012-02-20 | B57: 0.5819
A58: 2012-02-19 | B58: 0.5823
A59: 2012-02-18 | B59: 0.5823
A60: 2012-02-17 | B60: 0.5782
A61: 2012-02-16 | B61: 0.5802
A62: 2012-02-15 | B62: 0.5814
A63: 2012-02-14 | B63: 0.5805
A64: 2012-02-13 | B64: 0.5796
A65: 2012-02-12 | B65: 0.58
A66: 2012-02-11 | B66: 0.5801
A67: 2012-02-10 | B67: 0.5803
A68: 2012-02-09 | B68: 0.5796
A69: 2012-02-08 | B69: 0.5788
A70: 2012-02-07 | B70: 0.5808
A71: 2012-02-06 | B71: 0.582
A72: 2012-02-05 | B72: 0.5819
A73: 2012-02-04 | B73: 0.5805
A74: 2012-02-03 | B74: 0.5773
A75: 2012-02-02 | B75: 0.5738
A76: 2012-02-01 | B76: 0.572
A77: 2012-01-31 | B77: 0.5721
A78: 2012-01-30 | B78: 0.5721
A79: 2012-01-29 | B79: 0.5732
A80: 2012-01-28 | B80: 0.5733
A81: 2012-01-27 | B81: 0.5708
A82: 2012-01-26 | B82: 0.5682
A83: 2012-01-25 | B83: 0.5699
A84: 2012-01-24 | B84: 0.5676
A85: 2012-01-23 | B85: 0.565
A86: 2012-01-22 | B86: 0.5663
A87: 2012-01-21 | B87: 0.5663
A88: 2012-01-20 | B88: 0.5653
A89: 2012-01-19 | B89: 0.5617
A90: 2012-01-18 | B90: 0.5607
A91: 2012-01-17 | B91: 0.5585
A92: 2012-01-16 | B92: 0.5565
A93: 2012-01-15 | B93: 0.5574
A94: 2012-01-14 | B94: 0.5596
A95: 2012-01-13 | B95: 0.5564
A96: 2012-01-12 | B96: 0.5544
A97: 2012-01-11 | B97: 0.5481
A98: 2012-01-10 | B98: 0.5402
A99: 2012-01-09 | B99: 0.5394
A100: 2012-01-08 | B100: 0.5397
A101: 2012-01-07 | B101: 0.5412
A102: 2012-01-06 | B102: 0.5451
A103: 2012-01-05 | B103: 0.5459
A104: 2012-01-04 | B104: 0.5376
A105: 2012-01-03 | B105: 0.5347
A106: 2012-01-02 | B106: 0.5352
A107: 2012-01-01 | B107: 0.5362
A108: 2011-12-31 | B108: 0.5357
A109: 2011-12-30 | B109: 0.5327
A110: 2011-12-29 | B110: 0.5351
A111: 2011-12-28 | B111: 0.5371
A112: 2011-12-27 | B112: 0.5366
A113: 2011-12-26 | B113: 0.5366
A114: 2011-12-25 | B114: 0.537
A115: 2011-12-24 | B115: 0.538
A116: 2011-12-23 | B116: 0.5375
A117: 2011-12-22 | B117: 0.5401
A118: 2011-12-21 | B118: 0.5378
A119: 2011-12-20 | B119: 0.5371
A120: 2011-12-19 | B120: 0.5382
A121: 2011-12-18 | B121: 0.5385
A122: 2011-12-17 | B122: 0.5384
A123: 2011-12-16 | B123: 0.5343
A124: 2011-12-15 | B124: 0.5351
A125: 2011-12-14 | B125: 0.5407
A126: 2011-12-13 | B126: 0.5494
A127: 2011-12-12 | B127: 0.5522
A128: 2011-12-11 | B128: 0.5528
A129: 2011-12-10 | B129: 0.5506
A130: 2011-12-09 | B130: 0.5541
A131: 2011-12-08 | B131: 0.5568
A132: 2011-12-07 | B132: 0.5581
A133: 2011-12-06 | B133: 0.5572
A134: 2011-12-05 | B134: 0.5523
A135: 2011-12-04 | B135: 0.5544
A136: 2011-12-03 | B136: 0.5563
A137: 2011-12-02 | B137: 0.5541
A138: 2011-12-01 | B138: 0.5458
A139: 2011-11-30 | B139: 0.5358
A140: 2011-11-29 | B140: 0.532
A141: 2011-11-28 | B141: 0.5288
A142: 2011-11-27 | B142: 0.5289
A143: 2011-11-26 | B143: 0.5309
A144: 2011-11-25 | B144: 0.5361
A145: 2011-11-24 | B145: 0.5445
A146: 2011-11-23 | B146: 0.5518
A147: 2011-11-22 | B147: 0.5562
A148: 2011-11-21 | B148: 0.5593
A149: 2011-11-20 | B149: 0.5598
A150: 2011-11-19 | B150: 0.5628
A151: 2011-11-18 | B151: 0.5634
A152: 2011-11-17 | B152: 0.5631
A153: 2011-11-16 | B153: 0.5648
A154: 2011-11-15 | B154: 0.5691
A155: 2011-11-14 | B155: 0.5715
A156: 2011-11-13 | B156: 0.5729
A157: 2011-11-12 | B157: 0.569
A158: 2011-11-11 | B158: 0.566
A159: 2011-11-10 | B159: 0.572
A160: 2011-11-09 | B160: 0.5718
A161: 2011-11-08 | B161: 0.5699
A162: 2011-11-07 | B162: 0.5697
A163: 2011-11-06 | B163: 0.572
A164: 2011-11-05 | B164: 0.5756
A165: 2011-11-04 | B165: 0.5757
A166: 2011-11-03 | B166: 0.5733
A167: 2011-11-02 | B167: 0.5808
A168: 2011-11-01 | B168: 0.591
A169: 2011-10-31 | B169: 0.591
A170: 2011-10-30 | B170: 0.5917
A171: 2011-10-29 | B171: 0.5866
A172: 2011-10-28 | B172: 0.5725
A173: 2011-10-27 | B173: 0.5668
A174: 2011-10-26 | B174: 0.5697
A175: 2011-10-25 | B175: 0.5646
A176: 2011-10-24 | B176: 0.5638
A177: 2011-10-23 | B177: 0.5642
A178: 2011-10-22 | B178: 0.5609
A179: 2011-10-21 | B179: 0.5618
A180: 2011-10-20 | B180: 0.5679
A181: 2011-10-19 | B181: 0.5651
A182: 2011-10-18 | B182: 0.5729
A183: 2011-10-17 | B183: 0.5748
A184: 2011-10-16 | B184: 0.5763
A185: 2011-10-15 | B185: 0.5728
A186: 2011-10-14 | B186: 0.5657

Sheet CAD
A5: End Date | B5: CAD/USD
A6: 2012-04-11 | B6: 1.0008
A7: 2012-04-10 | B7: 1.0025
A8: 2012-04-09 | B8: 1.0024
A9: 2012-04-08 | B9: 1.0024
A10: 2012-04-07 | B10: 1.0055
A11: 2012-04-06 | B11: 1.0044
A12: 2012-04-05 | B12: 1.0062
A13: 2012-04-04 | B13: 1.0094
A14: 2012-04-03 | B14: 1.0045
A15: 2012-04-02 | B15: 1.0011
A16: 2012-04-01 | B16: 1.0009
A17: 2012-03-31 | B17: 1.0027
A18: 2012-03-30 | B18: 1.0011
A19: 2012-03-29 | B19: 1.0033
A20: 2012-03-28 | B20: 1.0079
A21: 2012-03-27 | B21: 1.004
A22: 2012-03-26 | B22: 1.0017
A23: 2012-03-25 | B23: 1.0017
A24: 2012-03-24 | B24: 1.0001
A25: 2012-03-23 | B25: 1.0044
A26: 2012-03-22 | B26: 1.0093
A27: 2012-03-21 | B27: 1.0099
A28: 2012-03-20 | B28: 1.0096
A29: 2012-03-19 | B29: 1.0079
A30: 2012-03-18 | B30: 1.0078
A31: 2012-03-17 | B31: 1.0077
A32: 2012-03-16 | B32: 1.0071
A33: 2012-03-15 | B33: 1.0094
A34: 2012-03-14 | B34: 1.0092
A35: 2012-03-13 | B35: 1.0078
A36: 2012-03-12 | B36: 1.0088
A37: 2012-03-11 | B37: 1.0088
A38: 2012-03-10 | B38: 1.0097
A39: 2012-03-09 | B39: 1.0048
A40: 2012-03-08 | B40: 0.9994
A41: 2012-03-07 | B41: 1.0021
A42: 2012-03-06 | B42: 1.008
A43: 2012-03-05 | B43: 1.0104
A44: 2012-03-04 | B44: 1.0104
A45: 2012-03-03 | B45: 1.013
A46: 2012-03-02 | B46: 1.0126
A47: 2012-03-01 | B47: 1.0086
A48: 2012-02-29 | B48: 1.0032
A49: 2012-02-28 | B49: 0.999
A50: 2012-02-27 | B50: 1.0001
A51: 2012-02-26 | B51: 1.0001
A52: 2012-02-25 | B52: 1.0019
A53: 2012-02-24 | B53: 1.0013
A54: 2012-02-23 | B54: 1.0018
A55: 2012-02-22 | B55: 1.0048
A56: 2012-02-21 | B56: 1.0072
A57: 2012-02-20 | B57: 1.0026
A58: 2012-02-19 | B58: 1.0022
A59: 2012-02-18 | B59: 1.0038
A60: 2012-02-17 | B60: 0.999
A61: 2012-02-16 | B61: 1.0029
A62: 2012-02-15 | B62: 0.9994
A63: 2012-02-14 | B63: 1.0005
A64: 2012-02-13 | B64: 0.9982
A65: 2012-02-12 | B65: 0.9982
A66: 2012-02-11 | B66: 1.0012
A67: 2012-02-10 | B67: 1.0044
A68: 2012-02-09 | B68: 1.0047
A69: 2012-02-08 | B69: 1.0036
A70: 2012-02-07 | B70: 1.004
A71: 2012-02-06 | B71: 1.0059
A72: 2012-02-05 | B72: 1.0061
A73: 2012-02-04 | B73: 1.0017
A74: 2012-02-03 | B74: 1.0014
A75: 2012-02-02 | B75: 0.9992
A76: 2012-02-01 | B76: 0.9991
A77: 2012-01-31 | B77: 0.9959
A78: 2012-01-30 | B78: 0.9978
A79: 2012-01-29 | B79: 0.9978
A80: 2012-01-28 | B80: 0.998
A81: 2012-01-27 | B81: 0.9979
A82: 2012-01-26 | B82: 0.9894
A83: 2012-01-25 | B83: 0.9903
A84: 2012-01-24 | B84: 0.9885
A85: 2012-01-23 | B85: 0.9863
A86: 2012-01-22 | B86: 0.9864
A87: 2012-01-21 | B87: 0.9868
A88: 2012-01-20 | B88: 0.9897
A89: 2012-01-19 | B89: 0.9858
A90: 2012-01-18 | B90: 0.9853
A91: 2012-01-17 | B91: 0.9792
A92: 2012-01-16 | B92: 0.9767
A93: 2012-01-15 | B93: 0.9768
A94: 2012-01-14 | B94: 0.9803
A95: 2012-01-13 | B95: 0.982
A96: 2012-01-12 | B96: 0.9827
A97: 2012-01-11 | B97: 0.9809
A98: 2012-01-10 | B98: 0.9723
A99: 2012-01-09 | B99: 0.9718
A100: 2012-01-08 | B100: 0.9718
A101: 2012-01-07 | B101: 0.9794
A102: 2012-01-06 | B102: 0.9842
A103: 2012-01-05 | B103: 0.9872
A104: 2012-01-04 | B104: 0.9867
A105: 2012-01-03 | B105: 0.9801
A106: 2012-01-02 | B106: 0.9782
A107: 2012-01-01 | B107: 0.9782
A108: 2011-12-31 | B108: 0.9804
A109: 2011-12-30 | B109: 0.9771
A110: 2011-12-29 | B110: 0.9807
A111: 2011-12-28 | B111: 0.9801
A112: 2011-12-27 | B112: 0.9795
A113: 2011-12-26 | B113: 0.9793
A114: 2011-12-25 | B114: 0.9793
A115: 2011-12-24 | B115: 0.9803
A116: 2011-12-23 | B116: 0.9756
A117: 2011-12-22 | B117: 0.9738
A118: 2011-12-21 | B118: 0.9669
A119: 2011-12-20 | B119: 0.9636
A120: 2011-12-19 | B120: 0.9626
A121: 2011-12-18 | B121: 0.9626
A122: 2011-12-17 | B122: 0.967
A123: 2011-12-16 | B123: 0.9642
A124: 2011-12-15 | B124: 0.9651
A125: 2011-12-14 | B125: 0.9733
A126: 2011-12-13 | B126: 0.9772
A127: 2011-12-12 | B127: 0.9824
A128: 2011-12-11 | B128: 0.9827
A129: 2011-12-10 | B129: 0.9781
A130: 2011-12-09 | B130: 0.9879
A131: 2011-12-08 | B131: 0.9902
A132: 2011-12-07 | B132: 0.9838
A133: 2011-12-06 | B133: 0.9839
A134: 2011-12-05 | B134: 0.9807
A135: 2011-12-04 | B135: 0.9805
A136: 2011-12-03 | B136: 0.9855
A137: 2011-12-02 | B137: 0.982
A138: 2011-12-01 | B138: 0.9734
A139: 2011-11-30 | B139: 0.9688
A140: 2011-11-29 | B140: 0.9639
A141: 2011-11-28 | B141: 0.9551
A142: 2011-11-27 | B142: 0.9546
A143: 2011-11-26 | B143: 0.9534
A144: 2011-11-25 | B144: 0.9554
A145: 2011-11-24 | B145: 0.959
A146: 2011-11-23 | B146: 0.9633
A147: 2011-11-22 | B147: 0.9682
A148: 2011-11-21 | B148: 0.9726
A149: 2011-11-20 | B149: 0.9726
A150: 2011-11-19 | B150: 0.9735
A151: 2011-11-18 | B151: 0.976
A152: 2011-11-17 | B152: 0.9766
A153: 2011-11-16 | B153: 0.9802
A154: 2011-11-15 | B154: 0.9849
A155: 2011-11-14 | B155: 0.9894
A156: 2011-11-13 | B156: 0.9892
A157: 2011-11-12 | B157: 0.9825
A158: 2011-11-11 | B158: 0.9783
A159: 2011-11-10 | B159: 0.9855
A160: 2011-11-09 | B160: 0.986
A161: 2011-11-08 | B161: 0.983
A162: 2011-11-07 | B162: 0.9812
A163: 2011-11-06 | B163: 0.9811
A164: 2011-11-05 | B164: 0.9862
A165: 2011-11-04 | B165: 0.9856
A166: 2011-11-03 | B166: 0.9836
A167: 2011-11-02 | B167: 0.9916
A168: 2011-11-01 | B168: 1.0032
A169: 2011-10-31 | B169: 1.0078
A170: 2011-10-30 | B170: 1.0078
A171: 2011-10-29 | B171: 1.0072
A172: 2011-10-28 | B172: 1.0026
A173: 2011-10-27 | B173: 0.9872
A174: 2011-10-26 | B174: 0.9935
A175: 2011-10-25 | B175: 0.9937
A176: 2011-10-24 | B176: 0.9924
A177: 2011-10-23 | B177: 0.9928
A178: 2011-10-22 | B178: 0.9865
A179: 2011-10-21 | B179: 0.9811
A180: 2011-10-20 | B180: 0.9868
A181: 2011-10-19 | B181: 0.9792
A182: 2011-10-18 | B182: 0.9876
A183: 2011-10-17 | B183: 0.9896
A184: 2011-10-16 | B184: 0.9898
A185: 2011-10-15 | B185: 0.9826
A186: 2011-10-14 | B186: 0.98

Sheet CHF
A5: End Date | B5: CHF/USD
A6: 2012-04-11 | B6: 1.0897
A7: 2012-04-10 | B7: 1.0885
A8: 2012-04-09 | B8: 1.09
A9: 2012-04-08 | B9: 1.09
A10: 2012-04-07 | B10: 1.0881
A11: 2012-04-06 | B11: 1.0895
A12: 2012-04-05 | B12: 1.0942
A13: 2012-04-04 | B13: 1.1065
A14: 2012-04-03 | B14: 1.1075
A15: 2012-04-02 | B15: 1.1077
A16: 2012-04-01 | B16: 1.1075
A17: 2012-03-31 | B17: 1.1071
A18: 2012-03-30 | B18: 1.1035
A19: 2012-03-29 | B19: 1.1051
A20: 2012-03-28 | B20: 1.1065
A21: 2012-03-27 | B21: 1.102
A22: 2012-03-26 | B22: 1.1006
A23: 2012-03-25 | B23: 1.1007
A24: 2012-03-24 | B24: 1.0976
A25: 2012-03-23 | B25: 1.0947
A26: 2012-03-22 | B26: 1.0978
A27: 2012-03-21 | B27: 1.0963
A28: 2012-03-20 | B28: 1.0927
A29: 2012-03-19 | B29: 1.0914
A30: 2012-03-18 | B30: 1.0915
A31: 2012-03-17 | B31: 1.0858
A32: 2012-03-16 | B32: 1.078
A33: 2012-03-15 | B33: 1.0789
A34: 2012-03-14 | B34: 1.0887
A35: 2012-03-13 | B35: 1.0877
A36: 2012-03-12 | B36: 1.0877
A37: 2012-03-11 | B37: 1.0878
A38: 2012-03-10 | B38: 1.0954
A39: 2012-03-09 | B39: 1.0951
A40: 2012-03-08 | B40: 1.0895
A41: 2012-03-07 | B41: 1.0923
A42: 2012-03-06 | B42: 1.0947
A43: 2012-03-05 | B43: 1.0933
A44: 2012-03-04 | B44: 1.0934
A45: 2012-03-03 | B45: 1.0993
A46: 2012-03-02 | B46: 1.1054
A47: 2012-03-01 | B47: 1.1147
A48: 2012-02-29 | B48: 1.1144
A49: 2012-02-28 | B49: 1.1143
A50: 2012-02-27 | B50: 1.1154
A51: 2012-02-26 | B51: 1.1154
A52: 2012-02-25 | B52: 1.1119
A53: 2012-02-24 | B53: 1.1018
A54: 2012-02-23 | B54: 1.0964
A55: 2012-02-22 | B55: 1.0966
A56: 2012-02-21 | B56: 1.0944
A57: 2012-02-20 | B57: 1.0868
A58: 2012-02-19 | B58: 1.0865
A59: 2012-02-18 | B59: 1.0883
A60: 2012-02-17 | B60: 1.0803
A61: 2012-02-16 | B61: 1.0871
A62: 2012-02-15 | B62: 1.0891
A63: 2012-02-14 | B63: 1.0943
A64: 2012-02-13 | B64: 1.0904
A65: 2012-02-12 | B65: 1.0904
A66: 2012-02-11 | B66: 1.0937
A67: 2012-02-10 | B67: 1.0964
A68: 2012-02-09 | B68: 1.0958
A69: 2012-02-08 | B69: 1.0893
A70: 2012-02-07 | B70: 1.0848
A71: 2012-02-06 | B71: 1.0881
A72: 2012-02-05 | B72: 1.0885
A73: 2012-02-04 | B73: 1.0896
A74: 2012-02-03 | B74: 1.0915
A75: 2012-02-02 | B75: 1.0889
A76: 2012-02-01 | B76: 1.0912
A77: 2012-01-31 | B77: 1.0908
A78: 2012-01-30 | B78: 1.0949
A79: 2012-01-29 | B79: 1.095
A80: 2012-01-28 | B80: 1.0878
A81: 2012-01-27 | B81: 1.0868
A82: 2012-01-26 | B82: 1.0766
A83: 2012-01-25 | B83: 1.0775
A84: 2012-01-24 | B84: 1.072
A85: 2012-01-23 | B85: 1.069
A86: 2012-01-22 | B86: 1.0695
A87: 2012-01-21 | B87: 1.0711
A88: 2012-01-20 | B88: 1.0665
A89: 2012-01-19 | B89: 1.0578
A90: 2012-01-18 | B90: 1.0521
A91: 2012-01-17 | B91: 1.0475
A92: 2012-01-16 | B92: 1.0493
A93: 2012-01-15 | B93: 1.0497
A94: 2012-01-14 | B94: 1.0558
A95: 2012-01-13 | B95: 1.0524
A96: 2012-01-12 | B96: 1.05
A97: 2012-01-11 | B97: 1.0539
A98: 2012-01-10 | B98: 1.048
A99: 2012-01-09 | B99: 1.0459
A100: 2012-01-08 | B100: 1.0464
A101: 2012-01-07 | B101: 1.0485
A102: 2012-01-06 | B102: 1.0563
A103: 2012-01-05 | B103: 1.0676
A104: 2012-01-04 | B104: 1.068
A105: 2012-01-03 | B105: 1.0634
A106: 2012-01-02 | B106: 1.0653
A107: 2012-01-01 | B107: 1.0655
A108: 2011-12-31 | B108: 1.064
A109: 2011-12-30 | B109: 1.0601
A110: 2011-12-29 | B110: 1.0681
A111: 2011-12-28 | B111: 1.0692
A112: 2011-12-27 | B112: 1.0679
A113: 2011-12-26 | B113: 1.0672
A114: 2011-12-25 | B114: 1.0672
A115: 2011-12-24 | B115: 1.0683
A116: 2011-12-23 | B116: 1.0683
A117: 2011-12-22 | B117: 1.0733
A118: 2011-12-21 | B118: 1.0705
A119: 2011-12-20 | B119: 1.0672
A120: 2011-12-19 | B120: 1.0676
A121: 2011-12-18 | B121: 1.0677
A122: 2011-12-17 | B122: 1.0652
A123: 2011-12-16 | B123: 1.0556
A124: 2011-12-15 | B124: 1.0552
A125: 2011-12-14 | B125: 1.0656
A126: 2011-12-13 | B126: 1.0752
A127: 2011-12-12 | B127: 1.0824
A128: 2011-12-11 | B128: 1.0827
A129: 2011-12-10 | B129: 1.0811
A130: 2011-12-09 | B130: 1.0813
A131: 2011-12-08 | B131: 1.0804
A132: 2011-12-07 | B132: 1.0817
A133: 2011-12-06 | B133: 1.0862
A134: 2011-12-05 | B134: 1.0848
A135: 2011-12-04 | B135: 1.0848
A136: 2011-12-03 | B136: 1.0903
A137: 2011-12-02 | B137: 1.0952
A138: 2011-12-01 | B138: 1.0891
A139: 2011-11-30 | B139: 1.0855
A140: 2011-11-29 | B140: 1.0815
A141: 2011-11-28 | B141: 1.0751
A142: 2011-11-27 | B142: 1.075
A143: 2011-11-26 | B143: 1.081
A144: 2011-11-25 | B144: 1.0879
A145: 2011-11-24 | B145: 1.0906
A146: 2011-11-23 | B146: 1.0925
A147: 2011-11-22 | B147: 1.0895
A148: 2011-11-21 | B148: 1.0902
A149: 2011-11-20 | B149: 1.0904
A150: 2011-11-19 | B150: 1.0899
A151: 2011-11-18 | B151: 1.0871
A152: 2011-11-17 | B152: 1.0894
A153: 2011-11-16 | B153: 1.0953
A154: 2011-11-15 | B154: 1.1073
A155: 2011-11-14 | B155: 1.1107
A156: 2011-11-13 | B156: 1.1106
A157: 2011-11-12 | B157: 1.1053
A158: 2011-11-11 | B158: 1.1005
A159: 2011-11-10 | B159: 1.1104
A160: 2011-11-09 | B160: 1.1109
A161: 2011-11-08 | B161: 1.1158
A162: 2011-11-07 | B162: 1.1289
A163: 2011-11-06 | B163: 1.1296
A164: 2011-11-05 | B164: 1.1327
A165: 2011-11-04 | B165: 1.1315
A166: 2011-11-03 | B166: 1.1302
A167: 2011-11-02 | B167: 1.1305
A168: 2011-11-01 | B168: 1.149
A169: 2011-10-31 | B169: 1.1576
A170: 2011-10-30 | B170: 1.1577
A171: 2011-10-29 | B171: 1.1599
A172: 2011-10-28 | B172: 1.1467
A173: 2011-10-27 | B173: 1.1378
A174: 2011-10-26 | B174: 1.136
A175: 2011-10-25 | B175: 1.1316
A176: 2011-10-24 | B176: 1.1321
A177: 2011-10-23 | B177: 1.1324
A178: 2011-10-22 | B178: 1.1251
A179: 2011-10-21 | B179: 1.1105
A180: 2011-10-20 | B180: 1.1116
A181: 2011-10-19 | B181: 1.1118
A182: 2011-10-18 | B182: 1.1171
A183: 2011-10-17 | B183: 1.1207
A184: 2011-10-16 | B184: 1.1209
A185: 2011-10-15 | B185: 1.1152
A186: 2011-10-14 | B186: 1.1138

Sheet CNY
A5: End Date | B5: CNY/USD
A6: 2012-04-11 | B6: 0.1581
A7: 2012-04-10 | B7: 0.158
A8: 2012-04-09 | B8: 0.1579
A9: 2012-04-08 | B9: 0.1579
A10: 2012-04-07 | B10: 0.158
A11: 2012-04-06 | B11: 0.1581
A12: 2012-04-05 | B12: 0.1582
A13: 2012-04-04 | B13: 0.1583
A14: 2012-04-03 | B14: 0.1581
A15: 2012-04-02 | B15: 0.1577
A16: 2012-04-01 | B16: 0.1577
A17: 2012-03-31 | B17: 0.1581
A18: 2012-03-30 | B18: 0.158
A19: 2012-03-29 | B19: 0.158
A20: 2012-03-28 | B20: 0.1581
A21: 2012-03-27 | B21: 0.1581
A22: 2012-03-26 | B22: 0.1577
A23: 2012-03-25 | B23: 0.1577
A24: 2012-03-24 | B24: 0.1581
A25: 2012-03-23 | B25: 0.158
A26: 2012-03-22 | B26: 0.1578
A27: 2012-03-21 | B27: 0.158
A28: 2012-03-20 | B28: 0.158
A29: 2012-03-19 | B29: 0.1575
A30: 2012-03-18 | B30: 0.1575
A31: 2012-03-17 | B31: 0.1579
A32: 2012-03-16 | B32: 0.1577
A33: 2012-03-15 | B33: 0.1575
A34: 2012-03-14 | B34: 0.1578
A35: 2012-03-13 | B35: 0.158
A36: 2012-03-12 | B36: 0.1578
A37: 2012-03-11 | B37: 0.1578
A38: 2012-03-10 | B38: 0.1583
A39: 2012-03-09 | B39: 0.1582
A40: 2012-03-08 | B40: 0.1581
A41: 2012-03-07 | B41: 0.1583
A42: 2012-03-06 | B42: 0.1584
A43: 2012-03-05 | B43: 0.1581
A44: 2012-03-04 | B44: 0.1581
A45: 2012-03-03 | B45: 0.1587
A46: 2012-03-02 | B46: 0.1586
A47: 2012-03-01 | B47: 0.1587
A48: 2012-02-29 | B48: 0.1586
A49: 2012-02-28 | B49: 0.1585
A50: 2012-02-27 | B50: 0.1582
A51: 2012-02-26 | B51: 0.1582
A52: 2012-02-25 | B52: 0.1587
A53: 2012-02-24 | B53: 0.1586
A54: 2012-02-23 | B54: 0.1587
A55: 2012-02-22 | B55: 0.1587
A56: 2012-02-21 | B56: 0.1587
A57: 2012-02-20 | B57: 0.1582
A58: 2012-02-19 | B58: 0.1582
A59: 2012-02-18 | B59: 0.1587
A60: 2012-02-17 | B60: 0.1586
A61: 2012-02-16 | B61: 0.1587
A62: 2012-02-15 | B62: 0.1587
A63: 2012-02-14 | B63: 0.1587
A64: 2012-02-13 | B64: 0.1583
A65: 2012-02-12 | B65: 0.1583
A66: 2012-02-11 | B66: 0.1588
A67: 2012-02-10 | B67: 0.1589
A68: 2012-02-09 | B68: 0.1589
A69: 2012-02-08 | B69: 0.1587
A70: 2012-02-07 | B70: 0.1587
A71: 2012-02-06 | B71: 0.1583
A72: 2012-02-05 | B72: 0.1583
A73: 2012-02-04 | B73: 0.1587
A74: 2012-02-03 | B74: 0.1588
A75: 2012-02-02 | B75: 0.1587
A76: 2012-02-01 | B76: 0.1587
A77: 2012-01-31 | B77: 0.1586
A78: 2012-01-30 | B78: 0.1584
A79: 2012-01-29 | B79: 0.1584
A80: 2012-01-28 | B80: 0.1588
A81: 2012-01-27 | B81: 0.1588
A82: 2012-01-26 | B82: 0.1586
A83: 2012-01-25 | B83: 0.1585
A84: 2012-01-24 | B84: 0.1584
A85: 2012-01-23 | B85: 0.158
A86: 2012-01-22 | B86: 0.158
A87: 2012-01-21 | B87: 0.1585
A88: 2012-01-20 | B88: 0.1587
A89: 2012-01-19 | B89: 0.1586
A90: 2012-01-18 | B90: 0.1584
A91: 2012-01-17 | B91: 0.1582
A92: 2012-01-16 | B92: 0.1578
A93: 2012-01-15 | B93: 0.1578
A94: 2012-01-14 | B94: 0.1583
A95: 2012-01-13 | B95: 0.1582
A96: 2012-01-12 | B96: 0.1583
A97: 2012-01-11 | B97: 0.1583
A98: 2012-01-10 | B98: 0.158
A99: 2012-01-09 | B99: 0.1575
A100: 2012-01-08 | B100: 0.1575
A101: 2012-01-07 | B101: 0.158
A102: 2012-01-06 | B102: 0.1581
A103: 2012-01-05 | B103: 0.1582
A104: 2012-01-04 | B104: 0.1577
A105: 2012-01-03 | B105: 0.1571
A106: 2012-01-02 | B106: 0.1568
A107: 2012-01-01 | B107: 0.1568
A108: 2011-12-31 | B108: 0.1571
A109: 2011-12-30 | B109: 0.1569
A110: 2011-12-29 | B110: 0.1571
A111: 2011-12-28 | B111: 0.1572
A112: 2011-12-27 | B112: 0.157
A113: 2011-12-26 | B113: 0.1567
A114: 2011-12-25 | B114: 0.1567
A115: 2011-12-24 | B115: 0.1571
A116: 2011-12-23 | B116: 0.157
A117: 2011-12-22 | B117: 0.157
A118: 2011-12-21 | B118: 0.1567
A119: 2011-12-20 | B119: 0.1566
A120: 2011-12-19 | B120: 0.1562
A121: 2011-12-18 | B121: 0.1562
A122: 2011-12-17 | B122: 0.1564
A123: 2011-12-16 | B123: 0.1559
A124: 2011-12-15 | B124: 0.1562
A125: 2011-12-14 | B125: 0.1564
A126: 2011-12-13 | B126: 0.1566
A127: 2011-12-12 | B127: 0.157
A128: 2011-12-11 | B128: 0.1571
A129: 2011-12-10 | B129: 0.1574
A130: 2011-12-09 | B130: 0.1575
A131: 2011-12-08 | B131: 0.1575
A132: 2011-12-07 | B132: 0.1575
A133: 2011-12-06 | B133: 0.1573
A134: 2011-12-05 | B134: 0.1569
A135: 2011-12-04 | B135: 0.1569
A136: 2011-12-03 | B136: 0.1574
A137: 2011-12-02 | B137: 0.1572
A138: 2011-12-01 | B138: 0.157
A139: 2011-11-30 | B139: 0.1568
A140: 2011-11-29 | B140: 0.1565
A141: 2011-11-28 | B141: 0.156
A142: 2011-11-27 | B142: 0.156
A143: 2011-11-26 | B143: 0.1565
A144: 2011-11-25 | B144: 0.1565
A145: 2011-11-24 | B145: 0.1567
A146: 2011-11-23 | B146: 0.1569
A147: 2011-11-22 | B147: 0.1571
A148: 2011-11-21 | B148: 0.157
A149: 2011-11-20 | B149: 0.1569
A150: 2011-11-19 | B150: 0.1573
A151: 2011-11-18 | B151: 0.1574
A152: 2011-11-17 | B152: 0.1573
A153: 2011-11-16 | B153: 0.1573
A154: 2011-11-15 | B154: 0.1575
A155: 2011-11-14 | B155: 0.1574
A156: 2011-11-13 | B156: 0.1572
A157: 2011-11-12 | B157: 0.1576
A158: 2011-11-11 | B158: 0.1575
A159: 2011-11-10 | B159: 0.1578
A160: 2011-11-09 | B160: 0.1576
A161: 2011-11-08 | B161: 0.1574
A162: 2011-11-07 | B162: 0.1569
A163: 2011-11-06 | B163: 0.1569
A164: 2011-11-05 | B164: 0.1574
A165: 2011-11-04 | B165: 0.1573
A166: 2011-11-03 | B166: 0.1571
A167: 2011-11-02 | B167: 0.157
A168: 2011-11-01 | B168: 0.1572
A169: 2011-10-31 | B169: 0.1569
A170: 2011-10-30 | B170: 0.1569
A171: 2011-10-29 | B171: 0.1573
A172: 2011-10-28 | B172: 0.157
A173: 2011-10-27 | B173: 0.1568
A174: 2011-10-26 | B174: 0.1569
A175: 2011-10-25 | B175: 0.1566
A176: 2011-10-24 | B176: 0.1561
A177: 2011-10-23 | B177: 0.1561
A178: 2011-10-22 | B178: 0.1564
A179: 2011-10-21 | B179: 0.1564
A180: 2011-10-20 | B180: 0.1565
A181: 2011-10-19 | B181: 0.1564
A182: 2011-10-18 | B182: 0.1565
A183: 2011-10-17 | B183: 0.156
A184: 2011-10-16 | B184: 0.156
A185: 2011-10-15 | B185: 0.1563
A186: 2011-10-14 | B186: 0.1563

Sheet DKK
A5: End Date | B5: DKK/USD
A6: 2012-04-11 | B6: 0.1761
A7: 2012-04-10 | B7: 0.1759
A8: 2012-04-09 | B8: 0.1759
A9: 2012-04-08 | B9: 0.176
A10: 2012-04-07 | B10: 0.1757
A11: 2012-04-06 | B11: 0.1761
A12: 2012-04-05 | B12: 0.177
A13: 2012-04-04 | B13: 0.179
A14: 2012-04-03 | B14: 0.1792
A15: 2012-04-02 | B15: 0.1793
A16: 2012-04-01 | B16: 0.1793
A17: 2012-03-31 | B17: 0.1793
A18: 2012-03-30 | B18: 0.1788
A19: 2012-03-29 | B19: 0.1792
A20: 2012-03-28 | B20: 0.1795
A21: 2012-03-27 | B21: 0.1786
A22: 2012-03-26 | B22: 0.1784
A23: 2012-03-25 | B23: 0.1784
A24: 2012-03-24 | B24: 0.1779
A25: 2012-03-23 | B25: 0.1775
A26: 2012-03-22 | B26: 0.178
A27: 2012-03-21 | B27: 0.1778
A28: 2012-03-20 | B28: 0.1773
A29: 2012-03-19 | B29: 0.1771
A30: 2012-03-18 | B30: 0.1771
A31: 2012-03-17 | B31: 0.1763
A32: 2012-03-16 | B32: 0.1755
A33: 2012-03-15 | B33: 0.1756
A34: 2012-03-14 | B34: 0.1766
A35: 2012-03-13 | B35: 0.1764
A36: 2012-03-12 | B36: 0.1765
A37: 2012-03-11 | B37: 0.1765
A38: 2012-03-10 | B38: 0.1775
A39: 2012-03-09 | B39: 0.1776
A40: 2012-03-08 | B40: 0.1767
A41: 2012-03-07 | B41: 0.1771
A42: 2012-03-06 | B42: 0.1776
A43: 2012-03-05 | B43: 0.1775
A44: 2012-03-04 | B44: 0.1775
A45: 2012-03-03 | B45: 0.1783
A46: 2012-03-02 | B46: 0.1792
A47: 2012-03-01 | B47: 0.1806
A48: 2012-02-29 | B48: 0.1806
A49: 2012-02-28 | B49: 0.1805
A50: 2012-02-27 | B50: 0.1808
A51: 2012-02-26 | B51: 0.1808
A52: 2012-02-25 | B52: 0.1803
A53: 2012-02-24 | B53: 0.1787
A54: 2012-02-23 | B54: 0.178
A55: 2012-02-22 | B55: 0.1781
A56: 2012-02-21 | B56: 0.1779
A57: 2012-02-20 | B57: 0.1769
A58: 2012-02-19 | B58: 0.1768
A59: 2012-02-18 | B59: 0.1768
A60: 2012-02-17 | B60: 0.1755
A61: 2012-02-16 | B61: 0.1765
A62: 2012-02-15 | B62: 0.1769
A63: 2012-02-14 | B63: 0.178
A64: 2012-02-13 | B64: 0.1775
A65: 2012-02-12 | B65: 0.1774
A66: 2012-02-11 | B66: 0.178
A67: 2012-02-10 | B67: 0.1786
A68: 2012-02-09 | B68: 0.1784
A69: 2012-02-08 | B69: 0.177
A70: 2012-02-07 | B70: 0.1761
A71: 2012-02-06 | B71: 0.1769
A72: 2012-02-05 | B72: 0.1769
A73: 2012-02-04 | B73: 0.1767
A74: 2012-02-03 | B74: 0.1769
A75: 2012-02-02 | B75: 0.1765
A76: 2012-02-01 | B76: 0.1768
A77: 2012-01-31 | B77: 0.1768
A78: 2012-01-30 | B78: 0.1776
A79: 2012-01-29 | B79: 0.1777
A80: 2012-01-28 | B80: 0.1766
A81: 2012-01-27 | B81: 0.1765
A82: 2012-01-26 | B82: 0.1751
A83: 2012-01-25 | B83: 0.175
A84: 2012-01-24 | B84: 0.1742
A85: 2012-01-23 | B85: 0.174
A86: 2012-01-22 | B86: 0.174
A87: 2012-01-21 | B87: 0.174
A88: 2012-01-20 | B88: 0.1733
A89: 2012-01-19 | B89: 0.1721
A90: 2012-01-18 | B90: 0.1712
A91: 2012-01-17 | B91: 0.1702
A92: 2012-01-16 | B92: 0.1705
A93: 2012-01-15 | B93: 0.1705
A94: 2012-01-14 | B94: 0.1717
A95: 2012-01-13 | B95: 0.1715
A96: 2012-01-12 | B96: 0.1712
A97: 2012-01-11 | B97: 0.1718
A98: 2012-01-10 | B98: 0.1712
A99: 2012-01-09 | B99: 0.1711
A100: 2012-01-08 | B100: 0.1711
A101: 2012-01-07 | B101: 0.1717
A102: 2012-01-06 | B102: 0.173
A103: 2012-01-05 | B103: 0.1748
A104: 2012-01-04 | B104: 0.1749
A105: 2012-01-03 | B105: 0.174
A106: 2012-01-02 | B106: 0.1745
A107: 2012-01-01 | B107: 0.1743
A108: 2011-12-31 | B108: 0.1742
A109: 2011-12-30 | B109: 0.1738
A110: 2011-12-29 | B110: 0.1752
A111: 2011-12-28 | B111: 0.1758
A112: 2011-12-27 | B112: 0.1757
A113: 2011-12-26 | B113: 0.1754
A114: 2011-12-25 | B114: 0.1755
A115: 2011-12-24 | B115: 0.1757
A116: 2011-12-23 | B116: 0.1756
A117: 2011-12-22 | B117: 0.1761
A118: 2011-12-21 | B118: 0.1755
A119: 2011-12-20 | B119: 0.1751
A120: 2011-12-19 | B120: 0.1754
A121: 2011-12-18 | B121: 0.1755
A122: 2011-12-17 | B122: 0.1753
A123: 2011-12-16 | B123: 0.1749
A124: 2011-12-15 | B124: 0.175
A125: 2011-12-14 | B125: 0.1769
A126: 2011-12-13 | B126: 0.1786
A127: 2011-12-12 | B127: 0.1798
A128: 2011-12-11 | B128: 0.1799
A129: 2011-12-10 | B129: 0.1796
A130: 2011-12-09 | B130: 0.1799
A131: 2011-12-08 | B131: 0.1803
A132: 2011-12-07 | B132: 0.18
A133: 2011-12-06 | B133: 0.1806
A134: 2011-12-05 | B134: 0.1802
A135: 2011-12-04 | B135: 0.1802
A136: 2011-12-03 | B136: 0.181
A137: 2011-12-02 | B137: 0.181
A138: 2011-12-01 | B138: 0.1797
A139: 2011-11-30 | B139: 0.1793
A140: 2011-11-29 | B140: 0.1792
A141: 2011-11-28 | B141: 0.1781
A142: 2011-11-27 | B142: 0.178
A143: 2011-11-26 | B143: 0.1785
A144: 2011-11-25 | B144: 0.1796
A145: 2011-11-24 | B145: 0.1804
A146: 2011-11-23 | B146: 0.1815
A147: 2011-11-22 | B147: 0.1813
A148: 2011-11-21 | B148: 0.1816
A149: 2011-11-20 | B149: 0.1817
A150: 2011-11-19 | B150: 0.1815
A151: 2011-11-18 | B151: 0.181
A152: 2011-11-17 | B152: 0.1813
A153: 2011-11-16 | B153: 0.1823
A154: 2011-11-15 | B154: 0.184
A155: 2011-11-14 | B155: 0.1848
A156: 2011-11-13 | B156: 0.1851
A157: 2011-11-12 | B157: 0.1835
A158: 2011-11-11 | B158: 0.1823
A159: 2011-11-10 | B159: 0.1841
A160: 2011-11-09 | B160: 0.1851
A161: 2011-11-08 | B161: 0.1849
A162: 2011-11-07 | B162: 0.185
A163: 2011-11-06 | B163: 0.185
A164: 2011-11-05 | B164: 0.1857
A165: 2011-11-04 | B165: 0.1846
A166: 2011-11-03 | B166: 0.1846
A167: 2011-11-02 | B167: 0.1848
A168: 2011-11-01 | B168: 0.1883
A169: 2011-10-31 | B169: 0.1903
A170: 2011-10-30 | B170: 0.1902
A171: 2011-10-29 | B171: 0.1903
A172: 2011-10-28 | B172: 0.1886
A173: 2011-10-27 | B173: 0.1868
A174: 2011-10-26 | B174: 0.1869
A175: 2011-10-25 | B175: 0.1864
A176: 2011-10-24 | B176: 0.1865
A177: 2011-10-23 | B177: 0.1866
A178: 2011-10-22 | B178: 0.1854
A179: 2011-10-21 | B179: 0.1846
A180: 2011-10-20 | B180: 0.1851
A181: 2011-10-19 | B181: 0.1844
A182: 2011-10-18 | B182: 0.1856
A183: 2011-10-17 | B183: 0.1863
A184: 2011-10-16 | B184: 0.1863
A185: 2011-10-15 | B185: 0.1854
A186: 2011-10-14 | B186: 0.1849

Sheet EUR
A5: End Date | B5: EUR/USD
A6: 2012-04-11 | B6: 1.3099
A7: 2012-04-10 | B7: 1.3079
A8: 2012-04-09 | B8: 1.3091
A9: 2012-04-08 | B9: 1.309
A10: 2012-04-07 | B10: 1.3075
A11: 2012-04-06 | B11: 1.3105
A12: 2012-04-05 | B12: 1.3174
A13: 2012-04-04 | B13: 1.3321
A14: 2012-04-03 | B14: 1.3337
A15: 2012-04-02 | B15: 1.3339
A16: 2012-04-01 | B16: 1.3337
A17: 2012-03-31 | B17: 1.3338
A18: 2012-03-30 | B18: 1.3301
A19: 2012-03-29 | B19: 1.3325
A20: 2012-03-28 | B20: 1.3345
A21: 2012-03-27 | B21: 1.3283
A22: 2012-03-26 | B22: 1.3265
A23: 2012-03-25 | B23: 1.3265
A24: 2012-03-24 | B24: 1.3232
A25: 2012-03-23 | B25: 1.3198
A26: 2012-03-22 | B26: 1.324
A27: 2012-03-21 | B27: 1.3224
A28: 2012-03-20 | B28: 1.3184
A29: 2012-03-19 | B29: 1.3171
A30: 2012-03-18 | B30: 1.3171
A31: 2012-03-17 | B31: 1.3108
A32: 2012-03-16 | B32: 1.3051
A33: 2012-03-15 | B33: 1.3054
A34: 2012-03-14 | B34: 1.313
A35: 2012-03-13 | B35: 1.3117
A36: 2012-03-12 | B36: 1.3117
A37: 2012-03-11 | B37: 1.3118
A38: 2012-03-10 | B38: 1.3207
A39: 2012-03-09 | B39: 1.3201
A40: 2012-03-08 | B40: 1.3134
A41: 2012-03-07 | B41: 1.317
A42: 2012-03-06 | B42: 1.3203
A43: 2012-03-05 | B43: 1.3192
A44: 2012-03-04 | B44: 1.3193
A45: 2012-03-03 | B45: 1.3261
A46: 2012-03-02 | B46: 1.3326
A47: 2012-03-01 | B47: 1.3436
A48: 2012-02-29 | B48: 1.3431
A49: 2012-02-28 | B49: 1.3427
A50: 2012-02-27 | B50: 1.3449
A51: 2012-02-26 | B51: 1.3447
A52: 2012-02-25 | B52: 1.3403
A53: 2012-02-24 | B53: 1.3285
A54: 2012-02-23 | B54: 1.3236
A55: 2012-02-22 | B55: 1.3242
A56: 2012-02-21 | B56: 1.3227
A57: 2012-02-20 | B57: 1.3144
A58: 2012-02-19 | B58: 1.3138
A59: 2012-02-18 | B59: 1.3143
A60: 2012-02-17 | B60: 1.304
A61: 2012-02-16 | B61: 1.3126
A62: 2012-02-15 | B62: 1.3157
A63: 2012-02-14 | B63: 1.3235
A64: 2012-02-13 | B64: 1.3193
A65: 2012-02-12 | B65: 1.3192
A66: 2012-02-11 | B66: 1.3236
A67: 2012-02-10 | B67: 1.3274
A68: 2012-02-09 | B68: 1.326
A69: 2012-02-08 | B69: 1.3155
A70: 2012-02-07 | B70: 1.309
A71: 2012-02-06 | B71: 1.3145
A72: 2012-02-05 | B72: 1.3152
A73: 2012-02-04 | B73: 1.3139
A74: 2012-02-03 | B74: 1.3155
A75: 2012-02-02 | B75: 1.3116
A76: 2012-02-01 | B76: 1.3149
A77: 2012-01-31 | B77: 1.3152
A78: 2012-01-30 | B78: 1.3214
A79: 2012-01-29 | B79: 1.3215
A80: 2012-01-28 | B80: 1.3129
A81: 2012-01-27 | B81: 1.3125
A82: 2012-01-26 | B82: 1.3015
A83: 2012-01-25 | B83: 1.3008
A84: 2012-01-24 | B84: 1.2948
A85: 2012-01-23 | B85: 1.2921
A86: 2012-01-22 | B86: 1.2928
A87: 2012-01-21 | B87: 1.2942
A88: 2012-01-20 | B88: 1.2885
A89: 2012-01-19 | B89: 1.2792
A90: 2012-01-18 | B90: 1.2729
A91: 2012-01-17 | B91: 1.2657
A92: 2012-01-16 | B92: 1.2671
A93: 2012-01-15 | B93: 1.2676
A94: 2012-01-14 | B94: 1.2777
A95: 2012-01-13 | B95: 1.2751
A96: 2012-01-12 | B96: 1.2733
A97: 2012-01-11 | B97: 1.2779
A98: 2012-01-10 | B98: 1.2726
A99: 2012-01-09 | B99: 1.271
A100: 2012-01-08 | B100: 1.2714
A101: 2012-01-07 | B101: 1.2769
A102: 2012-01-06 | B102: 1.2871
A103: 2012-01-05 | B103: 1.3003
A104: 2012-01-04 | B104: 1.3003
A105: 2012-01-03 | B105: 1.2935
A106: 2012-01-02 | B106: 1.2954
A107: 2012-01-01 | B107: 1.2957
A108: 2011-12-31 | B108: 1.2949
A109: 2011-12-30 | B109: 1.2921
A110: 2011-12-29 | B110: 1.3035
A111: 2011-12-28 | B111: 1.3067
A112: 2011-12-27 | B112: 1.3059
A113: 2011-12-26 | B113: 1.3038
A114: 2011-12-25 | B114: 1.3038
A115: 2011-12-24 | B115: 1.3059
A116: 2011-12-23 | B116: 1.3053
A117: 2011-12-22 | B117: 1.3091
A118: 2011-12-21 | B118: 1.3044
A119: 2011-12-20 | B119: 1.3018
A120: 2011-12-19 | B120: 1.3037
A121: 2011-12-18 | B121: 1.3038
A122: 2011-12-17 | B122: 1.3031
A123: 2011-12-16 | B123: 1.2999
A124: 2011-12-15 | B124: 1.3013
A125: 2011-12-14 | B125: 1.3162
A126: 2011-12-13 | B126: 1.3289
A127: 2011-12-12 | B127: 1.338
A128: 2011-12-11 | B128: 1.3382
A129: 2011-12-10 | B129: 1.3351
A130: 2011-12-09 | B130: 1.3382
A131: 2011-12-08 | B131: 1.3405
A132: 2011-12-07 | B132: 1.3384
A133: 2011-12-06 | B133: 1.3429
A134: 2011-12-05 | B134: 1.339
A135: 2011-12-04 | B135: 1.3389
A136: 2011-12-03 | B136: 1.3457
A137: 2011-12-02 | B137: 1.3461
A138: 2011-12-01 | B138: 1.336
A139: 2011-11-30 | B139: 1.3336
A140: 2011-11-29 | B140: 1.3327
A141: 2011-11-28 | B141: 1.3241
A142: 2011-11-27 | B142: 1.3235
A143: 2011-11-26 | B143: 1.3283
A144: 2011-11-25 | B144: 1.3359
A145: 2011-11-24 | B145: 1.3429
A146: 2011-11-23 | B146: 1.3508
A147: 2011-11-22 | B147: 1.3496
A148: 2011-11-21 | B148: 1.3519
A149: 2011-11-20 | B149: 1.352
A150: 2011-11-19 | B150: 1.3506
A151: 2011-11-18 | B151: 1.3476
A152: 2011-11-17 | B152: 1.3495
A153: 2011-11-16 | B153: 1.3578
A154: 2011-11-15 | B154: 1.3707
A155: 2011-11-14 | B155: 1.3751
A156: 2011-11-13 | B156: 1.3746
A157: 2011-11-12 | B157: 1.3657
A158: 2011-11-11 | B158: 1.3567
A159: 2011-11-10 | B159: 1.3719
A160: 2011-11-09 | B160: 1.3776
A161: 2011-11-08 | B161: 1.3762
A162: 2011-11-07 | B162: 1.3782
A163: 2011-11-06 | B163: 1.3784
A164: 2011-11-05 | B164: 1.3799
A165: 2011-11-04 | B165: 1.3741
A166: 2011-11-03 | B166: 1.3741
A167: 2011-11-02 | B167: 1.3756
A168: 2011-11-01 | B168: 1.4013
A169: 2011-10-31 | B169: 1.4142
A170: 2011-10-30 | B170: 1.4143
A171: 2011-10-29 | B171: 1.4168
A172: 2011-10-28 | B172: 1.4039
A173: 2011-10-27 | B173: 1.3905
A174: 2011-10-26 | B174: 1.3915
A175: 2011-10-25 | B175: 1.3883
A176: 2011-10-24 | B176: 1.3884
A177: 2011-10-23 | B177: 1.389
A178: 2011-10-22 | B178: 1.3807
A179: 2011-10-21 | B179: 1.3745
A180: 2011-10-20 | B180: 1.3787
A181: 2011-10-19 | B181: 1.3732
A182: 2011-10-18 | B182: 1.3821
A183: 2011-10-17 | B183: 1.3875
A184: 2011-10-16 | B184: 1.3876
A185: 2011-10-15 | B185: 1.3804
A186: 2011-10-14 | B186: 1.3764

Sheet GBP
A5: End Date | B5: GBP/USD
A6: 2012-04-11 | B6: 1.5876
A7: 2012-04-10 | B7: 1.5874
A8: 2012-04-09 | B8: 1.5868
A9: 2012-04-08 | B9: 1.5867
A10: 2012-04-07 | B10: 1.5856
A11: 2012-04-06 | B11: 1.5863
A12: 2012-04-05 | B12: 1.5885
A13: 2012-04-04 | B13: 1.5999
A14: 2012-04-03 | B14: 1.6016
A15: 2012-04-02 | B15: 1.601
A16: 2012-04-01 | B16: 1.6009
A17: 2012-03-31 | B17: 1.5987
A18: 2012-03-30 | B18: 1.5903
A19: 2012-03-29 | B19: 1.5919
A20: 2012-03-28 | B20: 1.5965
A21: 2012-03-27 | B21: 1.589
A22: 2012-03-26 | B22: 1.5865
A23: 2012-03-25 | B23: 1.5864
A24: 2012-03-24 | B24: 1.5842
A25: 2012-03-23 | B25: 1.5838
A26: 2012-03-22 | B26: 1.5865
A27: 2012-03-21 | B27: 1.5868
A28: 2012-03-20 | B28: 1.5857
A29: 2012-03-19 | B29: 1.5838
A30: 2012-03-18 | B30: 1.5839
A31: 2012-03-17 | B31: 1.5756
A32: 2012-03-16 | B32: 1.567
A33: 2012-03-15 | B33: 1.569
A34: 2012-03-14 | B34: 1.5665
A35: 2012-03-13 | B35: 1.5653
A36: 2012-03-12 | B36: 1.5669
A37: 2012-03-11 | B37: 1.567
A38: 2012-03-10 | B38: 1.577
A39: 2012-03-09 | B39: 1.5776
A40: 2012-03-08 | B40: 1.5728
A41: 2012-03-07 | B41: 1.5805
A42: 2012-03-06 | B42: 1.5834
A43: 2012-03-05 | B43: 1.583
A44: 2012-03-04 | B44: 1.583
A45: 2012-03-03 | B45: 1.5908
A46: 2012-03-02 | B46: 1.5933
A47: 2012-03-01 | B47: 1.5929
A48: 2012-02-29 | B48: 1.5848
A49: 2012-02-28 | B49: 1.5857
A50: 2012-02-27 | B50: 1.5868
A51: 2012-02-26 | B51: 1.5868
A52: 2012-02-25 | B52: 1.5792
A53: 2012-02-24 | B53: 1.569
A54: 2012-02-23 | B54: 1.5733
A55: 2012-02-22 | B55: 1.5822
A56: 2012-02-21 | B56: 1.5861
A57: 2012-02-20 | B57: 1.5825
A58: 2012-02-19 | B58: 1.5823
A59: 2012-02-18 | B59: 1.5816
A60: 2012-02-17 | B60: 1.5703
A61: 2012-02-16 | B61: 1.57
A62: 2012-02-15 | B62: 1.5713
A63: 2012-02-14 | B63: 1.5787
A64: 2012-02-13 | B64: 1.5751
A65: 2012-02-12 | B65: 1.575
A66: 2012-02-11 | B66: 1.5787
A67: 2012-02-10 | B67: 1.5829
A68: 2012-02-09 | B68: 1.5878
A69: 2012-02-08 | B69: 1.583
A70: 2012-02-07 | B70: 1.5786
A71: 2012-02-06 | B71: 1.5806
A72: 2012-02-05 | B72: 1.5809
A73: 2012-02-04 | B73: 1.581
A74: 2012-02-03 | B74: 1.583
A75: 2012-02-02 | B75: 1.5786
A76: 2012-02-01 | B76: 1.5745
A77: 2012-01-31 | B77: 1.5694
A78: 2012-01-30 | B78: 1.5722
A79: 2012-01-29 | B79: 1.5723
A80: 2012-01-28 | B80: 1.5694
A81: 2012-01-27 | B81: 1.5677
A82: 2012-01-26 | B82: 1.5601
A83: 2012-01-25 | B83: 1.5571
A84: 2012-01-24 | B84: 1.5555
A85: 2012-01-23 | B85: 1.5567
A86: 2012-01-22 | B86: 1.557
A87: 2012-01-21 | B87: 1.5497
A88: 2012-01-20 | B88: 1.5444
A89: 2012-01-19 | B89: 1.5368
A90: 2012-01-18 | B90: 1.5353
A91: 2012-01-17 | B91: 1.5308
A92: 2012-01-16 | B92: 1.5309
A93: 2012-01-15 | B93: 1.5313
A94: 2012-01-14 | B94: 1.533
A95: 2012-01-13 | B95: 1.5327
A96: 2012-01-12 | B96: 1.5418
A97: 2012-01-11 | B97: 1.5471
A98: 2012-01-10 | B98: 1.5429
A99: 2012-01-09 | B99: 1.5419
A100: 2012-01-08 | B100: 1.5422
A101: 2012-01-07 | B101: 1.5473
A102: 2012-01-06 | B102: 1.5557
A103: 2012-01-05 | B103: 1.563
A104: 2012-01-04 | B104: 1.5577
A105: 2012-01-03 | B105: 1.55
A106: 2012-01-02 | B106: 1.5533
A107: 2012-01-01 | B107: 1.5536
A108: 2011-12-31 | B108: 1.5453
A109: 2011-12-30 | B109: 1.5426
A110: 2011-12-29 | B110: 1.5612
A111: 2011-12-28 | B111: 1.5643
A112: 2011-12-27 | B112: 1.5617
A113: 2011-12-26 | B113: 1.5582
A114: 2011-12-25 | B114: 1.5582
A115: 2011-12-24 | B115: 1.5666
A116: 2011-12-23 | B116: 1.5676
A117: 2011-12-22 | B117: 1.5684
A118: 2011-12-21 | B118: 1.5584
A119: 2011-12-20 | B119: 1.5507
A120: 2011-12-19 | B120: 1.5539
A121: 2011-12-18 | B121: 1.5539
A122: 2011-12-17 | B122: 1.5522
A123: 2011-12-16 | B123: 1.5482
A124: 2011-12-15 | B124: 1.5479
A125: 2011-12-14 | B125: 1.5576
A126: 2011-12-13 | B126: 1.5614
A127: 2011-12-12 | B127: 1.5663
A128: 2011-12-11 | B128: 1.5665
A129: 2011-12-10 | B129: 1.5638
A130: 2011-12-09 | B130: 1.5688
A131: 2011-12-08 | B131: 1.5634
A132: 2011-12-07 | B132: 1.562
A133: 2011-12-06 | B133: 1.5634
A134: 2011-12-05 | B134: 1.5593
A135: 2011-12-04 | B135: 1.5591
A136: 2011-12-03 | B136: 1.5664
A137: 2011-12-02 | B137: 1.5697
A138: 2011-12-01 | B138: 1.563
A139: 2011-11-30 | B139: 1.5557
A140: 2011-11-29 | B140: 1.5519
A141: 2011-11-28 | B141: 1.544
A142: 2011-11-27 | B142: 1.5435
A143: 2011-11-26 | B143: 1.5468
A144: 2011-11-25 | B144: 1.5526
A145: 2011-11-24 | B145: 1.5583
A146: 2011-11-23 | B146: 1.5643
A147: 2011-11-22 | B147: 1.5705
A148: 2011-11-21 | B148: 1.5799
A149: 2011-11-20 | B149: 1.58
A150: 2011-11-19 | B150: 1.5788
A151: 2011-11-18 | B151: 1.5744
A152: 2011-11-17 | B152: 1.578
A153: 2011-11-16 | B153: 1.5872
A154: 2011-11-15 | B154: 1.5991
A155: 2011-11-14 | B155: 1.6063
A156: 2011-11-13 | B156: 1.6061
A157: 2011-11-12 | B157: 1.596
A158: 2011-11-11 | B158: 1.5923
A159: 2011-11-10 | B159: 1.6026
A160: 2011-11-09 | B160: 1.6066
A161: 2011-11-08 | B161: 1.6027
A162: 2011-11-07 | B162: 1.6027
A163: 2011-11-06 | B163: 1.6028
A164: 2011-11-05 | B164: 1.6018
A165: 2011-11-04 | B165: 1.5956
A166: 2011-11-03 | B166: 1.5975
A167: 2011-11-02 | B167: 1.6001
A168: 2011-11-01 | B168: 1.6058
A169: 2011-10-31 | B169: 1.6122
A170: 2011-10-30 | B170: 1.6124
A171: 2011-10-29 | B171: 1.61
A172: 2011-10-28 | B172: 1.6026
A173: 2011-10-27 | B173: 1.5988
A174: 2011-10-26 | B174: 1.5993
A175: 2011-10-25 | B175: 1.5957
A176: 2011-10-24 | B176: 1.5943
A177: 2011-10-23 | B177: 1.5946
A178: 2011-10-22 | B178: 1.5851
A179: 2011-10-21 | B179: 1.5753
A180: 2011-10-20 | B180: 1.5762
A181: 2011-10-19 | B181: 1.5738
A182: 2011-10-18 | B182: 1.5787
A183: 2011-10-17 | B183: 1.5816
A184: 2011-10-16 | B184: 1.5816
A185: 2011-10-15 | B185: 1.5775
A186: 2011-10-14 | B186: 1.573

Sheet HKD
A5: End Date | B5: HKD/USD
A6: 2012-04-11 | B6: 0.1288
A7: 2012-04-10 | B7: 0.1288
A8: 2012-04-09 | B8: 0.1288
A9: 2012-04-08 | B9: 0.1288
A10: 2012-04-07 | B10: 0.1288
A11: 2012-04-06 | B11: 0.1288
A12: 2012-04-05 | B12: 0.1288
A13: 2012-04-04 | B13: 0.1288
A14: 2012-04-03 | B14: 0.1288
A15: 2012-04-02 | B15: 0.1287
A16: 2012-04-01 | B16: 0.1287
A17: 2012-03-31 | B17: 0.1288
A18: 2012-03-30 | B18: 0.1288
A19: 2012-03-29 | B19: 0.1288
A20: 2012-03-28 | B20: 0.1288
A21: 2012-03-27 | B21: 0.1287
A22: 2012-03-26 | B22: 0.1287
A23: 2012-03-25 | B23: 0.1287
A24: 2012-03-24 | B24: 0.1288
A25: 2012-03-23 | B25: 0.1288
A26: 2012-03-22 | B26: 0.1288
A27: 2012-03-21 | B27: 0.1288
A28: 2012-03-20 | B28: 0.1288
A29: 2012-03-19 | B29: 0.1288
A30: 2012-03-18 | B30: 0.1288
A31: 2012-03-17 | B31: 0.1288
A32: 2012-03-16 | B32: 0.1288
A33: 2012-03-15 | B33: 0.1288
A34: 2012-03-14 | B34: 0.1289
A35: 2012-03-13 | B35: 0.1289
A36: 2012-03-12 | B36: 0.1289
A37: 2012-03-11 | B37: 0.1289
A38: 2012-03-10 | B38: 0.1289
A39: 2012-03-09 | B39: 0.1289
A40: 2012-03-08 | B40: 0.1288
A41: 2012-03-07 | B41: 0.1288
A42: 2012-03-06 | B42: 0.1288
A43: 2012-03-05 | B43: 0.1289
A44: 2012-03-04 | B44: 0.1289
A45: 2012-03-03 | B45: 0.1289
A46: 2012-03-02 | B46: 0.1289
A47: 2012-03-01 | B47: 0.1289
A48: 2012-02-29 | B48: 0.1289
A49: 2012-02-28 | B49: 0.1289
A50: 2012-02-27 | B50: 0.1289
A51: 2012-02-26 | B51: 0.1289
A52: 2012-02-25 | B52: 0.1289
A53: 2012-02-24 | B53: 0.1289
A54: 2012-02-23 | B54: 0.1289
A55: 2012-02-22 | B55: 0.1289
A56: 2012-02-21 | B56: 0.129
A57: 2012-02-20 | B57: 0.1289
A58: 2012-02-19 | B58: 0.1289
A59: 2012-02-18 | B59: 0.129
A60: 2012-02-17 | B60: 0.129
A61: 2012-02-16 | B61: 0.129
A62: 2012-02-15 | B62: 0.129
A63: 2012-02-14 | B63: 0.1289
A64: 2012-02-13 | B64: 0.1289
A65: 2012-02-12 | B65: 0.1289
A66: 2012-02-11 | B66: 0.1289
A67: 2012-02-10 | B67: 0.1289
A68: 2012-02-09 | B68: 0.129
A69: 2012-02-08 | B69: 0.129
A70: 2012-02-07 | B70: 0.1289
A71: 2012-02-06 | B71: 0.1289
A72: 2012-02-05 | B72: 0.1289
A73: 2012-02-04 | B73: 0.1289
A74: 2012-02-03 | B74: 0.1289
A75: 2012-02-02 | B75: 0.1289
A76: 2012-02-01 | B76: 0.1289
A77: 2012-01-31 | B77: 0.1289
A78: 2012-01-30 | B78: 0.1289
A79: 2012-01-29 | B79: 0.1289
A80: 2012-01-28 | B80: 0.1289
A81: 2012-01-27 | B81: 0.1289
A82: 2012-01-26 | B82: 0.1288
A83: 2012-01-25 | B83: 0.1288
A84: 2012-01-24 | B84: 0.1288
A85: 2012-01-23 | B85: 0.1288
A86: 2012-01-22 | B86: 0.1288
A87: 2012-01-21 | B87: 0.1288
A88: 2012-01-20 | B88: 0.1288
A89: 2012-01-19 | B89: 0.1288
A90: 2012-01-18 | B90: 0.1288
A91: 2012-01-17 | B91: 0.1287
A92: 2012-01-16 | B92: 0.1288
A93: 2012-01-15 | B93: 0.1288
A94: 2012-01-14 | B94: 0.1287
A95: 2012-01-13 | B95: 0.1287
A96: 2012-01-12 | B96: 0.1287
A97: 2012-01-11 | B97: 0.1288
A98: 2012-01-10 | B98: 0.1288
A99: 2012-01-09 | B99: 0.1288
A100: 2012-01-08 | B100: 0.1288
A101: 2012-01-07 | B101: 0.1288
A102: 2012-01-06 | B102: 0.1288
A103: 2012-01-05 | B103: 0.1287
A104: 2012-01-04 | B104: 0.1287
A105: 2012-01-03 | B105: 0.1287
A106: 2012-01-02 | B106: 0.1287
A107: 2012-01-01 | B107: 0.1287
A108: 2011-12-31 | B108: 0.1287
A109: 2011-12-30 | B109: 0.1286
A110: 2011-12-29 | B110: 0.1286
A111: 2011-12-28 | B111: 0.1286
A112: 2011-12-27 | B112: 0.1285
A113: 2011-12-26 | B113: 0.1285
A114: 2011-12-25 | B114: 0.1285
A115: 2011-12-24 | B115: 0.1286
A116: 2011-12-23 | B116: 0.1285
A117: 2011-12-22 | B117: 0.1285
A118: 2011-12-21 | B118: 0.1285
A119: 2011-12-20 | B119: 0.1285
A120: 2011-12-19 | B120: 0.1284
A121: 2011-12-18 | B121: 0.1284
A122: 2011-12-17 | B122: 0.1285
A123: 2011-12-16 | B123: 0.1285
A124: 2011-12-15 | B124: 0.1285
A125: 2011-12-14 | B125: 0.1285
A126: 2011-12-13 | B126: 0.1285
A127: 2011-12-12 | B127: 0.1285
A128: 2011-12-11 | B128: 0.1285
A129: 2011-12-10 | B129: 0.1285
A130: 2011-12-09 | B130: 0.1286
A131: 2011-12-08 | B131: 0.1286
A132: 2011-12-07 | B132: 0.1286
A133: 2011-12-06 | B133: 0.1287
A134: 2011-12-05 | B134: 0.1287
A135: 2011-12-04 | B135: 0.1287
A136: 2011-12-03 | B136: 0.1287
A137: 2011-12-02 | B137: 0.1286
A138: 2011-12-01 | B138: 0.1285
A139: 2011-11-30 | B139: 0.1283
A140: 2011-11-29 | B140: 0.1283
A141: 2011-11-28 | B141: 0.1282
A142: 2011-11-27 | B142: 0.1282
A143: 2011-11-26 | B143: 0.1283
A144: 2011-11-25 | B144: 0.1283
A145: 2011-11-24 | B145: 0.1283
A146: 2011-11-23 | B146: 0.1284
A147: 2011-11-22 | B147: 0.1284
A148: 2011-11-21 | B148: 0.1284
A149: 2011-11-20 | B149: 0.1284
A150: 2011-11-19 | B150: 0.1284
A151: 2011-11-18 | B151: 0.1284
A152: 2011-11-17 | B152: 0.1285
A153: 2011-11-16 | B153: 0.1285
A154: 2011-11-15 | B154: 0.1285
A155: 2011-11-14 | B155: 0.1285
A156: 2011-11-13 | B156: 0.1285
A157: 2011-11-12 | B157: 0.1285
A158: 2011-11-11 | B158: 0.1286
A159: 2011-11-10 | B159: 0.1287
A160: 2011-11-09 | B160: 0.1287
A161: 2011-11-08 | B161: 0.1287
A162: 2011-11-07 | B162: 0.1287
A163: 2011-11-06 | B163: 0.1287
A164: 2011-11-05 | B164: 0.1287
A165: 2011-11-04 | B165: 0.1287
A166: 2011-11-03 | B166: 0.1287
A167: 2011-11-02 | B167: 0.1287
A168: 2011-11-01 | B168: 0.1288
A169: 2011-10-31 | B169: 0.1288
A170: 2011-10-30 | B170: 0.1288
A171: 2011-10-29 | B171: 0.1287
A172: 2011-10-28 | B172: 0.1287
A173: 2011-10-27 | B173: 0.1286
A174: 2011-10-26 | B174: 0.1286
A175: 2011-10-25 | B175: 0.1286
A176: 2011-10-24 | B176: 0.1285
A177: 2011-10-23 | B177: 0.1285
A178: 2011-10-22 | B178: 0.1285
A179: 2011-10-21 | B179: 0.1286
A180: 2011-10-20 | B180: 0.1286
A181: 2011-10-19 | B181: 0.1286
A182: 2011-10-18 | B182: 0.1286
A183: 2011-10-17 | B183: 0.1286
A184: 2011-10-16 | B184: 0.1285
A185: 2011-10-15 | B185: 0.1286
A186: 2011-10-14 | B186: 0.1285

Sheet INR
A5: End Date | B5: INR/USD
A6: 2012-04-11 | B6: 0.0191
A7: 2012-04-10 | B7: 0.0191
A8: 2012-04-09 | B8: 0.0191
A9: 2012-04-08 | B9: 0.0191
A10: 2012-04-07 | B10: 0.0192
A11: 2012-04-06 | B11: 0.0192
A12: 2012-04-05 | B12: 0.0193
A13: 2012-04-04 | B13: 0.0194
A14: 2012-04-03 | B14: 0.0193
A15: 2012-04-02 | B15: 0.0192
A16: 2012-04-01 | B16: 0.0192
A17: 2012-03-31 | B17: 0.0192
A18: 2012-03-30 | B18: 0.0191
A19: 2012-03-29 | B19: 0.0192
A20: 2012-03-28 | B20: 0.0191
A21: 2012-03-27 | B21: 0.019
A22: 2012-03-26 | B22: 0.019
A23: 2012-03-25 | B23: 0.019
A24: 2012-03-24 | B24: 0.0191
A25: 2012-03-23 | B25: 0.0192
A26: 2012-03-22 | B26: 0.0193
A27: 2012-03-21 | B27: 0.0194
A28: 2012-03-20 | B28: 0.0195
A29: 2012-03-19 | B29: 0.0193
A30: 2012-03-18 | B30: 0.0193
A31: 2012-03-17 | B31: 0.0195
A32: 2012-03-16 | B32: 0.0195
A33: 2012-03-15 | B33: 0.0196
A34: 2012-03-14 | B34: 0.0198
A35: 2012-03-13 | B35: 0.0199
A36: 2012-03-12 | B36: 0.0199
A37: 2012-03-11 | B37: 0.0199
A38: 2012-03-10 | B38: 0.02
A39: 2012-03-09 | B39: 0.0199
A40: 2012-03-08 | B40: 0.0197
A41: 2012-03-07 | B41: 0.0198
A42: 2012-03-06 | B42: 0.02
A43: 2012-03-05 | B43: 0.0199
A44: 2012-03-04 | B44: 0.0199
A45: 2012-03-03 | B45: 0.0201
A46: 2012-03-02 | B46: 0.0202
A47: 2012-03-01 | B47: 0.0203
A48: 2012-02-29 | B48: 0.0202
A49: 2012-02-28 | B49: 0.0202
A50: 2012-02-27 | B50: 0.0201
A51: 2012-02-26 | B51: 0.0201
A52: 2012-02-25 | B52: 0.0202
A53: 2012-02-24 | B53: 0.0202
A54: 2012-02-23 | B54: 0.0202
A55: 2012-02-22 | B55: 0.0202
A56: 2012-02-21 | B56: 0.0202
A57: 2012-02-20 | B57: 0.0199
A58: 2012-02-19 | B58: 0.0199
A59: 2012-02-18 | B59: 0.0201
A60: 2012-02-17 | B60: 0.02
A61: 2012-02-16 | B61: 0.0201
A62: 2012-02-15 | B62: 0.0201
A63: 2012-02-14 | B63: 0.02
A64: 2012-02-13 | B64: 0.0198
A65: 2012-02-12 | B65: 0.0198
A66: 2012-02-11 | B66: 0.02
A67: 2012-02-10 | B67: 0.0201
A68: 2012-02-09 | B68: 0.0202
A69: 2012-02-08 | B69: 0.0202
A70: 2012-02-07 | B70: 0.0203
A71: 2012-02-06 | B71: 0.0202
A72: 2012-02-05 | B72: 0.0202
A73: 2012-02-04 | B73: 0.0203
A74: 2012-02-03 | B74: 0.0201
A75: 2012-02-02 | B75: 0.02
A76: 2012-02-01 | B76: 0.0199
A77: 2012-01-31 | B77: 0.0199
A78: 2012-01-30 | B78: 0.0198
A79: 2012-01-29 | B79: 0.0198
A80: 2012-01-28 | B80: 0.0199
A81: 2012-01-27 | B81: 0.0198
A82: 2012-01-26 | B82: 0.0197
A83: 2012-01-25 | B83: 0.0197
A84: 2012-01-24 | B84: 0.0196
A85: 2012-01-23 | B85: 0.0194
A86: 2012-01-22 | B86: 0.0194
A87: 2012-01-21 | B87: 0.0196
A88: 2012-01-20 | B88: 0.0196
A89: 2012-01-19 | B89: 0.0195
A90: 2012-01-18 | B90: 0.0193
A91: 2012-01-17 | B91: 0.0191
A92: 2012-01-16 | B92: 0.0189
A93: 2012-01-15 | B93: 0.0189
A94: 2012-01-14 | B94: 0.0191
A95: 2012-01-13 | B95: 0.019
A96: 2012-01-12 | B96: 0.019
A97: 2012-01-11 | B97: 0.0189
A98: 2012-01-10 | B98: 0.0187
A99: 2012-01-09 | B99: 0.0185
A100: 2012-01-08 | B100: 0.0185
A101: 2012-01-07 | B101: 0.0187
A102: 2012-01-06 | B102: 0.0186
A103: 2012-01-05 | B103: 0.0185
A104: 2012-01-04 | B104: 0.0184
A105: 2012-01-03 | B105: 0.0183
A106: 2012-01-02 | B106: 0.0183
A107: 2012-01-01 | B107: 0.0183
A108: 2011-12-31 | B108: 0.0183
A109: 2011-12-30 | B109: 0.0183
A110: 2011-12-29 | B110: 0.0183
A111: 2011-12-28 | B111: 0.0184
A112: 2011-12-27 | B112: 0.0184
A113: 2011-12-26 | B113: 0.0183
A114: 2011-12-25 | B114: 0.0183
A115: 2011-12-24 | B115: 0.0185
A116: 2011-12-23 | B116: 0.0185
A117: 2011-12-22 | B117: 0.0185
A118: 2011-12-21 | B118: 0.0184
A119: 2011-12-20 | B119: 0.0184
A120: 2011-12-19 | B120: 0.0185
A121: 2011-12-18 | B121: 0.0185
A122: 2011-12-17 | B122: 0.0185
A123: 2011-12-16 | B123: 0.0181
A124: 2011-12-15 | B124: 0.0182
A125: 2011-12-14 | B125: 0.0184
A126: 2011-12-13 | B126: 0.0186
A127: 2011-12-12 | B127: 0.0189
A128: 2011-12-11 | B128: 0.019
A129: 2011-12-10 | B129: 0.0191
A130: 2011-12-09 | B130: 0.0192
A131: 2011-12-08 | B131: 0.0193
A132: 2011-12-07 | B132: 0.0194
A133: 2011-12-06 | B133: 0.0194
A134: 2011-12-05 | B134: 0.0193
A135: 2011-12-04 | B135: 0.0193
A136: 2011-12-03 | B136: 0.0194
A137: 2011-12-02 | B137: 0.0193
A138: 2011-12-01 | B138: 0.0191
A139: 2011-11-30 | B139: 0.0191
A140: 2011-11-29 | B140: 0.0191
A141: 2011-11-28 | B141: 0.0189
A142: 2011-11-27 | B142: 0.0189
A143: 2011-11-26 | B143: 0.019
A144: 2011-11-25 | B144: 0.019
A145: 2011-11-24 | B145: 0.0189
A146: 2011-11-23 | B146: 0.0189
A147: 2011-11-22 | B147: 0.0191
A148: 2011-11-21 | B148: 0.0195
A149: 2011-11-20 | B149: 0.0191
A150: 2011-11-19 | B150: 0.0194
A151: 2011-11-18 | B151: 0.0195
A152: 2011-11-17 | B152: 0.0195
A153: 2011-11-16 | B153: 0.0196
A154: 2011-11-15 | B154: 0.0197
A155: 2011-11-14 | B155: 0.02
A156: 2011-11-13 | B156: 0.0197
A157: 2011-11-12 | B157: 0.0197
A158: 2011-11-11 | B158: 0.0197
A159: 2011-11-10 | B159: 0.0199
A160: 2011-11-09 | B160: 0.0201
A161: 2011-11-08 | B161: 0.0201
A162: 2011-11-07 | B162: 0.02
A163: 2011-11-06 | B163: 0.02
A164: 2011-11-05 | B164: 0.0202
A165: 2011-11-04 | B165: 0.0201
A166: 2011-11-03 | B166: 0.0201
A167: 2011-11-02 | B167: 0.0201
A168: 2011-11-01 | B168: 0.0203
A169: 2011-10-31 | B169: 0.0202
A170: 2011-10-30 | B170: 0.0202
A171: 2011-10-29 | B171: 0.0203
A172: 2011-10-28 | B172: 0.0201
A173: 2011-10-27 | B173: 0.02
A174: 2011-10-26 | B174: 0.02
A175: 2011-10-25 | B175: 0.0198
A176: 2011-10-24 | B176: 0.0196
A177: 2011-10-23 | B177: 0.0196
A178: 2011-10-22 | B178: 0.0198
A179: 2011-10-21 | B179: 0.0199
A180: 2011-10-20 | B180: 0.0201
A181: 2011-10-19 | B181: 0.0201
A182: 2011-10-18 | B182: 0.0202
A183: 2011-10-17 | B183: 0.02
A184: 2011-10-16 | B184: 0.02
A185: 2011-10-15 | B185: 0.0202
A186: 2011-10-14 | B186: 0.0202

Sheet JPY
A5: End Date | B5: JPY/USD
A6: 2012-04-11 | B6: 0.0123
A7: 2012-04-10 | B7: 0.0123
A8: 2012-04-09 | B8: 0.0122
A9: 2012-04-08 | B9: 0.0122
A10: 2012-04-07 | B10: 0.0122
A11: 2012-04-06 | B11: 0.0122
A12: 2012-04-05 | B12: 0.0121
A13: 2012-04-04 | B13: 0.0122
A14: 2012-04-03 | B14: 0.0121
A15: 2012-04-02 | B15: 0.0121
A16: 2012-04-01 | B16: 0.0121
A17: 2012-03-31 | B17: 0.0122
A18: 2012-03-30 | B18: 0.0121
A19: 2012-03-29 | B19: 0.0121
A20: 2012-03-28 | B20: 0.0121
A21: 2012-03-27 | B21: 0.0121
A22: 2012-03-26 | B22: 0.0121
A23: 2012-03-25 | B23: 0.0121
A24: 2012-03-24 | B24: 0.0121
A25: 2012-03-23 | B25: 0.012
A26: 2012-03-22 | B26: 0.0119
A27: 2012-03-21 | B27: 0.012
A28: 2012-03-20 | B28: 0.012
A29: 2012-03-19 | B29: 0.012
A30: 2012-03-18 | B30: 0.012
A31: 2012-03-17 | B31: 0.012
A32: 2012-03-16 | B32: 0.012
A33: 2012-03-15 | B33: 0.012
A34: 2012-03-14 | B34: 0.0121
A35: 2012-03-13 | B35: 0.0122
A36: 2012-03-12 | B36: 0.0121
A37: 2012-03-11 | B37: 0.0121
A38: 2012-03-10 | B38: 0.0122
A39: 2012-03-09 | B39: 0.0123
A40: 2012-03-08 | B40: 0.0124
A41: 2012-03-07 | B41: 0.0123
A42: 2012-03-06 | B42: 0.0123
A43: 2012-03-05 | B43: 0.0122
A44: 2012-03-04 | B44: 0.0122
A45: 2012-03-03 | B45: 0.0123
A46: 2012-03-02 | B46: 0.0123
A47: 2012-03-01 | B47: 0.0124
A48: 2012-02-29 | B48: 0.0124
A49: 2012-02-28 | B49: 0.0124
A50: 2012-02-27 | B50: 0.0123
A51: 2012-02-26 | B51: 0.0123
A52: 2012-02-25 | B52: 0.0124
A53: 2012-02-24 | B53: 0.0125
A54: 2012-02-23 | B54: 0.0125
A55: 2012-02-22 | B55: 0.0125
A56: 2012-02-21 | B56: 0.0126
A57: 2012-02-20 | B57: 0.0126
A58: 2012-02-19 | B58: 0.0126
A59: 2012-02-18 | B59: 0.0126
A60: 2012-02-17 | B60: 0.0127
A61: 2012-02-16 | B61: 0.0127
A62: 2012-02-15 | B62: 0.0128
A63: 2012-02-14 | B63: 0.0129
A64: 2012-02-13 | B64: 0.0129
A65: 2012-02-12 | B65: 0.0129
A66: 2012-02-11 | B66: 0.0129
A67: 2012-02-10 | B67: 0.0129
A68: 2012-02-09 | B68: 0.013
A69: 2012-02-08 | B69: 0.013
A70: 2012-02-07 | B70: 0.0131
A71: 2012-02-06 | B71: 0.013
A72: 2012-02-05 | B72: 0.013
A73: 2012-02-04 | B73: 0.0131
A74: 2012-02-03 | B74: 0.0131
A75: 2012-02-02 | B75: 0.0131
A76: 2012-02-01 | B76: 0.0131
A77: 2012-01-31 | B77: 0.0131
A78: 2012-01-30 | B78: 0.013
A79: 2012-01-29 | B79: 0.013
A80: 2012-01-28 | B80: 0.013
A81: 2012-01-27 | B81: 0.0129
A82: 2012-01-26 | B82: 0.0128
A83: 2012-01-25 | B83: 0.0129
A84: 2012-01-24 | B84: 0.013
A85: 2012-01-23 | B85: 0.013
A86: 2012-01-22 | B86: 0.013
A87: 2012-01-21 | B87: 0.013
A88: 2012-01-20 | B88: 0.013
A89: 2012-01-19 | B89: 0.013
A90: 2012-01-18 | B90: 0.013
A91: 2012-01-17 | B91: 0.013
A92: 2012-01-16 | B92: 0.013
A93: 2012-01-15 | B93: 0.013
A94: 2012-01-14 | B94: 0.013
A95: 2012-01-13 | B95: 0.013
A96: 2012-01-12 | B96: 0.013
A97: 2012-01-11 | B97: 0.013
A98: 2012-01-10 | B98: 0.013
A99: 2012-01-09 | B99: 0.013
A100: 2012-01-08 | B100: 0.013
A101: 2012-01-07 | B101: 0.013
A102: 2012-01-06 | B102: 0.013
A103: 2012-01-05 | B103: 0.013
A104: 2012-01-04 | B104: 0.013
A105: 2012-01-03 | B105: 0.013
A106: 2012-01-02 | B106: 0.013
A107: 2012-01-01 | B107: 0.013
A108: 2011-12-31 | B108: 0.0129
A109: 2011-12-30 | B109: 0.0129
A110: 2011-12-29 | B110: 0.0129
A111: 2011-12-28 | B111: 0.0128
A112: 2011-12-27 | B112: 0.0128
A113: 2011-12-26 | B113: 0.0128
A114: 2011-12-25 | B114: 0.0128
A115: 2011-12-24 | B115: 0.0128
A116: 2011-12-23 | B116: 0.0128
A117: 2011-12-22 | B117: 0.0128
A118: 2011-12-21 | B118: 0.0128
A119: 2011-12-20 | B119: 0.0128
A120: 2011-12-19 | B120: 0.0128
A121: 2011-12-18 | B121: 0.0128
A122: 2011-12-17 | B122: 0.0128
A123: 2011-12-16 | B123: 0.0128
A124: 2011-12-15 | B124: 0.0128
A125: 2011-12-14 | B125: 0.0128
A126: 2011-12-13 | B126: 0.0129
A127: 2011-12-12 | B127: 0.0129
A128: 2011-12-11 | B128: 0.0129
A129: 2011-12-10 | B129: 0.0129
A130: 2011-12-09 | B130: 0.0129
A131: 2011-12-08 | B131: 0.0129
A132: 2011-12-07 | B132: 0.0129
A133: 2011-12-06 | B133: 0.0128
A134: 2011-12-05 | B134: 0.0128
A135: 2011-12-04 | B135: 0.0128
A136: 2011-12-03 | B136: 0.0128
A137: 2011-12-02 | B137: 0.0129
A138: 2011-12-01 | B138: 0.0128
A139: 2011-11-30 | B139: 0.0128
A140: 2011-11-29 | B140: 0.0129
A141: 2011-11-28 | B141: 0.0129
A142: 2011-11-27 | B142: 0.0129
A143: 2011-11-26 | B143: 0.0129
A144: 2011-11-25 | B144: 0.013
A145: 2011-11-24 | B145: 0.013
A146: 2011-11-23 | B146: 0.013
A147: 2011-11-22 | B147: 0.013
A148: 2011-11-21 | B148: 0.013
A149: 2011-11-20 | B149: 0.013
A150: 2011-11-19 | B150: 0.013
A151: 2011-11-18 | B151: 0.013
A152: 2011-11-17 | B152: 0.013
A153: 2011-11-16 | B153: 0.013
A154: 2011-11-15 | B154: 0.013
A155: 2011-11-14 | B155: 0.013
A156: 2011-11-13 | B156: 0.013
A157: 2011-11-12 | B157: 0.0129
A158: 2011-11-11 | B158: 0.0129
A159: 2011-11-10 | B159: 0.0129
A160: 2011-11-09 | B160: 0.0128
A161: 2011-11-08 | B161: 0.0128
A162: 2011-11-07 | B162: 0.0128
A163: 2011-11-06 | B163: 0.0128
A164: 2011-11-05 | B164: 0.0128
A165: 2011-11-04 | B165: 0.0128
A166: 2011-11-03 | B166: 0.0128
A167: 2011-11-02 | B167: 0.0128
A168: 2011-11-01 | B168: 0.0128
A169: 2011-10-31 | B169: 0.0132
A170: 2011-10-30 | B170: 0.0132
A171: 2011-10-29 | B171: 0.0132
A172: 2011-10-28 | B172: 0.0132
A173: 2011-10-27 | B173: 0.0132
A174: 2011-10-26 | B174: 0.0131
A175: 2011-10-25 | B175: 0.0131
A176: 2011-10-24 | B176: 0.0131
A177: 2011-10-23 | B177: 0.0131
A178: 2011-10-22 | B178: 0.0131
A179: 2011-10-21 | B179: 0.013
A180: 2011-10-20 | B180: 0.013
A181: 2011-10-19 | B181: 0.013
A182: 2011-10-18 | B182: 0.013
A183: 2011-10-17 | B183: 0.0129
A184: 2011-10-16 | B184: 0.0129
A185: 2011-10-15 | B185: 0.013
A186: 2011-10-14 | B186: 0.013

Sheet KRW
A5: End Date | B5: KRW/USD
A6: 2012-04-11 | B6: 0.0009
A7: 2012-04-10 | B7: 0.0009
A8: 2012-04-09 | B8: 0.0009
A9: 2012-04-08 | B9: 0.0009
A10: 2012-04-07 | B10: 0.0009
A11: 2012-04-06 | B11: 0.0009
A12: 2012-04-05 | B12: 0.0009
A13: 2012-04-04 | B13: 0.0009
A14: 2012-04-03 | B14: 0.0009
A15: 2012-04-02 | B15: 0.0009
A16: 2012-04-01 | B16: 0.0009
A17: 2012-03-31 | B17: 0.0009
A18: 2012-03-30 | B18: 0.0009
A19: 2012-03-29 | B19: 0.0009
A20: 2012-03-28 | B20: 0.0009
A21: 2012-03-27 | B21: 0.0009
A22: 2012-03-26 | B22: 0.0009
A23: 2012-03-25 | B23: 0.0009
A24: 2012-03-24 | B24: 0.0009
A25: 2012-03-23 | B25: 0.0009
A26: 2012-03-22 | B26: 0.0009
A27: 2012-03-21 | B27: 0.0009
A28: 2012-03-20 | B28: 0.0009
A29: 2012-03-19 | B29: 0.0009
A30: 2012-03-18 | B30: 0.0009
A31: 2012-03-17 | B31: 0.0009
A32: 2012-03-16 | B32: 0.0009
A33: 2012-03-15 | B33: 0.0009
A34: 2012-03-14 | B34: 0.0009
A35: 2012-03-13 | B35: 0.0009
A36: 2012-03-12 | B36: 0.0009
A37: 2012-03-11 | B37: 0.0009
A38: 2012-03-10 | B38: 0.0009
A39: 2012-03-09 | B39: 0.0009
A40: 2012-03-08 | B40: 0.0009
A41: 2012-03-07 | B41: 0.0009
A42: 2012-03-06 | B42: 0.0009
A43: 2012-03-05 | B43: 0.0009
A44: 2012-03-04 | B44: 0.0009
A45: 2012-03-03 | B45: 0.0009
A46: 2012-03-02 | B46: 0.0009
A47: 2012-03-01 | B47: 0.0009
A48: 2012-02-29 | B48: 0.0009
A49: 2012-02-28 | B49: 0.0009
A50: 2012-02-27 | B50: 0.0009
A51: 2012-02-26 | B51: 0.0009
A52: 2012-02-25 | B52: 0.0009
A53: 2012-02-24 | B53: 0.0009
A54: 2012-02-23 | B54: 0.0009
A55: 2012-02-22 | B55: 0.0009
A56: 2012-02-21 | B56: 0.0009
A57: 2012-02-20 | B57: 0.0009
A58: 2012-02-19 | B58: 0.0009
A59: 2012-02-18 | B59: 0.0009
A60: 2012-02-17 | B60: 0.0009
A61: 2012-02-16 | B61: 0.0009
A62: 2012-02-15 | B62: 0.0009
A63: 2012-02-14 | B63: 0.0009
A64: 2012-02-13 | B64: 0.0009
A65: 2012-02-12 | B65: 0.0009
A66: 2012-02-11 | B66: 0.0009
A67: 2012-02-10 | B67: 0.0009
A68: 2012-02-09 | B68: 0.0009
A69: 2012-02-08 | B69: 0.0009
A70: 2012-02-07 | B70: 0.0009
A71: 2012-02-06 | B71: 0.0009
A72: 2012-02-05 | B72: 0.0009
A73: 2012-02-04 | B73: 0.0009
A74: 2012-02-03 | B74: 0.0009
A75: 2012-02-02 | B75: 0.0009
A76: 2012-02-01 | B76: 0.0009
A77: 2012-01-31 | B77: 0.0009
A78: 2012-01-30 | B78: 0.0009
A79: 2012-01-29 | B79: 0.0009
A80: 2012-01-28 | B80: 0.0009
A81: 2012-01-27 | B81: 0.0009
A82: 2012-01-26 | B82: 0.0009
A83: 2012-01-25 | B83: 0.0009
A84: 2012-01-24 | B84: 0.0009
A85: 2012-01-23 | B85: 0.0009
A86: 2012-01-22 | B86: 0.0009
A87: 2012-01-21 | B87: 0.0009
A88: 2012-01-20 | B88: 0.0009
A89: 2012-01-19 | B89: 0.0009
A90: 2012-01-18 | B90: 0.0009
A91: 2012-01-17 | B91: 0.0009
A92: 2012-01-16 | B92: 0.0009
A93: 2012-01-15 | B93: 0.0009
A94: 2012-01-14 | B94: 0.0009
A95: 2012-01-13 | B95: 0.0009
A96: 2012-01-12 | B96: 0.0009
A97: 2012-01-11 | B97: 0.0009
A98: 2012-01-10 | B98: 0.0009
A99: 2012-01-09 | B99: 0.0009
A100: 2012-01-08 | B100: 0.0009
A101: 2012-01-07 | B101: 0.0009
A102: 2012-01-06 | B102: 0.0009
A103: 2012-01-05 | B103: 0.0009
A104: 2012-01-04 | B104: 0.0009
A105: 2012-01-03 | B105: 0.0009
A106: 2012-01-02 | B106: 0.0009
A107: 2012-01-01 | B107: 0.0009
A108: 2011-12-31 | B108: 0.0009
A109: 2011-12-30 | B109: 0.0009
A110: 2011-12-29 | B110: 0.0009
A111: 2011-12-28 | B111: 0.0009
A112: 2011-12-27 | B112: 0.0009
A113: 2011-12-26 | B113: 0.0009
A114: 2011-12-25 | B114: 0.0009
A115: 2011-12-24 | B115: 0.0009
A116: 2011-12-23 | B116: 0.0009
A117: 2011-12-22 | B117: 0.0009
A118: 2011-12-21 | B118: 0.0009
A119: 2011-12-20 | B119: 0.0009
A120: 2011-12-19 | B120: 0.0009
A121: 2011-12-18 | B121: 0.0009
A122: 2011-12-17 | B122: 0.0009
A123: 2011-12-16 | B123: 0.0009
A124: 2011-12-15 | B124: 0.0009
A125: 2011-12-14 | B125: 0.0009
A126: 2011-12-13 | B126: 0.0009
A127: 2011-12-12 | B127: 0.0009
A128: 2011-12-11 | B128: 0.0009
A129: 2011-12-10 | B129: 0.0009
A130: 2011-12-09 | B130: 0.0009
A131: 2011-12-08 | B131: 0.0009
A132: 2011-12-07 | B132: 0.0009
A133: 2011-12-06 | B133: 0.0009
A134: 2011-12-05 | B134: 0.0009
A135: 2011-12-04 | B135: 0.0009
A136: 2011-12-03 | B136: 0.0009
A137: 2011-12-02 | B137: 0.0009
A138: 2011-12-01 | B138: 0.0009
A139: 2011-11-30 | B139: 0.0009
A140: 2011-11-29 | B140: 0.0009
A141: 2011-11-28 | B141: 0.0009
A142: 2011-11-27 | B142: 0.0009
A143: 2011-11-26 | B143: 0.0009
A144: 2011-11-25 | B144: 0.0009
A145: 2011-11-24 | B145: 0.0009
A146: 2011-11-23 | B146: 0.0009
A147: 2011-11-22 | B147: 0.0009
A148: 2011-11-21 | B148: 0.0009
A149: 2011-11-20 | B149: 0.0009
A150: 2011-11-19 | B150: 0.0009
A151: 2011-11-18 | B151: 0.0009
A152: 2011-11-17 | B152: 0.0009
A153: 2011-11-16 | B153: 0.0009
A154: 2011-11-15 | B154: 0.0009
A155: 2011-11-14 | B155: 0.0009
A156: 2011-11-13 | B156: 0.0009
A157: 2011-11-12 | B157: 0.0009
A158: 2011-11-11 | B158: 0.0009
A159: 2011-11-10 | B159: 0.0009
A160: 2011-11-09 | B160: 0.0009
A161: 2011-11-08 | B161: 0.0009
A162: 2011-11-07 | B162: 0.0009
A163: 2011-11-06 | B163: 0.0009
A164: 2011-11-05 | B164: 0.0009
A165: 2011-11-04 | B165: 0.0009
A166: 2011-11-03 | B166: 0.0009
A167: 2011-11-02 | B167: 0.0009
A168: 2011-11-01 | B168: 0.0009
A169: 2011-10-31 | B169: 0.0009
A170: 2011-10-30 | B170: 0.0009
A171: 2011-10-29 | B171: 0.0009
A172: 2011-10-28 | B172: 0.0009
A173: 2011-10-27 | B173: 0.0009
A174: 2011-10-26 | B174: 0.0009
A175: 2011-10-25 | B175: 0.0009
A176: 2011-10-24 | B176: 0.0009
A177: 2011-10-23 | B177: 0.0009
A178: 2011-10-22 | B178: 0.0009
A179: 2011-10-21 | B179: 0.0009
A180: 2011-10-20 | B180: 0.0009
A181: 2011-10-19 | B181: 0.0009
A182: 2011-10-18 | B182: 0.0009
A183: 2011-10-17 | B183: 0.0009
A184: 2011-10-16 | B184: 0.0009
A185: 2011-10-15 | B185: 0.0009
A186: 2011-10-14 | B186: 0.0009

Sheet LKR
A5: End Date | B5: LKR/USD
A6: 2012-04-11 | B6: 0.0079
A7: 2012-04-10 | B7: 0.0079
A8: 2012-04-09 | B8: 0.0079
A9: 2012-04-08 | B9: 0.0079
A10: 2012-04-07 | B10: 0.0079
A11: 2012-04-06 | B11: 0.0079
A12: 2012-04-05 | B12: 0.008
A13: 2012-04-04 | B13: 0.0079
A14: 2012-04-03 | B14: 0.0078
A15: 2012-04-02 | B15: 0.0078
A16: 2012-04-01 | B16: 0.0078
A17: 2012-03-31 | B17: 0.0078
A18: 2012-03-30 | B18: 0.0078
A19: 2012-03-29 | B19: 0.0077
A20: 2012-03-28 | B20: 0.0077
A21: 2012-03-27 | B21: 0.0076
A22: 2012-03-26 | B22: 0.0076
A23: 2012-03-25 | B23: 0.0076
A24: 2012-03-24 | B24: 0.0077
A25: 2012-03-23 | B25: 0.0077
A26: 2012-03-22 | B26: 0.0077
A27: 2012-03-21 | B27: 0.0077
A28: 2012-03-20 | B28: 0.0078
A29: 2012-03-19 | B29: 0.0079
A30: 2012-03-18 | B30: 0.0079
A31: 2012-03-17 | B31: 0.008
A32: 2012-03-16 | B32: 0.008
A33: 2012-03-15 | B33: 0.008
A34: 2012-03-14 | B34: 0.0081
A35: 2012-03-13 | B35: 0.0082
A36: 2012-03-12 | B36: 0.0083
A37: 2012-03-11 | B37: 0.0083
A38: 2012-03-10 | B38: 0.0082
A39: 2012-03-09 | B39: 0.0082
A40: 2012-03-08 | B40: 0.0082
A41: 2012-03-07 | B41: 0.0082
A42: 2012-03-06 | B42: 0.0081
A43: 2012-03-05 | B43: 0.0081
A44: 2012-03-04 | B44: 0.0082
A45: 2012-03-03 | B45: 0.0082
A46: 2012-03-02 | B46: 0.0082
A47: 2012-03-01 | B47: 0.0082
A48: 2012-02-29 | B48: 0.0082
A49: 2012-02-28 | B49: 0.0083
A50: 2012-02-27 | B50: 0.0083
A51: 2012-02-26 | B51: 0.0083
A52: 2012-02-25 | B52: 0.0083
A53: 2012-02-24 | B53: 0.0084
A54: 2012-02-23 | B54: 0.0084
A55: 2012-02-22 | B55: 0.0084
A56: 2012-02-21 | B56: 0.0084
A57: 2012-02-20 | B57: 0.0085
A58: 2012-02-19 | B58: 0.0085
A59: 2012-02-18 | B59: 0.0084
A60: 2012-02-17 | B60: 0.0084
A61: 2012-02-16 | B61: 0.0083
A62: 2012-02-15 | B62: 0.0084
A63: 2012-02-14 | B63: 0.0086
A64: 2012-02-13 | B64: 0.0087
A65: 2012-02-12 | B65: 0.0087
A66: 2012-02-11 | B66: 0.0087
A67: 2012-02-10 | B67: 0.0087
A68: 2012-02-09 | B68: 0.0088
A69: 2012-02-08 | B69: 0.0087
A70: 2012-02-07 | B70: 0.0088
A71: 2012-02-06 | B71: 0.0088
A72: 2012-02-05 | B72: 0.0088
A73: 2012-02-04 | B73: 0.0088
A74: 2012-02-03 | B74: 0.0088
A75: 2012-02-02 | B75: 0.0088
A76: 2012-02-01 | B76: 0.0087
A77: 2012-01-31 | B77: 0.0088
A78: 2012-01-30 | B78: 0.0088
A79: 2012-01-29 | B79: 0.0088
A80: 2012-01-28 | B80: 0.0088
A81: 2012-01-27 | B81: 0.0088
A82: 2012-01-26 | B82: 0.0088
A83: 2012-01-25 | B83: 0.0088
A84: 2012-01-24 | B84: 0.0087
A85: 2012-01-23 | B85: 0.0086
A86: 2012-01-22 | B86: 0.0088
A87: 2012-01-21 | B87: 0.0088
A88: 2012-01-20 | B88: 0.0088
A89: 2012-01-19 | B89: 0.0088
A90: 2012-01-18 | B90: 0.0088
A91: 2012-01-17 | B91: 0.0088
A92: 2012-01-16 | B92: 0.0088
A93: 2012-01-15 | B93: 0.0088
A94: 2012-01-14 | B94: 0.0088
A95: 2012-01-13 | B95: 0.0088
A96: 2012-01-12 | B96: 0.0088
A97: 2012-01-11 | B97: 0.0088
A98: 2012-01-10 | B98: 0.0088
A99: 2012-01-09 | B99: 0.0088
A100: 2012-01-08 | B100: 0.0088
A101: 2012-01-07 | B101: 0.0088
A102: 2012-01-06 | B102: 0.0088
A103: 2012-01-05 | B103: 0.0088
A104: 2012-01-04 | B104: 0.0088
A105: 2012-01-03 | B105: 0.0088
A106: 2012-01-02 | B106: 0.0088
A107: 2012-01-01 | B107: 0.0088
A108: 2011-12-31 | B108: 0.0088
A109: 2011-12-30 | B109: 0.0088
A110: 2011-12-29 | B110: 0.0088
A111: 2011-12-28 | B111: 0.0088
A112: 2011-12-27 | B112: 0.0088
A113: 2011-12-26 | B113: 0.0088
A114: 2011-12-25 | B114: 0.0088
A115: 2011-12-24 | B115: 0.0088
A116: 2011-12-23 | B116: 0.0088
A117: 2011-12-22 | B117: 0.0088
A118: 2011-12-21 | B118: 0.0088
A119: 2011-12-20 | B119: 0.0088
A120: 2011-12-19 | B120: 0.0088
A121: 2011-12-18 | B121: 0.0088
A122: 2011-12-17 | B122: 0.0088
A123: 2011-12-16 | B123: 0.0088
A124: 2011-12-15 | B124: 0.0088
A125: 2011-12-14 | B125: 0.0087
A126: 2011-12-13 | B126: 0.0087
A127: 2011-12-12 | B127: 0.0086
A128: 2011-12-11 | B128: 0.0087
A129: 2011-12-10 | B129: 0.0088
A130: 2011-12-09 | B130: 0.0088
A131: 2011-12-08 | B131: 0.0088
A132: 2011-12-07 | B132: 0.0088
A133: 2011-12-06 | B133: 0.0087
A134: 2011-12-05 | B134: 0.0085
A135: 2011-12-04 | B135: 0.0086
A136: 2011-12-03 | B136: 0.0088
A137: 2011-12-02 | B137: 0.0088
A138: 2011-12-01 | B138: 0.0088
A139: 2011-11-30 | B139: 0.0088
A140: 2011-11-29 | B140: 0.0088
A141: 2011-11-28 | B141: 0.0088
A142: 2011-11-27 | B142: 0.0088
A143: 2011-11-26 | B143: 0.0088
A144: 2011-11-25 | B144: 0.0088
A145: 2011-11-24 | B145: 0.0088
A146: 2011-11-23 | B146: 0.0089
A147: 2011-11-22 | B147: 0.0091
A148: 2011-11-21 | B148: 0.0091
A149: 2011-11-20 | B149: 0.0091
A150: 2011-11-19 | B150: 0.0091
A151: 2011-11-18 | B151: 0.0091
A152: 2011-11-17 | B152: 0.0091
A153: 2011-11-16 | B153: 0.0091
A154: 2011-11-15 | B154: 0.0091
A155: 2011-11-14 | B155: 0.009
A156: 2011-11-13 | B156: 0.0091
A157: 2011-11-12 | B157: 0.0091
A158: 2011-11-11 | B158: 0.0091
A159: 2011-11-10 | B159: 0.0091
A160: 2011-11-09 | B160: 0.0091
A161: 2011-11-08 | B161: 0.0091
A162: 2011-11-07 | B162: 0.0091
A163: 2011-11-06 | B163: 0.0091
A164: 2011-11-05 | B164: 0.0091
A165: 2011-11-04 | B165: 0.0091
A166: 2011-11-03 | B166: 0.0091
A167: 2011-11-02 | B167: 0.0091
A168: 2011-11-01 | B168: 0.0091
A169: 2011-10-31 | B169: 0.0091
A170: 2011-10-30 | B170: 0.0091
A171: 2011-10-29 | B171: 0.0091
A172: 2011-10-28 | B172: 0.0091
A173: 2011-10-27 | B173: 0.0091
A174: 2011-10-26 | B174: 0.0091
A175: 2011-10-25 | B175: 0.0091
A176: 2011-10-24 | B176: 0.0091
A177: 2011-10-23 | B177: 0.0091
A178: 2011-10-22 | B178: 0.0091
A179: 2011-10-21 | B179: 0.0091
A180: 2011-10-20 | B180: 0.0091
A181: 2011-10-19 | B181: 0.0091
A182: 2011-10-18 | B182: 0.009
A183: 2011-10-17 | B183: 0.0091
A184: 2011-10-16 | B184: 0.0091
A185: 2011-10-15 | B185: 0.0091
A186: 2011-10-14 | B186: 0.0091

Sheet MXN
A5: End Date | B5: MXN/USD
A6: 2012-04-11 | B6: 0.0766
A7: 2012-04-10 | B7: 0.0768
A8: 2012-04-09 | B8: 0.0769
A9: 2012-04-08 | B9: 0.0769
A10: 2012-04-07 | B10: 0.0773
A11: 2012-04-06 | B11: 0.078
A12: 2012-04-05 | B12: 0.078
A13: 2012-04-04 | B13: 0.0785
A14: 2012-04-03 | B14: 0.0783
A15: 2012-04-02 | B15: 0.078
A16: 2012-04-01 | B16: 0.078
A17: 2012-03-31 | B17: 0.0781
A18: 2012-03-30 | B18: 0.0781
A19: 2012-03-29 | B19: 0.0785
A20: 2012-03-28 | B20: 0.0789
A21: 2012-03-27 | B21: 0.0786
A22: 2012-03-26 | B22: 0.0783
A23: 2012-03-25 | B23: 0.0783
A24: 2012-03-24 | B24: 0.078
A25: 2012-03-23 | B25: 0.0782
A26: 2012-03-22 | B26: 0.0789
A27: 2012-03-21 | B27: 0.0789
A28: 2012-03-20 | B28: 0.079
A29: 2012-03-19 | B29: 0.0788
A30: 2012-03-18 | B30: 0.0788
A31: 2012-03-17 | B31: 0.0789
A32: 2012-03-16 | B32: 0.0787
A33: 2012-03-15 | B33: 0.0792
A34: 2012-03-14 | B34: 0.0791
A35: 2012-03-13 | B35: 0.0788
A36: 2012-03-12 | B36: 0.079
A37: 2012-03-11 | B37: 0.079
A38: 2012-03-10 | B38: 0.0788
A39: 2012-03-09 | B39: 0.078
A40: 2012-03-08 | B40: 0.0771
A41: 2012-03-07 | B41: 0.0775
A42: 2012-03-06 | B42: 0.0781
A43: 2012-03-05 | B43: 0.0782
A44: 2012-03-04 | B44: 0.0783
A45: 2012-03-03 | B45: 0.0784
A46: 2012-03-02 | B46: 0.078
A47: 2012-03-01 | B47: 0.078
A48: 2012-02-29 | B48: 0.0777
A49: 2012-02-28 | B49: 0.0774
A50: 2012-02-27 | B50: 0.0774
A51: 2012-02-26 | B51: 0.0774
A52: 2012-02-25 | B52: 0.0779
A53: 2012-02-24 | B53: 0.078
A54: 2012-02-23 | B54: 0.078
A55: 2012-02-22 | B55: 0.0785
A56: 2012-02-21 | B56: 0.0787
A57: 2012-02-20 | B57: 0.0783
A58: 2012-02-19 | B58: 0.0783
A59: 2012-02-18 | B59: 0.0781
A60: 2012-02-17 | B60: 0.0775
A61: 2012-02-16 | B61: 0.0784
A62: 2012-02-15 | B62: 0.0784
A63: 2012-02-14 | B63: 0.0785
A64: 2012-02-13 | B64: 0.078
A65: 2012-02-12 | B65: 0.078
A66: 2012-02-11 | B66: 0.0784
A67: 2012-02-10 | B67: 0.0786
A68: 2012-02-09 | B68: 0.0789
A69: 2012-02-08 | B69: 0.0789
A70: 2012-02-07 | B70: 0.0787
A71: 2012-02-06 | B71: 0.0789
A72: 2012-02-05 | B72: 0.0789
A73: 2012-02-04 | B73: 0.0782
A74: 2012-02-03 | B74: 0.0777
A75: 2012-02-02 | B75: 0.077
A76: 2012-02-01 | B76: 0.0771
A77: 2012-01-31 | B77: 0.077
A78: 2012-01-30 | B78: 0.0773
A79: 2012-01-29 | B79: 0.0773
A80: 2012-01-28 | B80: 0.077
A81: 2012-01-27 | B81: 0.0771
A82: 2012-01-26 | B82: 0.0762
A83: 2012-01-25 | B83: 0.0758
A84: 2012-01-24 | B84: 0.0759
A85: 2012-01-23 | B85: 0.0758
A86: 2012-01-22 | B86: 0.0758
A87: 2012-01-21 | B87: 0.0755
A88: 2012-01-20 | B88: 0.0752
A89: 2012-01-19 | B89: 0.0746
A90: 2012-01-18 | B90: 0.0741
A91: 2012-01-17 | B91: 0.0736
A92: 2012-01-16 | B92: 0.0734
A93: 2012-01-15 | B93: 0.0734
A94: 2012-01-14 | B94: 0.0737
A95: 2012-01-13 | B95: 0.0735
A96: 2012-01-12 | B96: 0.0732
A97: 2012-01-11 | B97: 0.0732
A98: 2012-01-10 | B98: 0.0727
A99: 2012-01-09 | B99: 0.0727
A100: 2012-01-08 | B100: 0.0727
A101: 2012-01-07 | B101: 0.0727
A102: 2012-01-06 | B102: 0.0729
A103: 2012-01-05 | B103: 0.073
A104: 2012-01-04 | B104: 0.0724
A105: 2012-01-03 | B105: 0.0716
A106: 2012-01-02 | B106: 0.0716
A107: 2012-01-01 | B107: 0.0717
A108: 2011-12-31 | B108: 0.0714
A109: 2011-12-30 | B109: 0.0715
A110: 2011-12-29 | B110: 0.0714
A111: 2011-12-28 | B111: 0.0719
A112: 2011-12-27 | B112: 0.0721
A113: 2011-12-26 | B113: 0.0721
A114: 2011-12-25 | B114: 0.0721
A115: 2011-12-24 | B115: 0.0724
A116: 2011-12-23 | B116: 0.0723
A117: 2011-12-22 | B117: 0.0725
A118: 2011-12-21 | B118: 0.0722
A119: 2011-12-20 | B119: 0.072
A120: 2011-12-19 | B120: 0.072
A121: 2011-12-18 | B121: 0.072
A122: 2011-12-17 | B122: 0.0721
A123: 2011-12-16 | B123: 0.0721
A124: 2011-12-15 | B124: 0.0719
A125: 2011-12-14 | B125: 0.0723
A126: 2011-12-13 | B126: 0.0729
A127: 2011-12-12 | B127: 0.0735
A128: 2011-12-11 | B128: 0.0736
A129: 2011-12-10 | B129: 0.073
A130: 2011-12-09 | B130: 0.0737
A131: 2011-12-08 | B131: 0.0741
A132: 2011-12-07 | B132: 0.0739
A133: 2011-12-06 | B133: 0.0739
A134: 2011-12-05 | B134: 0.0732
A135: 2011-12-04 | B135: 0.0732
A136: 2011-12-03 | B136: 0.0736
A137: 2011-12-02 | B137: 0.0733
A138: 2011-12-01 | B138: 0.0727
A139: 2011-11-30 | B139: 0.0714
A140: 2011-11-29 | B140: 0.071
A141: 2011-11-28 | B141: 0.0702
A142: 2011-11-27 | B142: 0.0702
A143: 2011-11-26 | B143: 0.0702
A144: 2011-11-25 | B144: 0.0707
A145: 2011-11-24 | B145: 0.0712
A146: 2011-11-23 | B146: 0.0714
A147: 2011-11-22 | B147: 0.0721
A148: 2011-11-21 | B148: 0.0727
A149: 2011-11-20 | B149: 0.0728
A150: 2011-11-19 | B150: 0.0729
A151: 2011-11-18 | B151: 0.0732
A152: 2011-11-17 | B152: 0.0735
A153: 2011-11-16 | B153: 0.0738
A154: 2011-11-15 | B154: 0.0741
A155: 2011-11-14 | B155: 0.074
A156: 2011-11-13 | B156: 0.074
A157: 2011-11-12 | B157: 0.074
A158: 2011-11-11 | B158: 0.0734
A159: 2011-11-10 | B159: 0.0743
A160: 2011-11-09 | B160: 0.0745
A161: 2011-11-08 | B161: 0.0741
A162: 2011-11-07 | B162: 0.074
A163: 2011-11-06 | B163: 0.074
A164: 2011-11-05 | B164: 0.0746
A165: 2011-11-04 | B165: 0.0739
A166: 2011-11-03 | B166: 0.0737
A167: 2011-11-02 | B167: 0.074
A168: 2011-11-01 | B168: 0.0761
A169: 2011-10-31 | B169: 0.0768
A170: 2011-10-30 | B170: 0.0768
A171: 2011-10-29 | B171: 0.0762
A172: 2011-10-28 | B172: 0.0753
A173: 2011-10-27 | B173: 0.0741
A174: 2011-10-26 | B174: 0.0746
A175: 2011-10-25 | B175: 0.0736
A176: 2011-10-24 | B176: 0.073
A177: 2011-10-23 | B177: 0.073
A178: 2011-10-22 | B178: 0.0731
A179: 2011-10-21 | B179: 0.0739
A180: 2011-10-20 | B180: 0.0747
A181: 2011-10-19 | B181: 0.0742
A182: 2011-10-18 | B182: 0.0752
A183: 2011-10-17 | B183: 0.0754
A184: 2011-10-16 | B184: 0.0754
A185: 2011-10-15 | B185: 0.0747
A186: 2011-10-14 | B186: 0.075

Sheet MYR
A5: End Date | B5: MYR/USD
A6: 2012-04-11 | B6: 0.3259
A7: 2012-04-10 | B7: 0.3263
A8: 2012-04-09 | B8: 0.3261
A9: 2012-04-08 | B9: 0.3265
A10: 2012-04-07 | B10: 0.326
A11: 2012-04-06 | B11: 0.3259
A12: 2012-04-05 | B12: 0.3266
A13: 2012-04-04 | B13: 0.3278
A14: 2012-04-03 | B14: 0.3268
A15: 2012-04-02 | B15: 0.3263
A16: 2012-04-01 | B16: 0.3263
A17: 2012-03-31 | B17: 0.326
A18: 2012-03-30 | B18: 0.3257
A19: 2012-03-29 | B19: 0.3261
A20: 2012-03-28 | B20: 0.3262
A21: 2012-03-27 | B21: 0.3229
A22: 2012-03-26 | B22: 0.3197
A23: 2012-03-25 | B23: 0.3228
A24: 2012-03-24 | B24: 0.3245
A25: 2012-03-23 | B25: 0.3243
A26: 2012-03-22 | B26: 0.3246
A27: 2012-03-21 | B27: 0.3253
A28: 2012-03-20 | B28: 0.327
A29: 2012-03-19 | B29: 0.3268
A30: 2012-03-18 | B30: 0.3268
A31: 2012-03-17 | B31: 0.3269
A32: 2012-03-16 | B32: 0.3267
A33: 2012-03-15 | B33: 0.3281
A34: 2012-03-14 | B34: 0.3299
A35: 2012-03-13 | B35: 0.3305
A36: 2012-03-12 | B36: 0.3319
A37: 2012-03-11 | B37: 0.3319
A38: 2012-03-10 | B38: 0.3321
A39: 2012-03-09 | B39: 0.3314
A40: 2012-03-08 | B40: 0.3304
A41: 2012-03-07 | B41: 0.3306
A42: 2012-03-06 | B42: 0.3317
A43: 2012-03-05 | B43: 0.3303
A44: 2012-03-04 | B44: 0.3309
A45: 2012-03-03 | B45: 0.333
A46: 2012-03-02 | B46: 0.3329
A47: 2012-03-01 | B47: 0.3333
A48: 2012-02-29 | B48: 0.3317
A49: 2012-02-28 | B49: 0.3309
A50: 2012-02-27 | B50: 0.3316
A51: 2012-02-26 | B51: 0.3316
A52: 2012-02-25 | B52: 0.3317
A53: 2012-02-24 | B53: 0.3309
A54: 2012-02-23 | B54: 0.3301
A55: 2012-02-22 | B55: 0.3308
A56: 2012-02-21 | B56: 0.3304
A57: 2012-02-20 | B57: 0.3283
A58: 2012-02-19 | B58: 0.3282
A59: 2012-02-18 | B59: 0.328
A60: 2012-02-17 | B60: 0.3268
A61: 2012-02-16 | B61: 0.3288
A62: 2012-02-15 | B62: 0.3282
A63: 2012-02-14 | B63: 0.3304
A64: 2012-02-13 | B64: 0.3299
A65: 2012-02-12 | B65: 0.3298
A66: 2012-02-11 | B66: 0.3306
A67: 2012-02-10 | B67: 0.3321
A68: 2012-02-09 | B68: 0.3324
A69: 2012-02-08 | B69: 0.3318
A70: 2012-02-07 | B70: 0.3317
A71: 2012-02-06 | B71: 0.3318
A72: 2012-02-05 | B72: 0.3327
A73: 2012-02-04 | B73: 0.3313
A74: 2012-02-03 | B74: 0.3296
A75: 2012-02-02 | B75: 0.3285
A76: 2012-02-01 | B76: 0.3283
A77: 2012-01-31 | B77: 0.3274
A78: 2012-01-30 | B78: 0.3287
A79: 2012-01-29 | B79: 0.3288
A80: 2012-01-28 | B80: 0.328
A81: 2012-01-27 | B81: 0.3281
A82: 2012-01-26 | B82: 0.3229
A83: 2012-01-25 | B83: 0.321
A84: 2012-01-24 | B84: 0.3207
A85: 2012-01-23 | B85: 0.3213
A86: 2012-01-22 | B86: 0.3214
A87: 2012-01-21 | B87: 0.3218
A88: 2012-01-20 | B88: 0.3215
A89: 2012-01-19 | B89: 0.3205
A90: 2012-01-18 | B90: 0.3194
A91: 2012-01-17 | B91: 0.3179
A92: 2012-01-16 | B92: 0.3185
A93: 2012-01-15 | B93: 0.3186
A94: 2012-01-14 | B94: 0.3185
A95: 2012-01-13 | B95: 0.3184
A96: 2012-01-12 | B96: 0.3179
A97: 2012-01-11 | B97: 0.318
A98: 2012-01-10 | B98: 0.3168
A99: 2012-01-09 | B99: 0.3172
A100: 2012-01-08 | B100: 0.3173
A101: 2012-01-07 | B101: 0.3174
A102: 2012-01-06 | B102: 0.3178
A103: 2012-01-05 | B103: 0.3179
A104: 2012-01-04 | B104: 0.3167
A105: 2012-01-03 | B105: 0.3148
A106: 2012-01-02 | B106: 0.3148
A107: 2012-01-01 | B107: 0.3148
A108: 2011-12-31 | B108: 0.3147
A109: 2011-12-30 | B109: 0.3148
A110: 2011-12-29 | B110: 0.3153
A111: 2011-12-28 | B111: 0.3157
A112: 2011-12-27 | B112: 0.3169
A113: 2011-12-26 | B113: 0.3164
A114: 2011-12-25 | B114: 0.3165
A115: 2011-12-24 | B115: 0.3163
A116: 2011-12-23 | B116: 0.3157
A117: 2011-12-22 | B117: 0.3157
A118: 2011-12-21 | B118: 0.314
A119: 2011-12-20 | B119: 0.314
A120: 2011-12-19 | B120: 0.3149
A121: 2011-12-18 | B121: 0.3149
A122: 2011-12-17 | B122: 0.3142
A123: 2011-12-16 | B123: 0.3137
A124: 2011-12-15 | B124: 0.3134
A125: 2011-12-14 | B125: 0.3118
A126: 2011-12-13 | B126: 0.3155
A127: 2011-12-12 | B127: 0.3172
A128: 2011-12-11 | B128: 0.3171
A129: 2011-12-10 | B129: 0.3177
A130: 2011-12-09 | B130: 0.3194
A131: 2011-12-08 | B131: 0.3196
A132: 2011-12-07 | B132: 0.3179
A133: 2011-12-06 | B133: 0.319
A134: 2011-12-05 | B134: 0.3139
A135: 2011-12-04 | B135: 0.3156
A136: 2011-12-03 | B136: 0.3188
A137: 2011-12-02 | B137: 0.3165
A138: 2011-12-01 | B138: 0.3141
A139: 2011-11-30 | B139: 0.3111
A140: 2011-11-29 | B140: 0.3128
A141: 2011-11-28 | B141: 0.3125
A142: 2011-11-27 | B142: 0.3107
A143: 2011-11-26 | B143: 0.3131
A144: 2011-11-25 | B144: 0.3144
A145: 2011-11-24 | B145: 0.314
A146: 2011-11-23 | B146: 0.3139
A147: 2011-11-22 | B147: 0.3145
A148: 2011-11-21 | B148: 0.3159
A149: 2011-11-20 | B149: 0.316
A150: 2011-11-19 | B150: 0.3157
A151: 2011-11-18 | B151: 0.3161
A152: 2011-11-17 | B152: 0.3165
A153: 2011-11-16 | B153: 0.3175
A154: 2011-11-15 | B154: 0.3184
A155: 2011-11-14 | B155: 0.3175
A156: 2011-11-13 | B156: 0.3174
A157: 2011-11-12 | B157: 0.3176
A158: 2011-11-11 | B158: 0.3178
A159: 2011-11-10 | B159: 0.3204
A160: 2011-11-09 | B160: 0.3199
A161: 2011-11-08 | B161: 0.3207
A162: 2011-11-07 | B162: 0.3215
A163: 2011-11-06 | B163: 0.3216
A164: 2011-11-05 | B164: 0.3186
A165: 2011-11-04 | B165: 0.3181
A166: 2011-11-03 | B166: 0.3197
A167: 2011-11-02 | B167: 0.3218
A168: 2011-11-01 | B168: 0.3249
A169: 2011-10-31 | B169: 0.3259
A170: 2011-10-30 | B170: 0.3257
A171: 2011-10-29 | B171: 0.3245
A172: 2011-10-28 | B172: 0.3218
A173: 2011-10-27 | B173: 0.3196
A174: 2011-10-26 | B174: 0.319
A175: 2011-10-25 | B175: 0.3182
A176: 2011-10-24 | B176: 0.3177
A177: 2011-10-23 | B177: 0.3178
A178: 2011-10-22 | B178: 0.3191
A179: 2011-10-21 | B179: 0.3204
A180: 2011-10-20 | B180: 0.3209
A181: 2011-10-19 | B181: 0.3202
A182: 2011-10-18 | B182: 0.32
A183: 2011-10-17 | B183: 0.3197
A184: 2011-10-16 | B184: 0.3197
A185: 2011-10-15 | B185: 0.3192
A186: 2011-10-14 | B186: 0.319

Sheet NOK
A5: End Date | B5: NOK/USD
A6: 2012-04-11 | B6: 0.1726
A7: 2012-04-10 | B7: 0.1722
A8: 2012-04-09 | B8: 0.1725
A9: 2012-04-08 | B9: 0.1725
A10: 2012-04-07 | B10: 0.1727
A11: 2012-04-06 | B11: 0.1732
A12: 2012-04-05 | B12: 0.1739
A13: 2012-04-04 | B13: 0.176
A14: 2012-04-03 | B14: 0.1761
A15: 2012-04-02 | B15: 0.1754
A16: 2012-04-01 | B16: 0.1753
A17: 2012-03-31 | B17: 0.175
A18: 2012-03-30 | B18: 0.174
A19: 2012-03-29 | B19: 0.175
A20: 2012-03-28 | B20: 0.1758
A21: 2012-03-27 | B21: 0.1744
A22: 2012-03-26 | B22: 0.1734
A23: 2012-03-25 | B23: 0.1734
A24: 2012-03-24 | B24: 0.1732
A25: 2012-03-23 | B25: 0.1732
A26: 2012-03-22 | B26: 0.1737
A27: 2012-03-21 | B27: 0.1742
A28: 2012-03-20 | B28: 0.1744
A29: 2012-03-19 | B29: 0.1742
A30: 2012-03-18 | B30: 0.1742
A31: 2012-03-17 | B31: 0.1734
A32: 2012-03-16 | B32: 0.1722
A33: 2012-03-15 | B33: 0.1739
A34: 2012-03-14 | B34: 0.176
A35: 2012-03-13 | B35: 0.1753
A36: 2012-03-12 | B36: 0.1751
A37: 2012-03-11 | B37: 0.1751
A38: 2012-03-10 | B38: 0.1774
A39: 2012-03-09 | B39: 0.1777
A40: 2012-03-08 | B40: 0.1759
A41: 2012-03-07 | B41: 0.1768
A42: 2012-03-06 | B42: 0.1781
A43: 2012-03-05 | B43: 0.178
A44: 2012-03-04 | B44: 0.178
A45: 2012-03-03 | B45: 0.1787
A46: 2012-03-02 | B46: 0.1791
A47: 2012-03-01 | B47: 0.1799
A48: 2012-02-29 | B48: 0.1791
A49: 2012-02-28 | B49: 0.1789
A50: 2012-02-27 | B50: 0.1791
A51: 2012-02-26 | B51: 0.1791
A52: 2012-02-25 | B52: 0.1786
A53: 2012-02-24 | B53: 0.1773
A54: 2012-02-23 | B54: 0.1762
A55: 2012-02-22 | B55: 0.1761
A56: 2012-02-21 | B56: 0.1763
A57: 2012-02-20 | B57: 0.1748
A58: 2012-02-19 | B58: 0.1747
A59: 2012-02-18 | B59: 0.1749
A60: 2012-02-17 | B60: 0.1727
A61: 2012-02-16 | B61: 0.1741
A62: 2012-02-15 | B62: 0.1745
A63: 2012-02-14 | B63: 0.1747
A64: 2012-02-13 | B64: 0.1738
A65: 2012-02-12 | B65: 0.1738
A66: 2012-02-11 | B66: 0.1736
A67: 2012-02-10 | B67: 0.1738
A68: 2012-02-09 | B68: 0.1735
A69: 2012-02-08 | B69: 0.1722
A70: 2012-02-07 | B70: 0.1717
A71: 2012-02-06 | B71: 0.1722
A72: 2012-02-05 | B72: 0.1722
A73: 2012-02-04 | B73: 0.1717
A74: 2012-02-03 | B74: 0.1719
A75: 2012-02-02 | B75: 0.1712
A76: 2012-02-01 | B76: 0.1716
A77: 2012-01-31 | B77: 0.1715
A78: 2012-01-30 | B78: 0.1721
A79: 2012-01-29 | B79: 0.1721
A80: 2012-01-28 | B80: 0.1715
A81: 2012-01-27 | B81: 0.1714
A82: 2012-01-26 | B82: 0.1695
A83: 2012-01-25 | B83: 0.1701
A84: 2012-01-24 | B84: 0.169
A85: 2012-01-23 | B85: 0.1683
A86: 2012-01-22 | B86: 0.1683
A87: 2012-01-21 | B87: 0.1688
A88: 2012-01-20 | B88: 0.168
A89: 2012-01-19 | B89: 0.1663
A90: 2012-01-18 | B90: 0.1658
A91: 2012-01-17 | B91: 0.1648
A92: 2012-01-16 | B92: 0.1647
A93: 2012-01-15 | B93: 0.1648
A94: 2012-01-14 | B94: 0.1658
A95: 2012-01-13 | B95: 0.1659
A96: 2012-01-12 | B96: 0.1661
A97: 2012-01-11 | B97: 0.1668
A98: 2012-01-10 | B98: 0.166
A99: 2012-01-09 | B99: 0.1654
A100: 2012-01-08 | B100: 0.1654
A101: 2012-01-07 | B101: 0.1661
A102: 2012-01-06 | B102: 0.1674
A103: 2012-01-05 | B103: 0.1686
A104: 2012-01-04 | B104: 0.1681
A105: 2012-01-03 | B105: 0.1669
A106: 2012-01-02 | B106: 0.1671
A107: 2012-01-01 | B107: 0.1671
A108: 2011-12-31 | B108: 0.1667
A109: 2011-12-30 | B109: 0.166
A110: 2011-12-29 | B110: 0.1672
A111: 2011-12-28 | B111: 0.1676
A112: 2011-12-27 | B112: 0.1674
A113: 2011-12-26 | B113: 0.1672
A114: 2011-12-25 | B114: 0.1671
A115: 2011-12-24 | B115: 0.168
A116: 2011-12-23 | B116: 0.1684
A117: 2011-12-22 | B117: 0.1694
A118: 2011-12-21 | B118: 0.1689
A119: 2011-12-20 | B119: 0.1677
A120: 2011-12-19 | B120: 0.1676
A121: 2011-12-18 | B121: 0.1676
A122: 2011-12-17 | B122: 0.1672
A123: 2011-12-16 | B123: 0.167
A124: 2011-12-15 | B124: 0.1679
A125: 2011-12-14 | B125: 0.1706
A126: 2011-12-13 | B126: 0.1726
A127: 2011-12-12 | B127: 0.1738
A128: 2011-12-11 | B128: 0.1738
A129: 2011-12-10 | B129: 0.1731
A130: 2011-12-09 | B130: 0.1736
A131: 2011-12-08 | B131: 0.1738
A132: 2011-12-07 | B132: 0.1732
A133: 2011-12-06 | B133: 0.1733
A134: 2011-12-05 | B134: 0.1724
A135: 2011-12-04 | B135: 0.1724
A136: 2011-12-03 | B136: 0.1726
A137: 2011-12-02 | B137: 0.173
A138: 2011-12-01 | B138: 0.1717
A139: 2011-11-30 | B139: 0.17
A140: 2011-11-29 | B140: 0.1699
A141: 2011-11-28 | B141: 0.1686
A142: 2011-11-27 | B142: 0.1685
A143: 2011-11-26 | B143: 0.1693
A144: 2011-11-25 | B144: 0.1705
A145: 2011-11-24 | B145: 0.1718
A146: 2011-11-23 | B146: 0.1727
A147: 2011-11-22 | B147: 0.1724
A148: 2011-11-21 | B148: 0.1724
A149: 2011-11-20 | B149: 0.1724
A150: 2011-11-19 | B150: 0.1726
A151: 2011-11-18 | B151: 0.1725
A152: 2011-11-17 | B152: 0.1732
A153: 2011-11-16 | B153: 0.1742
A154: 2011-11-15 | B154: 0.1767
A155: 2011-11-14 | B155: 0.1773
A156: 2011-11-13 | B156: 0.1772
A157: 2011-11-12 | B157: 0.1762
A158: 2011-11-11 | B158: 0.1749
A159: 2011-11-10 | B159: 0.1769
A160: 2011-11-09 | B160: 0.1782
A161: 2011-11-08 | B161: 0.1779
A162: 2011-11-07 | B162: 0.1779
A163: 2011-11-06 | B163: 0.178
A164: 2011-11-05 | B164: 0.1782
A165: 2011-11-04 | B165: 0.1771
A166: 2011-11-03 | B166: 0.1769
A167: 2011-11-02 | B167: 0.1779
A168: 2011-11-01 | B168: 0.182
A169: 2011-10-31 | B169: 0.1838
A170: 2011-10-30 | B170: 0.1838
A171: 2011-10-29 | B171: 0.1845
A172: 2011-10-28 | B172: 0.183
A173: 2011-10-27 | B173: 0.1809
A174: 2011-10-26 | B174: 0.1809
A175: 2011-10-25 | B175: 0.1801
A176: 2011-10-24 | B176: 0.1795
A177: 2011-10-23 | B177: 0.1795
A178: 2011-10-22 | B178: 0.1788
A179: 2011-10-21 | B179: 0.1779
A180: 2011-10-20 | B180: 0.1784
A181: 2011-10-19 | B181: 0.1774
A182: 2011-10-18 | B182: 0.1788
A183: 2011-10-17 | B183: 0.1794
A184: 2011-10-16 | B184: 0.1794
A185: 2011-10-15 | B185: 0.1782
A186: 2011-10-14 | B186: 0.1773

Sheet NZD
A5: End Date | B5: NZD/USD
A6: 2012-04-11 | B6: 0.818
A7: 2012-04-10 | B7: 0.8191
A8: 2012-04-09 | B8: 0.8189
A9: 2012-04-08 | B9: 0.8191
A10: 2012-04-07 | B10: 0.8175
A11: 2012-04-06 | B11: 0.8157
A12: 2012-04-05 | B12: 0.8155
A13: 2012-04-04 | B13: 0.8229
A14: 2012-04-03 | B14: 0.8214
A15: 2012-04-02 | B15: 0.8179
A16: 2012-04-01 | B16: 0.8179
A17: 2012-03-31 | B17: 0.8196
A18: 2012-03-30 | B18: 0.8159
A19: 2012-03-29 | B19: 0.8183
A20: 2012-03-28 | B20: 0.8224
A21: 2012-03-27 | B21: 0.8186
A22: 2012-03-26 | B22: 0.8176
A23: 2012-03-25 | B23: 0.8177
A24: 2012-03-24 | B24: 0.8132
A25: 2012-03-23 | B25: 0.8095
A26: 2012-03-22 | B26: 0.8171
A27: 2012-03-21 | B27: 0.8206
A28: 2012-03-20 | B28: 0.8256
A29: 2012-03-19 | B29: 0.8238
A30: 2012-03-18 | B30: 0.8239
A31: 2012-03-17 | B31: 0.8213
A32: 2012-03-16 | B32: 0.8135
A33: 2012-03-15 | B33: 0.8154
A34: 2012-03-14 | B34: 0.8212
A35: 2012-03-13 | B35: 0.8174
A36: 2012-03-12 | B36: 0.8208
A37: 2012-03-11 | B37: 0.821
A38: 2012-03-10 | B38: 0.8237
A39: 2012-03-09 | B39: 0.8212
A40: 2012-03-08 | B40: 0.8164
A41: 2012-03-07 | B41: 0.8152
A42: 2012-03-06 | B42: 0.8253
A43: 2012-03-05 | B43: 0.8287
A44: 2012-03-04 | B44: 0.8287
A45: 2012-03-03 | B45: 0.8348
A46: 2012-03-02 | B46: 0.8361
A47: 2012-03-01 | B47: 0.8415
A48: 2012-02-29 | B48: 0.8387
A49: 2012-02-28 | B49: 0.8359
A50: 2012-02-27 | B50: 0.8355
A51: 2012-02-26 | B51: 0.8355
A52: 2012-02-25 | B52: 0.8371
A53: 2012-02-24 | B53: 0.831
A54: 2012-02-23 | B54: 0.8317
A55: 2012-02-22 | B55: 0.8368
A56: 2012-02-21 | B56: 0.8401
A57: 2012-02-20 | B57: 0.8329
A58: 2012-02-19 | B58: 0.8319
A59: 2012-02-18 | B59: 0.8355
A60: 2012-02-17 | B60: 0.8293
A61: 2012-02-16 | B61: 0.8368
A62: 2012-02-15 | B62: 0.8312
A63: 2012-02-14 | B63: 0.8335
A64: 2012-02-13 | B64: 0.8262
A65: 2012-02-12 | B65: 0.8261
A66: 2012-02-11 | B66: 0.8297
A67: 2012-02-10 | B67: 0.8349
A68: 2012-02-09 | B68: 0.8363
A69: 2012-02-08 | B69: 0.8344
A70: 2012-02-07 | B70: 0.8319
A71: 2012-02-06 | B71: 0.835
A72: 2012-02-05 | B72: 0.8354
A73: 2012-02-04 | B73: 0.8329
A74: 2012-02-03 | B74: 0.8334
A75: 2012-02-02 | B75: 0.8281
A76: 2012-02-01 | B76: 0.8243
A77: 2012-01-31 | B77: 0.8197
A78: 2012-01-30 | B78: 0.824
A79: 2012-01-29 | B79: 0.8242
A80: 2012-01-28 | B80: 0.8222
A81: 2012-01-27 | B81: 0.8193
A82: 2012-01-26 | B82: 0.8094
A83: 2012-01-25 | B83: 0.8095
A84: 2012-01-24 | B84: 0.8086
A85: 2012-01-23 | B85: 0.8058
A86: 2012-01-22 | B86: 0.806
A87: 2012-01-21 | B87: 0.8032
A88: 2012-01-20 | B88: 0.8021
A89: 2012-01-19 | B89: 0.8036
A90: 2012-01-18 | B90: 0.7984
A91: 2012-01-17 | B91: 0.7933
A92: 2012-01-16 | B92: 0.7938
A93: 2012-01-15 | B93: 0.7942
A94: 2012-01-14 | B94: 0.7925
A95: 2012-01-13 | B95: 0.7955
A96: 2012-01-12 | B96: 0.7943
A97: 2012-01-11 | B97: 0.7926
A98: 2012-01-10 | B98: 0.7828
A99: 2012-01-09 | B99: 0.7799
A100: 2012-01-08 | B100: 0.7802
A101: 2012-01-07 | B101: 0.781
A102: 2012-01-06 | B102: 0.7839
A103: 2012-01-05 | B103: 0.7883
A104: 2012-01-04 | B104: 0.7853
A105: 2012-01-03 | B105: 0.7777
A106: 2012-01-02 | B106: 0.7771
A107: 2012-01-01 | B107: 0.777
A108: 2011-12-31 | B108: 0.774
A109: 2011-12-30 | B109: 0.7686
A110: 2011-12-29 | B110: 0.773
A111: 2011-12-28 | B111: 0.7731
A112: 2011-12-27 | B112: 0.7735
A113: 2011-12-26 | B113: 0.7739
A114: 2011-12-25 | B114: 0.774
A115: 2011-12-24 | B115: 0.7741
A116: 2011-12-23 | B116: 0.7709
A117: 2011-12-22 | B117: 0.7704
A118: 2011-12-21 | B118: 0.7623
A119: 2011-12-20 | B119: 0.7597
A120: 2011-12-19 | B120: 0.7613
A121: 2011-12-18 | B121: 0.7613
A122: 2011-12-17 | B122: 0.7597
A123: 2011-12-16 | B123: 0.7506
A124: 2011-12-15 | B124: 0.7542
A125: 2011-12-14 | B125: 0.7633
A126: 2011-12-13 | B126: 0.7684
A127: 2011-12-12 | B127: 0.7748
A128: 2011-12-11 | B128: 0.775
A129: 2011-12-10 | B129: 0.7707
A130: 2011-12-09 | B130: 0.7788
A131: 2011-12-08 | B131: 0.7793
A132: 2011-12-07 | B132: 0.7781
A133: 2011-12-06 | B133: 0.7799
A134: 2011-12-05 | B134: 0.7768
A135: 2011-12-04 | B135: 0.7767
A136: 2011-12-03 | B136: 0.7797
A137: 2011-12-02 | B137: 0.778
A138: 2011-12-01 | B138: 0.7675
A139: 2011-11-30 | B139: 0.7584
A140: 2011-11-29 | B140: 0.753
A141: 2011-11-28 | B141: 0.7402
A142: 2011-11-27 | B142: 0.7397
A143: 2011-11-26 | B143: 0.7405
A144: 2011-11-25 | B144: 0.742
A145: 2011-11-24 | B145: 0.7436
A146: 2011-11-23 | B146: 0.7478
A147: 2011-11-22 | B147: 0.752
A148: 2011-11-21 | B148: 0.7559
A149: 2011-11-20 | B149: 0.7559
A150: 2011-11-19 | B150: 0.7591
A151: 2011-11-18 | B151: 0.7634
A152: 2011-11-17 | B152: 0.7677
A153: 2011-11-16 | B153: 0.7728
A154: 2011-11-15 | B154: 0.7844
A155: 2011-11-14 | B155: 0.785
A156: 2011-11-13 | B156: 0.7848
A157: 2011-11-12 | B157: 0.7791
A158: 2011-11-11 | B158: 0.7781
A159: 2011-11-10 | B159: 0.7907
A160: 2011-11-09 | B160: 0.7953
A161: 2011-11-08 | B161: 0.7954
A162: 2011-11-07 | B162: 0.793
A163: 2011-11-06 | B163: 0.793
A164: 2011-11-05 | B164: 0.7936
A165: 2011-11-04 | B165: 0.7877
A166: 2011-11-03 | B166: 0.7931
A167: 2011-11-02 | B167: 0.8007
A168: 2011-11-01 | B168: 0.8132
A169: 2011-10-31 | B169: 0.8205
A170: 2011-10-30 | B170: 0.8205
A171: 2011-10-29 | B171: 0.8202
A172: 2011-10-28 | B172: 0.8107
A173: 2011-10-27 | B173: 0.796
A174: 2011-10-26 | B174: 0.8018
A175: 2011-10-25 | B175: 0.8052
A176: 2011-10-24 | B176: 0.8023
A177: 2011-10-23 | B177: 0.8026
A178: 2011-10-22 | B178: 0.7959
A179: 2011-10-21 | B179: 0.7928
A180: 2011-10-20 | B180: 0.796
A181: 2011-10-19 | B181: 0.7918
A182: 2011-10-18 | B182: 0.8004
A183: 2011-10-17 | B183: 0.8046
A184: 2011-10-16 | B184: 0.8048
A185: 2011-10-15 | B185: 0.7975
A186: 2011-10-14 | B186: 0.7934

Sheet SEK
A5: End Date | B5: SEK/USD
A6: 2012-04-11 | B6: 0.1476
A7: 2012-04-10 | B7: 0.1477
A8: 2012-04-09 | B8: 0.1479
A9: 2012-04-08 | B9: 0.148
A10: 2012-04-07 | B10: 0.1481
A11: 2012-04-06 | B11: 0.1487
A12: 2012-04-05 | B12: 0.1497
A13: 2012-04-04 | B13: 0.1515
A14: 2012-04-03 | B14: 0.1513
A15: 2012-04-02 | B15: 0.1511
A16: 2012-04-01 | B16: 0.1511
A17: 2012-03-31 | B17: 0.1507
A18: 2012-03-30 | B18: 0.1501
A19: 2012-03-29 | B19: 0.1499
A20: 2012-03-28 | B20: 0.1499
A21: 2012-03-27 | B21: 0.1487
A22: 2012-03-26 | B22: 0.1484
A23: 2012-03-25 | B23: 0.1484
A24: 2012-03-24 | B24: 0.148
A25: 2012-03-23 | B25: 0.1482
A26: 2012-03-22 | B26: 0.1486
A27: 2012-03-21 | B27: 0.1485
A28: 2012-03-20 | B28: 0.1484
A29: 2012-03-19 | B29: 0.1482
A30: 2012-03-18 | B30: 0.1482
A31: 2012-03-17 | B31: 0.1475
A32: 2012-03-16 | B32: 0.1463
A33: 2012-03-15 | B33: 0.1469
A34: 2012-03-14 | B34: 0.1473
A35: 2012-03-13 | B35: 0.1469
A36: 2012-03-12 | B36: 0.1469
A37: 2012-03-11 | B37: 0.1469
A38: 2012-03-10 | B38: 0.1483
A39: 2012-03-09 | B39: 0.1481
A40: 2012-03-08 | B40: 0.1473
A41: 2012-03-07 | B41: 0.1482
A42: 2012-03-06 | B42: 0.1495
A43: 2012-03-05 | B43: 0.1496
A44: 2012-03-04 | B44: 0.1496
A45: 2012-03-03 | B45: 0.1502
A46: 2012-03-02 | B46: 0.1511
A47: 2012-03-01 | B47: 0.1523
A48: 2012-02-29 | B48: 0.1521
A49: 2012-02-28 | B49: 0.1521
A50: 2012-02-27 | B50: 0.1525
A51: 2012-02-26 | B51: 0.1524
A52: 2012-02-25 | B52: 0.1517
A53: 2012-02-24 | B53: 0.1504
A54: 2012-02-23 | B54: 0.1502
A55: 2012-02-22 | B55: 0.1503
A56: 2012-02-21 | B56: 0.1499
A57: 2012-02-20 | B57: 0.1487
A58: 2012-02-19 | B58: 0.1486
A59: 2012-02-18 | B59: 0.1488
A60: 2012-02-17 | B60: 0.1482
A61: 2012-02-16 | B61: 0.1495
A62: 2012-02-15 | B62: 0.1497
A63: 2012-02-14 | B63: 0.1504
A64: 2012-02-13 | B64: 0.15
A65: 2012-02-12 | B65: 0.15
A66: 2012-02-11 | B66: 0.1502
A67: 2012-02-10 | B67: 0.1506
A68: 2012-02-09 | B68: 0.1502
A69: 2012-02-08 | B69: 0.1491
A70: 2012-02-07 | B70: 0.1487
A71: 2012-02-06 | B71: 0.1496
A72: 2012-02-05 | B72: 0.1496
A73: 2012-02-04 | B73: 0.1487
A74: 2012-02-03 | B74: 0.1484
A75: 2012-02-02 | B75: 0.1476
A76: 2012-02-01 | B76: 0.1479
A77: 2012-01-31 | B77: 0.1477
A78: 2012-01-30 | B78: 0.1481
A79: 2012-01-29 | B79: 0.1481
A80: 2012-01-28 | B80: 0.1476
A81: 2012-01-27 | B81: 0.1481
A82: 2012-01-26 | B82: 0.1478
A83: 2012-01-25 | B83: 0.1481
A84: 2012-01-24 | B84: 0.1476
A85: 2012-01-23 | B85: 0.1474
A86: 2012-01-22 | B86: 0.1474
A87: 2012-01-21 | B87: 0.1476
A88: 2012-01-20 | B88: 0.1468
A89: 2012-01-19 | B89: 0.1451
A90: 2012-01-18 | B90: 0.1441
A91: 2012-01-17 | B91: 0.1428
A92: 2012-01-16 | B92: 0.1427
A93: 2012-01-15 | B93: 0.1428
A94: 2012-01-14 | B94: 0.1437
A95: 2012-01-13 | B95: 0.1442
A96: 2012-01-12 | B96: 0.1445
A97: 2012-01-11 | B97: 0.1451
A98: 2012-01-10 | B98: 0.1442
A99: 2012-01-09 | B99: 0.1441
A100: 2012-01-08 | B100: 0.144
A101: 2012-01-07 | B101: 0.1443
A102: 2012-01-06 | B102: 0.1453
A103: 2012-01-05 | B103: 0.1462
A104: 2012-01-04 | B104: 0.1459
A105: 2012-01-03 | B105: 0.1449
A106: 2012-01-02 | B106: 0.1443
A107: 2012-01-01 | B107: 0.1443
A108: 2011-12-31 | B108: 0.145
A109: 2011-12-30 | B109: 0.1445
A110: 2011-12-29 | B110: 0.1455
A111: 2011-12-28 | B111: 0.1457
A112: 2011-12-27 | B112: 0.1452
A113: 2011-12-26 | B113: 0.1452
A114: 2011-12-25 | B114: 0.1452
A115: 2011-12-24 | B115: 0.1456
A116: 2011-12-23 | B116: 0.1453
A117: 2011-12-22 | B117: 0.1457
A118: 2011-12-21 | B118: 0.1451
A119: 2011-12-20 | B119: 0.1444
A120: 2011-12-19 | B120: 0.1442
A121: 2011-12-18 | B121: 0.1442
A122: 2011-12-17 | B122: 0.1439
A123: 2011-12-16 | B123: 0.1431
A124: 2011-12-15 | B124: 0.143
A125: 2011-12-14 | B125: 0.145
A126: 2011-12-13 | B126: 0.1469
A127: 2011-12-12 | B127: 0.1485
A128: 2011-12-11 | B128: 0.1484
A129: 2011-12-10 | B129: 0.1477
A130: 2011-12-09 | B130: 0.1482
A131: 2011-12-08 | B131: 0.1486
A132: 2011-12-07 | B132: 0.1478
A133: 2011-12-06 | B133: 0.1484
A134: 2011-12-05 | B134: 0.1479
A135: 2011-12-04 | B135: 0.148
A136: 2011-12-03 | B136: 0.148
A137: 2011-12-02 | B137: 0.1478
A138: 2011-12-01 | B138: 0.146
A139: 2011-11-30 | B139: 0.1443
A140: 2011-11-29 | B140: 0.1438
A141: 2011-11-28 | B141: 0.1427
A142: 2011-11-27 | B142: 0.1427
A143: 2011-11-26 | B143: 0.1433
A144: 2011-11-25 | B144: 0.1445
A145: 2011-11-24 | B145: 0.1454
A146: 2011-11-23 | B146: 0.1468
A147: 2011-11-22 | B147: 0.147
A148: 2011-11-21 | B148: 0.1474
A149: 2011-11-20 | B149: 0.1474
A150: 2011-11-19 | B150: 0.1474
A151: 2011-11-18 | B151: 0.147
A152: 2011-11-17 | B152: 0.1477
A153: 2011-11-16 | B153: 0.1487
A154: 2011-11-15 | B154: 0.1505
A155: 2011-11-14 | B155: 0.1512
A156: 2011-11-13 | B156: 0.1512
A157: 2011-11-12 | B157: 0.1502
A158: 2011-11-11 | B158: 0.1495
A159: 2011-11-10 | B159: 0.1514
A160: 2011-11-09 | B160: 0.1524
A161: 2011-11-08 | B161: 0.1517
A162: 2011-11-07 | B162: 0.1518
A163: 2011-11-06 | B163: 0.1518
A164: 2011-11-05 | B164: 0.152
A165: 2011-11-04 | B165: 0.1513
A166: 2011-11-03 | B166: 0.1514
A167: 2011-11-02 | B167: 0.1521
A168: 2011-11-01 | B168: 0.1553
A169: 2011-10-31 | B169: 0.1567
A170: 2011-10-30 | B170: 0.1565
A171: 2011-10-29 | B171: 0.1572
A172: 2011-10-28 | B172: 0.1553
A173: 2011-10-27 | B173: 0.1527
A174: 2011-10-26 | B174: 0.1526
A175: 2011-10-25 | B175: 0.1523
A176: 2011-10-24 | B176: 0.1523
A177: 2011-10-23 | B177: 0.1523
A178: 2011-10-22 | B178: 0.1514
A179: 2011-10-21 | B179: 0.1507
A180: 2011-10-20 | B180: 0.151
A181: 2011-10-19 | B181: 0.15
A182: 2011-10-18 | B182: 0.1511
A183: 2011-10-17 | B183: 0.1515
A184: 2011-10-16 | B184: 0.1515
A185: 2011-10-15 | B185: 0.1508
A186: 2011-10-14 | B186: 0.1505

Sheet SGD
A5: End Date | B5: SGD/USD
A6: 2012-04-11 | B6: 0.7928
A7: 2012-04-10 | B7: 0.7927
A8: 2012-04-09 | B8: 0.793
A9: 2012-04-08 | B9: 0.793
A10: 2012-04-07 | B10: 0.7936
A11: 2012-04-06 | B11: 0.794
A12: 2012-04-05 | B12: 0.7947
A13: 2012-04-04 | B13: 0.7985
A14: 2012-04-03 | B14: 0.7974
A15: 2012-04-02 | B15: 0.7951
A16: 2012-04-01 | B16: 0.7948
A17: 2012-03-31 | B17: 0.7953
A18: 2012-03-30 | B18: 0.7944
A19: 2012-03-29 | B19: 0.7952
A20: 2012-03-28 | B20: 0.7955
A21: 2012-03-27 | B21: 0.7933
A22: 2012-03-26 | B22: 0.7927
A23: 2012-03-25 | B23: 0.7927
A24: 2012-03-24 | B24: 0.7914
A25: 2012-03-23 | B25: 0.7903
A26: 2012-03-22 | B26: 0.7914
A27: 2012-03-21 | B27: 0.7931
A28: 2012-03-20 | B28: 0.7952
A29: 2012-03-19 | B29: 0.7948
A30: 2012-03-18 | B30: 0.7949
A31: 2012-03-17 | B31: 0.7932
A32: 2012-03-16 | B32: 0.79
A33: 2012-03-15 | B33: 0.7912
A34: 2012-03-14 | B34: 0.7944
A35: 2012-03-13 | B35: 0.7934
A36: 2012-03-12 | B36: 0.7967
A37: 2012-03-11 | B37: 0.7968
A38: 2012-03-10 | B38: 0.7981
A39: 2012-03-09 | B39: 0.7967
A40: 2012-03-08 | B40: 0.7927
A41: 2012-03-07 | B41: 0.7926
A42: 2012-03-06 | B42: 0.7958
A43: 2012-03-05 | B43: 0.7984
A44: 2012-03-04 | B44: 0.7984
A45: 2012-03-03 | B45: 0.8
A46: 2012-03-02 | B46: 0.8
A47: 2012-03-01 | B47: 0.8017
A48: 2012-02-29 | B48: 0.7978
A49: 2012-02-28 | B49: 0.7951
A50: 2012-02-27 | B50: 0.7955
A51: 2012-02-26 | B51: 0.796
A52: 2012-02-25 | B52: 0.7969
A53: 2012-02-24 | B53: 0.7953
A54: 2012-02-23 | B54: 0.7947
A55: 2012-02-22 | B55: 0.7966
A56: 2012-02-21 | B56: 0.7982
A57: 2012-02-20 | B57: 0.7939
A58: 2012-02-19 | B58: 0.7941
A59: 2012-02-18 | B59: 0.7938
A60: 2012-02-17 | B60: 0.7895
A61: 2012-02-16 | B61: 0.7928
A62: 2012-02-15 | B62: 0.7917
A63: 2012-02-14 | B63: 0.7966
A64: 2012-02-13 | B64: 0.7926
A65: 2012-02-12 | B65: 0.7925
A66: 2012-02-11 | B66: 0.7961
A67: 2012-02-10 | B67: 0.8021
A68: 2012-02-09 | B68: 0.8033
A69: 2012-02-08 | B69: 0.8016
A70: 2012-02-07 | B70: 0.8018
A71: 2012-02-06 | B71: 0.8046
A72: 2012-02-05 | B72: 0.8049
A73: 2012-02-04 | B73: 0.8027
A74: 2012-02-03 | B74: 0.8015
A75: 2012-02-02 | B75: 0.797
A76: 2012-02-01 | B76: 0.7967
A77: 2012-01-31 | B77: 0.7956
A78: 2012-01-30 | B78: 0.7984
A79: 2012-01-29 | B79: 0.7985
A80: 2012-01-28 | B80: 0.7961
A81: 2012-01-27 | B81: 0.7951
A82: 2012-01-26 | B82: 0.7888
A83: 2012-01-25 | B83: 0.7878
A84: 2012-01-24 | B84: 0.7873
A85: 2012-01-23 | B85: 0.7858
A86: 2012-01-22 | B86: 0.786
A87: 2012-01-21 | B87: 0.7851
A88: 2012-01-20 | B88: 0.7835
A89: 2012-01-19 | B89: 0.7803
A90: 2012-01-18 | B90: 0.7775
A91: 2012-01-17 | B91: 0.7738
A92: 2012-01-16 | B92: 0.7731
A93: 2012-01-15 | B93: 0.7733
A94: 2012-01-14 | B94: 0.7751
A95: 2012-01-13 | B95: 0.7743
A96: 2012-01-12 | B96: 0.7739
A97: 2012-01-11 | B97: 0.7747
A98: 2012-01-10 | B98: 0.7704
A99: 2012-01-09 | B99: 0.7719
A100: 2012-01-08 | B100: 0.7721
A101: 2012-01-07 | B101: 0.7732
A102: 2012-01-06 | B102: 0.775
A103: 2012-01-05 | B103: 0.7769
A104: 2012-01-04 | B104: 0.7757
A105: 2012-01-03 | B105: 0.7704
A106: 2012-01-02 | B106: 0.771
A107: 2012-01-01 | B107: 0.771
A108: 2011-12-31 | B108: 0.7697
A109: 2011-12-30 | B109: 0.7682
A110: 2011-12-29 | B110: 0.7709
A111: 2011-12-28 | B111: 0.7719
A112: 2011-12-27 | B112: 0.7735
A113: 2011-12-26 | B113: 0.7726
A114: 2011-12-25 | B114: 0.7726
A115: 2011-12-24 | B115: 0.7734
A116: 2011-12-23 | B116: 0.7722
A117: 2011-12-22 | B117: 0.772
A118: 2011-12-21 | B118: 0.7668
A119: 2011-12-20 | B119: 0.7657
A120: 2011-12-19 | B120: 0.7656
A121: 2011-12-18 | B121: 0.7656
A122: 2011-12-17 | B122: 0.7668
A123: 2011-12-16 | B123: 0.764
A124: 2011-12-15 | B124: 0.7652
A125: 2011-12-14 | B125: 0.7679
A126: 2011-12-13 | B126: 0.7705
A127: 2011-12-12 | B127: 0.773
A128: 2011-12-11 | B128: 0.7731
A129: 2011-12-10 | B129: 0.7712
A130: 2011-12-09 | B130: 0.7758
A131: 2011-12-08 | B131: 0.7787
A132: 2011-12-07 | B132: 0.7784
A133: 2011-12-06 | B133: 0.7799
A134: 2011-12-05 | B134: 0.7773
A135: 2011-12-04 | B135: 0.7772
A136: 2011-12-03 | B136: 0.779
A137: 2011-12-02 | B137: 0.7789
A138: 2011-12-01 | B138: 0.7743
A139: 2011-11-30 | B139: 0.7701
A140: 2011-11-29 | B140: 0.7676
A141: 2011-11-28 | B141: 0.7613
A142: 2011-11-27 | B142: 0.7612
A143: 2011-11-26 | B143: 0.7622
A144: 2011-11-25 | B144: 0.7642
A145: 2011-11-24 | B145: 0.7654
A146: 2011-11-23 | B146: 0.7681
A147: 2011-11-22 | B147: 0.7685
A148: 2011-11-21 | B148: 0.7692
A149: 2011-11-20 | B149: 0.7692
A150: 2011-11-19 | B150: 0.7712
A151: 2011-11-18 | B151: 0.7719
A152: 2011-11-17 | B152: 0.7729
A153: 2011-11-16 | B153: 0.7745
A154: 2011-11-15 | B154: 0.7781
A155: 2011-11-14 | B155: 0.7811
A156: 2011-11-13 | B156: 0.7811
A157: 2011-11-12 | B157: 0.7762
A158: 2011-11-11 | B158: 0.7743
A159: 2011-11-10 | B159: 0.783
A160: 2011-11-09 | B160: 0.787
A161: 2011-11-08 | B161: 0.7877
A162: 2011-11-07 | B162: 0.7898
A163: 2011-11-06 | B163: 0.7899
A164: 2011-11-05 | B164: 0.7895
A165: 2011-11-04 | B165: 0.7839
A166: 2011-11-03 | B166: 0.7847
A167: 2011-11-02 | B167: 0.7889
A168: 2011-11-01 | B168: 0.8006
A169: 2011-10-31 | B169: 0.8048
A170: 2011-10-30 | B170: 0.8049
A171: 2011-10-29 | B171: 0.8042
A172: 2011-10-28 | B172: 0.7963
A173: 2011-10-27 | B173: 0.7883
A174: 2011-10-26 | B174: 0.7915
A175: 2011-10-25 | B175: 0.7876
A176: 2011-10-24 | B176: 0.7852
A177: 2011-10-23 | B177: 0.7852
A178: 2011-10-22 | B178: 0.7839
A179: 2011-10-21 | B179: 0.7871
A180: 2011-10-20 | B180: 0.7905
A181: 2011-10-19 | B181: 0.7869
A182: 2011-10-18 | B182: 0.7898
A183: 2011-10-17 | B183: 0.7898
A184: 2011-10-16 | B184: 0.7898
A185: 2011-10-15 | B185: 0.7874
A186: 2011-10-14 | B186: 0.7824

Sheet THB
A5: End Date | B5: THB/USD
A6: 2012-04-11 | B6: 0.0323
A7: 2012-04-10 | B7: 0.0322
A8: 2012-04-09 | B8: 0.0318
A9: 2012-04-08 | B9: 0.0318
A10: 2012-04-07 | B10: 0.0322
A11: 2012-04-06 | B11: 0.0322
A12: 2012-04-05 | B12: 0.0322
A13: 2012-04-04 | B13: 0.0324
A14: 2012-04-03 | B14: 0.0324
A15: 2012-04-02 | B15: 0.032
A16: 2012-04-01 | B16: 0.032
A17: 2012-03-31 | B17: 0.0323
A18: 2012-03-30 | B18: 0.0323
A19: 2012-03-29 | B19: 0.0325
A20: 2012-03-28 | B20: 0.0325
A21: 2012-03-27 | B21: 0.0325
A22: 2012-03-26 | B22: 0.0321
A23: 2012-03-25 | B23: 0.0321
A24: 2012-03-24 | B24: 0.0324
A25: 2012-03-23 | B25: 0.0324
A26: 2012-03-22 | B26: 0.0325
A27: 2012-03-21 | B27: 0.0325
A28: 2012-03-20 | B28: 0.0325
A29: 2012-03-19 | B29: 0.032
A30: 2012-03-18 | B30: 0.032
A31: 2012-03-17 | B31: 0.0325
A32: 2012-03-16 | B32: 0.0324
A33: 2012-03-15 | B33: 0.0325
A34: 2012-03-14 | B34: 0.0326
A35: 2012-03-13 | B35: 0.0326
A36: 2012-03-12 | B36: 0.0322
A37: 2012-03-11 | B37: 0.0322
A38: 2012-03-10 | B38: 0.0327
A39: 2012-03-09 | B39: 0.0326
A40: 2012-03-08 | B40: 0.0324
A41: 2012-03-07 | B41: 0.0325
A42: 2012-03-06 | B42: 0.0325
A43: 2012-03-05 | B43: 0.0322
A44: 2012-03-04 | B44: 0.0322
A45: 2012-03-03 | B45: 0.0327
A46: 2012-03-02 | B46: 0.0327
A47: 2012-03-01 | B47: 0.0329
A48: 2012-02-29 | B48: 0.0329
A49: 2012-02-28 | B49: 0.0328
A50: 2012-02-27 | B50: 0.0324
A51: 2012-02-26 | B51: 0.0325
A52: 2012-02-25 | B52: 0.0329
A53: 2012-02-24 | B53: 0.0328
A54: 2012-02-23 | B54: 0.0326
A55: 2012-02-22 | B55: 0.0325
A56: 2012-02-21 | B56: 0.0324
A57: 2012-02-20 | B57: 0.032
A58: 2012-02-19 | B58: 0.032
A59: 2012-02-18 | B59: 0.0324
A60: 2012-02-17 | B60: 0.0324
A61: 2012-02-16 | B61: 0.0324
A62: 2012-02-15 | B62: 0.0324
A63: 2012-02-14 | B63: 0.0324
A64: 2012-02-13 | B64: 0.0319
A65: 2012-02-12 | B65: 0.0319
A66: 2012-02-11 | B66: 0.0324
A67: 2012-02-10 | B67: 0.0325
A68: 2012-02-09 | B68: 0.0324
A69: 2012-02-08 | B69: 0.0323
A70: 2012-02-07 | B70: 0.0322
A71: 2012-02-06 | B71: 0.0319
A72: 2012-02-05 | B72: 0.0319
A73: 2012-02-04 | B73: 0.0323
A74: 2012-02-03 | B74: 0.0323
A75: 2012-02-02 | B75: 0.0322
A76: 2012-02-01 | B76: 0.0322
A77: 2012-01-31 | B77: 0.0321
A78: 2012-01-30 | B78: 0.0317
A79: 2012-01-29 | B79: 0.0317
A80: 2012-01-28 | B80: 0.032
A81: 2012-01-27 | B81: 0.0319
A82: 2012-01-26 | B82: 0.0317
A83: 2012-01-25 | B83: 0.0318
A84: 2012-01-24 | B84: 0.0317
A85: 2012-01-23 | B85: 0.0312
A86: 2012-01-22 | B86: 0.0312
A87: 2012-01-21 | B87: 0.0316
A88: 2012-01-20 | B88: 0.0315
A89: 2012-01-19 | B89: 0.0314
A90: 2012-01-18 | B90: 0.0314
A91: 2012-01-17 | B91: 0.0313
A92: 2012-01-16 | B92: 0.031
A93: 2012-01-15 | B93: 0.031
A94: 2012-01-14 | B94: 0.0314
A95: 2012-01-13 | B95: 0.0314
A96: 2012-01-12 | B96: 0.0315
A97: 2012-01-11 | B97: 0.0315
A98: 2012-01-10 | B98: 0.0314
A99: 2012-01-09 | B99: 0.0311
A100: 2012-01-08 | B100: 0.0311
A101: 2012-01-07 | B101: 0.0315
A102: 2012-01-06 | B102: 0.0316
A103: 2012-01-05 | B103: 0.0317
A104: 2012-01-04 | B104: 0.0318
A105: 2012-01-03 | B105: 0.0316
A106: 2012-01-02 | B106: 0.0313
A107: 2012-01-01 | B107: 0.0313
A108: 2011-12-31 | B108: 0.0316
A109: 2011-12-30 | B109: 0.0315
A110: 2011-12-29 | B110: 0.0317
A111: 2011-12-28 | B111: 0.0318
A112: 2011-12-27 | B112: 0.0314
A113: 2011-12-26 | B113: 0.0315
A114: 2011-12-25 | B114: 0.0315
A115: 2011-12-24 | B115: 0.0319
A116: 2011-12-23 | B116: 0.0319
A117: 2011-12-22 | B117: 0.032
A118: 2011-12-21 | B118: 0.0319
A119: 2011-12-20 | B119: 0.0319
A120: 2011-12-19 | B120: 0.0315
A121: 2011-12-18 | B121: 0.0315
A122: 2011-12-17 | B122: 0.0319
A123: 2011-12-16 | B123: 0.0318
A124: 2011-12-15 | B124: 0.0319
A125: 2011-12-14 | B125: 0.032
A126: 2011-12-13 | B126: 0.0321
A127: 2011-12-12 | B127: 0.0318
A128: 2011-12-11 | B128: 0.0319
A129: 2011-12-10 | B129: 0.0323
A130: 2011-12-09 | B130: 0.0324
A131: 2011-12-08 | B131: 0.0324
A132: 2011-12-07 | B132: 0.0324
A133: 2011-12-06 | B133: 0.0324
A134: 2011-12-05 | B134: 0.0319
A135: 2011-12-04 | B135: 0.0319
A136: 2011-12-03 | B136: 0.0324
A137: 2011-12-02 | B137: 0.0323
A138: 2011-12-01 | B138: 0.0321
A139: 2011-11-30 | B139: 0.0319
A140: 2011-11-29 | B140: 0.0318
A141: 2011-11-28 | B141: 0.0314
A142: 2011-11-27 | B142: 0.0314
A143: 2011-11-26 | B143: 0.0319
A144: 2011-11-25 | B144: 0.0319
A145: 2011-11-24 | B145: 0.0319
A146: 2011-11-23 | B146: 0.032
A147: 2011-11-22 | B147: 0.0321
A148: 2011-11-21 | B148: 0.0318
A149: 2011-11-20 | B149: 0.0318
A150: 2011-11-19 | B150: 0.0322
A151: 2011-11-18 | B151: 0.0323
A152: 2011-11-17 | B152: 0.0324
A153: 2011-11-16 | B153: 0.0324
A154: 2011-11-15 | B154: 0.0324
A155: 2011-11-14 | B155: 0.032
A156: 2011-11-13 | B156: 0.032
A157: 2011-11-12 | B157: 0.0324
A158: 2011-11-11 | B158: 0.0324
A159: 2011-11-10 | B159: 0.0325
A160: 2011-11-09 | B160: 0.0325
A161: 2011-11-08 | B161: 0.0325
A162: 2011-11-07 | B162: 0.0321
A163: 2011-11-06 | B163: 0.0321
A164: 2011-11-05 | B164: 0.0325
A165: 2011-11-04 | B165: 0.0324
A166: 2011-11-03 | B166: 0.0324
A167: 2011-11-02 | B167: 0.0324
A168: 2011-11-01 | B168: 0.0325
A169: 2011-10-31 | B169: 0.0322
A170: 2011-10-30 | B170: 0.0322
A171: 2011-10-29 | B171: 0.0327
A172: 2011-10-28 | B172: 0.0326
A173: 2011-10-27 | B173: 0.0324
A174: 2011-10-26 | B174: 0.0324
A175: 2011-10-25 | B175: 0.0323
A176: 2011-10-24 | B176: 0.0318
A177: 2011-10-23 | B177: 0.0318
A178: 2011-10-22 | B178: 0.0322
A179: 2011-10-21 | B179: 0.0323
A180: 2011-10-20 | B180: 0.0325
A181: 2011-10-19 | B181: 0.0325
A182: 2011-10-18 | B182: 0.0325
A183: 2011-10-17 | B183: 0.032
A184: 2011-10-16 | B184: 0.032
A185: 2011-10-15 | B185: 0.0324
A186: 2011-10-14 | B186: 0.0324

Sheet TWD
A5: End Date | B5: TWD/USD
A6: 2012-04-11 | B6: 0.0338
A7: 2012-04-10 | B7: 0.0338
A8: 2012-04-09 | B8: 0.0338
A9: 2012-04-08 | B9: 0.0338
A10: 2012-04-07 | B10: 0.0339
A11: 2012-04-06 | B11: 0.0339
A12: 2012-04-05 | B12: 0.0339
A13: 2012-04-04 | B13: 0.0339
A14: 2012-04-03 | B14: 0.0339
A15: 2012-04-02 | B15: 0.0339
A16: 2012-04-01 | B16: 0.0337
A17: 2012-03-31 | B17: 0.0338
A18: 2012-03-30 | B18: 0.0338
A19: 2012-03-29 | B19: 0.0338
A20: 2012-03-28 | B20: 0.0338
A21: 2012-03-27 | B21: 0.0337
A22: 2012-03-26 | B22: 0.0335
A23: 2012-03-25 | B23: 0.0336
A24: 2012-03-24 | B24: 0.0338
A25: 2012-03-23 | B25: 0.0338
A26: 2012-03-22 | B26: 0.0338
A27: 2012-03-21 | B27: 0.0338
A28: 2012-03-20 | B28: 0.0338
A29: 2012-03-19 | B29: 0.0338
A30: 2012-03-18 | B30: 0.0338
A31: 2012-03-17 | B31: 0.0338
A32: 2012-03-16 | B32: 0.0338
A33: 2012-03-15 | B33: 0.0338
A34: 2012-03-14 | B34: 0.0339
A35: 2012-03-13 | B35: 0.0339
A36: 2012-03-12 | B36: 0.0339
A37: 2012-03-11 | B37: 0.0339
A38: 2012-03-10 | B38: 0.0339
A39: 2012-03-09 | B39: 0.0339
A40: 2012-03-08 | B40: 0.0338
A41: 2012-03-07 | B41: 0.0339
A42: 2012-03-06 | B42: 0.0339
A43: 2012-03-05 | B43: 0.0338
A44: 2012-03-04 | B44: 0.0337
A45: 2012-03-03 | B45: 0.0339
A46: 2012-03-02 | B46: 0.034
A47: 2012-03-01 | B47: 0.0339
A48: 2012-02-29 | B48: 0.0338
A49: 2012-02-28 | B49: 0.0338
A50: 2012-02-27 | B50: 0.0338
A51: 2012-02-26 | B51: 0.0337
A52: 2012-02-25 | B52: 0.0338
A53: 2012-02-24 | B53: 0.0338
A54: 2012-02-23 | B54: 0.0338
A55: 2012-02-22 | B55: 0.0338
A56: 2012-02-21 | B56: 0.0338
A57: 2012-02-20 | B57: 0.0338
A58: 2012-02-19 | B58: 0.0336
A59: 2012-02-18 | B59: 0.0338
A60: 2012-02-17 | B60: 0.0338
A61: 2012-02-16 | B61: 0.0338
A62: 2012-02-15 | B62: 0.0338
A63: 2012-02-14 | B63: 0.0338
A64: 2012-02-13 | B64: 0.0335
A65: 2012-02-12 | B65: 0.0338
A66: 2012-02-11 | B66: 0.0338
A67: 2012-02-10 | B67: 0.0339
A68: 2012-02-09 | B68: 0.0339
A69: 2012-02-08 | B69: 0.0338
A70: 2012-02-07 | B70: 0.0338
A71: 2012-02-06 | B71: 0.0339
A72: 2012-02-05 | B72: 0.0338
A73: 2012-02-04 | B73: 0.0338
A74: 2012-02-03 | B74: 0.0338
A75: 2012-02-02 | B75: 0.0337
A76: 2012-02-01 | B76: 0.0337
A77: 2012-01-31 | B77: 0.0335
A78: 2012-01-30 | B78: 0.0328
A79: 2012-01-29 | B79: 0.0332
A80: 2012-01-28 | B80: 0.0333
A81: 2012-01-27 | B81: 0.0333
A82: 2012-01-26 | B82: 0.0333
A83: 2012-01-25 | B83: 0.0333
A84: 2012-01-24 | B84: 0.0328
A85: 2012-01-23 | B85: 0.0327
A86: 2012-01-22 | B86: 0.0329
A87: 2012-01-21 | B87: 0.0332
A88: 2012-01-20 | B88: 0.0332
A89: 2012-01-19 | B89: 0.0333
A90: 2012-01-18 | B90: 0.0331
A91: 2012-01-17 | B91: 0.0328
A92: 2012-01-16 | B92: 0.0323
A93: 2012-01-15 | B93: 0.0329
A94: 2012-01-14 | B94: 0.0333
A95: 2012-01-13 | B95: 0.0332
A96: 2012-01-12 | B96: 0.0331
A97: 2012-01-11 | B97: 0.0331
A98: 2012-01-10 | B98: 0.0329
A99: 2012-01-09 | B99: 0.032
A100: 2012-01-08 | B100: 0.0326
A101: 2012-01-07 | B101: 0.0329
A102: 2012-01-06 | B102: 0.0329
A103: 2012-01-05 | B103: 0.0329
A104: 2012-01-04 | B104: 0.0327
A105: 2012-01-03 | B105: 0.0325
A106: 2012-01-02 | B106: 0.0323
A107: 2012-01-01 | B107: 0.0328
A108: 2011-12-31 | B108: 0.0328
A109: 2011-12-30 | B109: 0.0329
A110: 2011-12-29 | B110: 0.0328
A111: 2011-12-28 | B111: 0.0328
A112: 2011-12-27 | B112: 0.0329
A113: 2011-12-26 | B113: 0.0322
A114: 2011-12-25 | B114: 0.0327
A115: 2011-12-24 | B115: 0.0327
A116: 2011-12-23 | B116: 0.0328
A117: 2011-12-22 | B117: 0.0327
A118: 2011-12-21 | B118: 0.0328
A119: 2011-12-20 | B119: 0.0326
A120: 2011-12-19 | B120: 0.0325
A121: 2011-12-18 | B121: 0.0329
A122: 2011-12-17 | B122: 0.0328
A123: 2011-12-16 | B123: 0.0328
A124: 2011-12-15 | B124: 0.0329
A125: 2011-12-14 | B125: 0.0328
A126: 2011-12-13 | B126: 0.0327
A127: 2011-12-12 | B127: 0.0322
A128: 2011-12-11 | B128: 0.0326
A129: 2011-12-10 | B129: 0.0329
A130: 2011-12-09 | B130: 0.033
A131: 2011-12-08 | B131: 0.033
A132: 2011-12-07 | B132: 0.0329
A133: 2011-12-06 | B133: 0.0328
A134: 2011-12-05 | B134: 0.0321
A135: 2011-12-04 | B135: 0.0327
A136: 2011-12-03 | B136: 0.033
A137: 2011-12-02 | B137: 0.033
A138: 2011-12-01 | B138: 0.0329
A139: 2011-11-30 | B139: 0.0329
A140: 2011-11-29 | B140: 0.0327
A141: 2011-11-28 | B141: 0.0321
A142: 2011-11-27 | B142: 0.0321
A143: 2011-11-26 | B143: 0.0325
A144: 2011-11-25 | B144: 0.0327
A145: 2011-11-24 | B145: 0.0326
A146: 2011-11-23 | B146: 0.0328
A147: 2011-11-22 | B147: 0.0327
A148: 2011-11-21 | B148: 0.0321
A149: 2011-11-20 | B149: 0.0322
A150: 2011-11-19 | B150: 0.0326
A151: 2011-11-18 | B151: 0.0326
A152: 2011-11-17 | B152: 0.0327
A153: 2011-11-16 | B153: 0.0329
A154: 2011-11-15 | B154: 0.0327
A155: 2011-11-14 | B155: 0.0328
A156: 2011-11-13 | B156: 0.0331
A157: 2011-11-12 | B157: 0.033
A158: 2011-11-11 | B158: 0.033
A159: 2011-11-10 | B159: 0.0329
A160: 2011-11-09 | B160: 0.033
A161: 2011-11-08 | B161: 0.033
A162: 2011-11-07 | B162: 0.0324
A163: 2011-11-06 | B163: 0.033
A164: 2011-11-05 | B164: 0.0324
A165: 2011-11-04 | B165: 0.0327
A166: 2011-11-03 | B166: 0.0329
A167: 2011-11-02 | B167: 0.0328
A168: 2011-11-01 | B168: 0.0331
A169: 2011-10-31 | B169: 0.0332
A170: 2011-10-30 | B170: 0.0335
A171: 2011-10-29 | B171: 0.0333
A172: 2011-10-28 | B172: 0.0331
A173: 2011-10-27 | B173: 0.0331
A174: 2011-10-26 | B174: 0.0332
A175: 2011-10-25 | B175: 0.0332
A176: 2011-10-24 | B176: 0.0326
A177: 2011-10-23 | B177: 0.0329
A178: 2011-10-22 | B178: 0.0328
A179: 2011-10-21 | B179: 0.0329
A180: 2011-10-20 | B180: 0.033
A181: 2011-10-19 | B181: 0.033
A182: 2011-10-18 | B182: 0.0329
A183: 2011-10-17 | B183: 0.0324
A184: 2011-10-16 | B184: 0.0328
A185: 2011-10-15 | B185: 0.0328
A186: 2011-10-14 | B186: 0.0329

Sheet USD
A5: End Date | B5: USD/USD
A6: 2012-04-11 | B6: 1
A7: 2012-04-10 | B7: 1
A8: 2012-04-09 | B8: 1
A9: 2012-04-08 | B9: 1
A10: 2012-04-07 | B10: 1
A11: 2012-04-06 | B11: 1
A12: 2012-04-05 | B12: 1
A13: 2012-04-04 | B13: 1
A14: 2012-04-03 | B14: 1
A15: 2012-04-02 | B15: 1
A16: 2012-04-01 | B16: 1
A17: 2012-03-31 | B17: 1
A18: 2012-03-30 | B18: 1
A19: 2012-03-29 | B19: 1
A20: 2012-03-28 | B20: 1
A21: 2012-03-27 | B21: 1
A22: 2012-03-26 | B22: 1
A23: 2012-03-25 | B23: 1
A24: 2012-03-24 | B24: 1
A25: 2012-03-23 | B25: 1
A26: 2012-03-22 | B26: 1
A27: 2012-03-21 | B27: 1
A28: 2012-03-20 | B28: 1
A29: 2012-03-19 | B29: 1
A30: 2012-03-18 | B30: 1
A31: 2012-03-17 | B31: 1
A32: 2012-03-16 | B32: 1
A33: 2012-03-15 | B33: 1
A34: 2012-03-14 | B34: 1
A35: 2012-03-13 | B35: 1
A36: 2012-03-12 | B36: 1
A37: 2012-03-11 | B37: 1
A38: 2012-03-10 | B38: 1
A39: 2012-03-09 | B39: 1
A40: 2012-03-08 | B40: 1
A41: 2012-03-07 | B41: 1
A42: 2012-03-06 | B42: 1
A43: 2012-03-05 | B43: 1
A44: 2012-03-04 | B44: 1
A45: 2012-03-03 | B45: 1
A46: 2012-03-02 | B46: 1
A47: 2012-03-01 | B47: 1
A48: 2012-02-29 | B48: 1
A49: 2012-02-28 | B49: 1
A50: 2012-02-27 | B50: 1
A51: 2012-02-26 | B51: 1
A52: 2012-02-25 | B52: 1
A53: 2012-02-24 | B53: 1
A54: 2012-02-23 | B54: 1
A55: 2012-02-22 | B55: 1
A56: 2012-02-21 | B56: 1
A57: 2012-02-20 | B57: 1
A58: 2012-02-19 | B58: 1
A59: 2012-02-18 | B59: 1
A60: 2012-02-17 | B60: 1
A61: 2012-02-16 | B61: 1
A62: 2012-02-15 | B62: 1
A63: 2012-02-14 | B63: 1
A64: 2012-02-13 | B64: 1
A65: 2012-02-12 | B65: 1
A66: 2012-02-11 | B66: 1
A67: 2012-02-10 | B67: 1
A68: 2012-02-09 | B68: 1
A69: 2012-02-08 | B69: 1
A70: 2012-02-07 | B70: 1
A71: 2012-02-06 | B71: 1
A72: 2012-02-05 | B72: 1
A73: 2012-02-04 | B73: 1
A74: 2012-02-03 | B74: 1
A75: 2012-02-02 | B75: 1
A76: 2012-02-01 | B76: 1
A77: 2012-01-31 | B77: 1
A78: 2012-01-30 | B78: 1
A79: 2012-01-29 | B79: 1
A80: 2012-01-28 | B80: 1
A81: 2012-01-27 | B81: 1
A82: 2012-01-26 | B82: 1
A83: 2012-01-25 | B83: 1
A84: 2012-01-24 | B84: 1
A85: 2012-01-23 | B85: 1
A86: 2012-01-22 | B86: 1
A87: 2012-01-21 | B87: 1
A88: 2012-01-20 | B88: 1
A89: 2012-01-19 | B89: 1
A90: 2012-01-18 | B90: 1
A91: 2012-01-17 | B91: 1
A92: 2012-01-16 | B92: 1
A93: 2012-01-15 | B93: 1
A94: 2012-01-14 | B94: 1
A95: 2012-01-13 | B95: 1
A96: 2012-01-12 | B96: 1
A97: 2012-01-11 | B97: 1
A98: 2012-01-10 | B98: 1
A99: 2012-01-09 | B99: 1
A100: 2012-01-08 | B100: 1
A101: 2012-01-07 | B101: 1
A102: 2012-01-06 | B102: 1
A103: 2012-01-05 | B103: 1
A104: 2012-01-04 | B104: 1
A105: 2012-01-03 | B105: 1
A106: 2012-01-02 | B106: 1
A107: 2012-01-01 | B107: 1
A108: 2011-12-31 | B108: 1
A109: 2011-12-30 | B109: 1
A110: 2011-12-29 | B110: 1
A111: 2011-12-28 | B111: 1
A112: 2011-12-27 | B112: 1
A113: 2011-12-26 | B113: 1
A114: 2011-12-25 | B114: 1
A115: 2011-12-24 | B115: 1
A116: 2011-12-23 | B116: 1
A117: 2011-12-22 | B117: 1
A118: 2011-12-21 | B118: 1
A119: 2011-12-20 | B119: 1
A120: 2011-12-19 | B120: 1
A121: 2011-12-18 | B121: 1
A122: 2011-12-17 | B122: 1
A123: 2011-12-16 | B123: 1
A124: 2011-12-15 | B124: 1
A125: 2011-12-14 | B125: 1
A126: 2011-12-13 | B126: 1
A127: 2011-12-12 | B127: 1
A128: 2011-12-11 | B128: 1
A129: 2011-12-10 | B129: 1
A130: 2011-12-09 | B130: 1
A131: 2011-12-08 | B131: 1
A132: 2011-12-07 | B132: 1
A133: 2011-12-06 | B133: 1
A134: 2011-12-05 | B134: 1
A135: 2011-12-04 | B135: 1
A136: 2011-12-03 | B136: 1
A137: 2011-12-02 | B137: 1
A138: 2011-12-01 | B138: 1
A139: 2011-11-30 | B139: 1
A140: 2011-11-29 | B140: 1
A141: 2011-11-28 | B141: 1
A142: 2011-11-27 | B142: 1
A143: 2011-11-26 | B143: 1
A144: 2011-11-25 | B144: 1
A145: 2011-11-24 | B145: 1
A146: 2011-11-23 | B146: 1
A147: 2011-11-22 | B147: 1
A148: 2011-11-21 | B148: 1
A149: 2011-11-20 | B149: 1
A150: 2011-11-19 | B150: 1
A151: 2011-11-18 | B151: 1
A152: 2011-11-17 | B152: 1
A153: 2011-11-16 | B153: 1
A154: 2011-11-15 | B154: 1
A155: 2011-11-14 | B155: 1
A156: 2011-11-13 | B156: 1
A157: 2011-11-12 | B157: 1
A158: 2011-11-11 | B158: 1
A159: 2011-11-10 | B159: 1
A160: 2011-11-09 | B160: 1
A161: 2011-11-08 | B161: 1
A162: 2011-11-07 | B162: 1
A163: 2011-11-06 | B163: 1
A164: 2011-11-05 | B164: 1
A165: 2011-11-04 | B165: 1
A166: 2011-11-03 | B166: 1
A167: 2011-11-02 | B167: 1
A168: 2011-11-01 | B168: 1
A169: 2011-10-31 | B169: 1
A170: 2011-10-30 | B170: 1
A171: 2011-10-29 | B171: 1
A172: 2011-10-28 | B172: 1
A173: 2011-10-27 | B173: 1
A174: 2011-10-26 | B174: 1
A175: 2011-10-25 | B175: 1
A176: 2011-10-24 | B176: 1
A177: 2011-10-23 | B177: 1
A178: 2011-10-22 | B178: 1
A179: 2011-10-21 | B179: 1
A180: 2011-10-20 | B180: 1
A181: 2011-10-19 | B181: 1
A182: 2011-10-18 | B182: 1
A183: 2011-10-17 | B183: 1
A184: 2011-10-16 | B184: 1
A185: 2011-10-15 | B185: 1
A186: 2011-10-14 | B186: 1

Sheet VEF
A5: End Date | B5: VEF/USD
A6: 2012-04-11 | B6: 0.2323
A7: 2012-04-10 | B7: 0.2324
A8: 2012-04-09 | B8: 0.2328
A9: 2012-04-08 | B9: 0.2322
A10: 2012-04-07 | B10: 0.2325
A11: 2012-04-06 | B11: 0.2325
A12: 2012-04-05 | B12: 0.2323
A13: 2012-04-04 | B13: 0.2324
A14: 2012-04-03 | B14: 0.2324
A15: 2012-04-02 | B15: 0.2326
A16: 2012-04-01 | B16: 0.2326
A17: 2012-03-31 | B17: 0.2324
A18: 2012-03-30 | B18: 0.2324
A19: 2012-03-29 | B19: 0.2324
A20: 2012-03-28 | B20: 0.2324
A21: 2012-03-27 | B21: 0.2324
A22: 2012-03-26 | B22: 0.2326
A23: 2012-03-25 | B23: 0.2326
A24: 2012-03-24 | B24: 0.2322
A25: 2012-03-23 | B25: 0.2324
A26: 2012-03-22 | B26: 0.2324
A27: 2012-03-21 | B27: 0.2322
A28: 2012-03-20 | B28: 0.2325
A29: 2012-03-19 | B29: 0.2326
A30: 2012-03-18 | B30: 0.2326
A31: 2012-03-17 | B31: 0.2324
A32: 2012-03-16 | B32: 0.2324
A33: 2012-03-15 | B33: 0.2324
A34: 2012-03-14 | B34: 0.2324
A35: 2012-03-13 | B35: 0.2325
A36: 2012-03-12 | B36: 0.2326
A37: 2012-03-11 | B37: 0.2326
A38: 2012-03-10 | B38: 0.2324
A39: 2012-03-09 | B39: 0.2324
A40: 2012-03-08 | B40: 0.2323
A41: 2012-03-07 | B41: 0.2325
A42: 2012-03-06 | B42: 0.2324
A43: 2012-03-05 | B43: 0.2326
A44: 2012-03-04 | B44: 0.2326
A45: 2012-03-03 | B45: 0.2325
A46: 2012-03-02 | B46: 0.2324
A47: 2012-03-01 | B47: 0.2325
A48: 2012-02-29 | B48: 0.2325
A49: 2012-02-28 | B49: 0.2325
A50: 2012-02-27 | B50: 0.2326
A51: 2012-02-26 | B51: 0.2326
A52: 2012-02-25 | B52: 0.2325
A53: 2012-02-24 | B53: 0.2325
A54: 2012-02-23 | B54: 0.2325
A55: 2012-02-22 | B55: 0.2325
A56: 2012-02-21 | B56: 0.2326
A57: 2012-02-20 | B57: 0.2326
A58: 2012-02-19 | B58: 0.2326
A59: 2012-02-18 | B59: 0.2324
A60: 2012-02-17 | B60: 0.2325
A61: 2012-02-16 | B61: 0.2325
A62: 2012-02-15 | B62: 0.2326
A63: 2012-02-14 | B63: 0.2324
A64: 2012-02-13 | B64: 0.2326
A65: 2012-02-12 | B65: 0.2326
A66: 2012-02-11 | B66: 0.2325
A67: 2012-02-10 | B67: 0.2325
A68: 2012-02-09 | B68: 0.2324
A69: 2012-02-08 | B69: 0.2324
A70: 2012-02-07 | B70: 0.2325
A71: 2012-02-06 | B71: 0.2326
A72: 2012-02-05 | B72: 0.2322
A73: 2012-02-04 | B73: 0.2322
A74: 2012-02-03 | B74: 0.2323
A75: 2012-02-02 | B75: 0.2322
A76: 2012-02-01 | B76: 0.2326
A77: 2012-01-31 | B77: 0.2326
A78: 2012-01-30 | B78: 0.2326
A79: 2012-01-29 | B79: 0.2326
A80: 2012-01-28 | B80: 0.2324
A81: 2012-01-27 | B81: 0.2322
A82: 2012-01-26 | B82: 0.2323
A83: 2012-01-25 | B83: 0.2323
A84: 2012-01-24 | B84: 0.2325
A85: 2012-01-23 | B85: 0.2326
A86: 2012-01-22 | B86: 0.2324
A87: 2012-01-21 | B87: 0.2325
A88: 2012-01-20 | B88: 0.2323
A89: 2012-01-19 | B89: 0.2323
A90: 2012-01-18 | B90: 0.2325
A91: 2012-01-17 | B91: 0.2326
A92: 2012-01-16 | B92: 0.2326
A93: 2012-01-15 | B93: 0.2323
A94: 2012-01-14 | B94: 0.2323
A95: 2012-01-13 | B95: 0.2324
A96: 2012-01-12 | B96: 0.2324
A97: 2012-01-11 | B97: 0.2323
A98: 2012-01-10 | B98: 0.2324
A99: 2012-01-09 | B99: 0.2326
A100: 2012-01-08 | B100: 0.2323
A101: 2012-01-07 | B101: 0.2323
A102: 2012-01-06 | B102: 0.2324
A103: 2012-01-05 | B103: 0.2323
A104: 2012-01-04 | B104: 0.2325
A105: 2012-01-03 | B105: 0.2326
A106: 2012-01-02 | B106: 0.2326
A107: 2012-01-01 | B107: 0.2323
A108: 2011-12-31 | B108: 0.2323
A109: 2011-12-30 | B109: 0.2324
A110: 2011-12-29 | B110: 0.2323
A111: 2011-12-28 | B111: 0.2325
A112: 2011-12-27 | B112: 0.2326
A113: 2011-12-26 | B113: 0.2326
A114: 2011-12-25 | B114: 0.2323
A115: 2011-12-24 | B115: 0.2323
A116: 2011-12-23 | B116: 0.2325
A117: 2011-12-22 | B117: 0.2324
A118: 2011-12-21 | B118: 0.2323
A119: 2011-12-20 | B119: 0.2324
A120: 2011-12-19 | B120: 0.2324
A121: 2011-12-18 | B121: 0.2322
A122: 2011-12-17 | B122: 0.2323
A123: 2011-12-16 | B123: 0.2323
A124: 2011-12-15 | B124: 0.2323
A125: 2011-12-14 | B125: 0.2324
A126: 2011-12-13 | B126: 0.2325
A127: 2011-12-12 | B127: 0.2326
A128: 2011-12-11 | B128: 0.2324
A129: 2011-12-10 | B129: 0.2323
A130: 2011-12-09 | B130: 0.2323
A131: 2011-12-08 | B131: 0.2323
A132: 2011-12-07 | B132: 0.2323
A133: 2011-12-06 | B133: 0.2325
A134: 2011-12-05 | B134: 0.2324
A135: 2011-12-04 | B135: 0.2322
A136: 2011-12-03 | B136: 0.2323
A137: 2011-12-02 | B137: 0.2323
A138: 2011-12-01 | B138: 0.2325
A139: 2011-11-30 | B139: 0.2326
A140: 2011-11-29 | B140: 0.2326
A141: 2011-11-28 | B141: 0.2326
A142: 2011-11-27 | B142: 0.2326
A143: 2011-11-26 | B143: 0.2326
A144: 2011-11-25 | B144: 0.2326
A145: 2011-11-24 | B145: 0.2326
A146: 2011-11-23 | B146: 0.2326
A147: 2011-11-22 | B147: 0.2326
A148: 2011-11-21 | B148: 0.2326
A149: 2011-11-20 | B149: 0.2326
A150: 2011-11-19 | B150: 0.2326
A151: 2011-11-18 | B151: 0.2326
A152: 2011-11-17 | B152: 0.2326
A153: 2011-11-16 | B153: 0.2326
A154: 2011-11-15 | B154: 0.2326
A155: 2011-11-14 | B155: 0.2324
A156: 2011-11-13 | B156: 0.2322
A157: 2011-11-12 | B157: 0.2323
A158: 2011-11-11 | B158: 0.2323
A159: 2011-11-10 | B159: 0.2324
A160: 2011-11-09 | B160: 0.2324
A161: 2011-11-08 | B161: 0.2325
A162: 2011-11-07 | B162: 0.2326
A163: 2011-11-06 | B163: 0.2324
A164: 2011-11-05 | B164: 0.2326
A165: 2011-11-04 | B165: 0.2326
A166: 2011-11-03 | B166: 0.2326
A167: 2011-11-02 | B167: 0.2326
A168: 2011-11-01 | B168: 0.2326
A169: 2011-10-31 | B169: 0.2324
A170: 2011-10-30 | B170: 0.2323
A171: 2011-10-29 | B171: 0.2324
A172: 2011-10-28 | B172: 0.2325
A173: 2011-10-27 | B173: 0.2325
A174: 2011-10-26 | B174: 0.2324
A175: 2011-10-25 | B175: 0.2325
A176: 2011-10-24 | B176: 0.2326
A177: 2011-10-23 | B177: 0.2323
A178: 2011-10-22 | B178: 0.2324
A179: 2011-10-21 | B179: 0.2324
A180: 2011-10-20 | B180: 0.2324
A181: 2011-10-19 | B181: 0.2324
A182: 2011-10-18 | B182: 0.2325
A183: 2011-10-17 | B183: 0.2326
A184: 2011-10-16 | B184: 0.2324
A185: 2011-10-15 | B185: 0.2324
A186: 2011-10-14 | B186: 0.2323

Sheet ZAR
A5: End Date | B5: ZAR/USD
A6: 2012-04-11 | B6: 0.126
A7: 2012-04-10 | B7: 0.1266
A8: 2012-04-09 | B8: 0.126
A9: 2012-04-08 | B9: 0.126
A10: 2012-04-07 | B10: 0.1272
A11: 2012-04-06 | B11: 0.1277
A12: 2012-04-05 | B12: 0.1284
A13: 2012-04-04 | B13: 0.1302
A14: 2012-04-03 | B14: 0.1307
A15: 2012-04-02 | B15: 0.1295
A16: 2012-04-01 | B16: 0.1295
A17: 2012-03-31 | B17: 0.13
A18: 2012-03-30 | B18: 0.1297
A19: 2012-03-29 | B19: 0.1308
A20: 2012-03-28 | B20: 0.1318
A21: 2012-03-27 | B21: 0.1305
A22: 2012-03-26 | B22: 0.1293
A23: 2012-03-25 | B23: 0.1293
A24: 2012-03-24 | B24: 0.1297
A25: 2012-03-23 | B25: 0.1299
A26: 2012-03-22 | B26: 0.1311
A27: 2012-03-21 | B27: 0.1318
A28: 2012-03-20 | B28: 0.1321
A29: 2012-03-19 | B29: 0.1314
A30: 2012-03-18 | B30: 0.1314
A31: 2012-03-17 | B31: 0.1313
A32: 2012-03-16 | B32: 0.1304
A33: 2012-03-15 | B33: 0.1315
A34: 2012-03-14 | B34: 0.1324
A35: 2012-03-13 | B35: 0.1319
A36: 2012-03-12 | B36: 0.1312
A37: 2012-03-11 | B37: 0.1313
A38: 2012-03-10 | B38: 0.133
A39: 2012-03-09 | B39: 0.1322
A40: 2012-03-08 | B40: 0.1308
A41: 2012-03-07 | B41: 0.1314
A42: 2012-03-06 | B42: 0.1324
A43: 2012-03-05 | B43: 0.1321
A44: 2012-03-04 | B44: 0.1321
A45: 2012-03-03 | B45: 0.1336
A46: 2012-03-02 | B46: 0.1336
A47: 2012-03-01 | B47: 0.1338
A48: 2012-02-29 | B48: 0.1325
A49: 2012-02-28 | B49: 0.1316
A50: 2012-02-27 | B50: 0.1308
A51: 2012-02-26 | B51: 0.1308
A52: 2012-02-25 | B52: 0.131
A53: 2012-02-24 | B53: 0.1297
A54: 2012-02-23 | B54: 0.1292
A55: 2012-02-22 | B55: 0.1298
A56: 2012-02-21 | B56: 0.1302
A57: 2012-02-20 | B57: 0.1284
A58: 2012-02-19 | B58: 0.1284
A59: 2012-02-18 | B59: 0.1289
A60: 2012-02-17 | B60: 0.1281
A61: 2012-02-16 | B61: 0.1295
A62: 2012-02-15 | B62: 0.1294
A63: 2012-02-14 | B63: 0.1301
A64: 2012-02-13 | B64: 0.1283
A65: 2012-02-12 | B65: 0.1282
A66: 2012-02-11 | B66: 0.1302
A67: 2012-02-10 | B67: 0.1317
A68: 2012-02-09 | B68: 0.1321
A69: 2012-02-08 | B69: 0.132
A70: 2012-02-07 | B70: 0.1317
A71: 2012-02-06 | B71: 0.132
A72: 2012-02-05 | B72: 0.1321
A73: 2012-02-04 | B73: 0.1312
A74: 2012-02-03 | B74: 0.1302
A75: 2012-02-02 | B75: 0.1288
A76: 2012-02-01 | B76: 0.128
A77: 2012-01-31 | B77: 0.1278
A78: 2012-01-30 | B78: 0.1281
A79: 2012-01-29 | B79: 0.1281
A80: 2012-01-28 | B80: 0.1282
A81: 2012-01-27 | B81: 0.1274
A82: 2012-01-26 | B82: 0.1255
A83: 2012-01-25 | B83: 0.1255
A84: 2012-01-24 | B84: 0.1257
A85: 2012-01-23 | B85: 0.1249
A86: 2012-01-22 | B86: 0.1249
A87: 2012-01-21 | B87: 0.1258
A88: 2012-01-20 | B88: 0.1257
A89: 2012-01-19 | B89: 0.1246
A90: 2012-01-18 | B90: 0.1241
A91: 2012-01-17 | B91: 0.1227
A92: 2012-01-16 | B92: 0.1222
A93: 2012-01-15 | B93: 0.1222
A94: 2012-01-14 | B94: 0.1236
A95: 2012-01-13 | B95: 0.1238
A96: 2012-01-12 | B96: 0.1231
A97: 2012-01-11 | B97: 0.1229
A98: 2012-01-10 | B98: 0.1222
A99: 2012-01-09 | B99: 0.1216
A100: 2012-01-08 | B100: 0.1215
A101: 2012-01-07 | B101: 0.1223
A102: 2012-01-06 | B102: 0.1224
A103: 2012-01-05 | B103: 0.1234
A104: 2012-01-04 | B104: 0.1241
A105: 2012-01-03 | B105: 0.1234
A106: 2012-01-02 | B106: 0.1229
A107: 2012-01-01 | B107: 0.1229
A108: 2011-12-31 | B108: 0.1228
A109: 2011-12-30 | B109: 0.122
A110: 2011-12-29 | B110: 0.1226
A111: 2011-12-28 | B111: 0.1225
A112: 2011-12-27 | B112: 0.1222
A113: 2011-12-26 | B113: 0.1218
A114: 2011-12-25 | B114: 0.1218
A115: 2011-12-24 | B115: 0.1224
A116: 2011-12-23 | B116: 0.1218
A117: 2011-12-22 | B117: 0.1219
A118: 2011-12-21 | B118: 0.1201
A119: 2011-12-20 | B119: 0.1191
A120: 2011-12-19 | B120: 0.1184
A121: 2011-12-18 | B121: 0.1184
A122: 2011-12-17 | B122: 0.1193
A123: 2011-12-16 | B123: 0.1188
A124: 2011-12-15 | B124: 0.1194
A125: 2011-12-14 | B125: 0.1208
A126: 2011-12-13 | B126: 0.122
A127: 2011-12-12 | B127: 0.1227
A128: 2011-12-11 | B128: 0.1227
A129: 2011-12-10 | B129: 0.1217
A130: 2011-12-09 | B130: 0.1234
A131: 2011-12-08 | B131: 0.1244
A132: 2011-12-07 | B132: 0.124
A133: 2011-12-06 | B133: 0.1247
A134: 2011-12-05 | B134: 0.1236
A135: 2011-12-04 | B135: 0.1235
A136: 2011-12-03 | B136: 0.124
A137: 2011-12-02 | B137: 0.1231
A138: 2011-12-01 | B138: 0.1206
A139: 2011-11-30 | B139: 0.1195
A140: 2011-11-29 | B140: 0.1188
A141: 2011-11-28 | B141: 0.1166
A142: 2011-11-27 | B142: 0.1166
A143: 2011-11-26 | B143: 0.1171
A144: 2011-11-25 | B144: 0.1172
A145: 2011-11-24 | B145: 0.1181
A146: 2011-11-23 | B146: 0.1197
A147: 2011-11-22 | B147: 0.1208
A148: 2011-11-21 | B148: 0.1213
A149: 2011-11-20 | B149: 0.1212
A150: 2011-11-19 | B150: 0.1218
A151: 2011-11-18 | B151: 0.122
A152: 2011-11-17 | B152: 0.1222
A153: 2011-11-16 | B153: 0.1237
A154: 2011-11-15 | B154: 0.1258
A155: 2011-11-14 | B155: 0.1259
A156: 2011-11-13 | B156: 0.1259
A157: 2011-11-12 | B157: 0.1257
A158: 2011-11-11 | B158: 0.1245
A159: 2011-11-10 | B159: 0.1261
A160: 2011-11-09 | B160: 0.1262
A161: 2011-11-08 | B161: 0.1258
A162: 2011-11-07 | B162: 0.1257
A163: 2011-11-06 | B163: 0.1257
A164: 2011-11-05 | B164: 0.1269
A165: 2011-11-04 | B165: 0.1254
A166: 2011-11-03 | B166: 0.1244
A167: 2011-11-02 | B167: 0.1244
A168: 2011-11-01 | B168: 0.1277
A169: 2011-10-31 | B169: 0.1285
A170: 2011-10-30 | B170: 0.1285
A171: 2011-10-29 | B171: 0.1293
A172: 2011-10-28 | B172: 0.1277
A173: 2011-10-27 | B173: 0.1257
A174: 2011-10-26 | B174: 0.1266
A175: 2011-10-25 | B175: 0.1251
A176: 2011-10-24 | B176: 0.1235
A177: 2011-10-23 | B177: 0.1236
A178: 2011-10-22 | B178: 0.1228
A179: 2011-10-21 | B179: 0.1232
A180: 2011-10-20 | B180: 0.125
A181: 2011-10-19 | B181: 0.1247
A182: 2011-10-18 | B182: 0.1267
A183: 2011-10-17 | B183: 0.1269
A184: 2011-10-16 | B184: 0.1269
A185: 2011-10-15 | B185: 0.1271
A186: 2011-10-14 | B186: 0.1272
